Transaction Date,Local Authority Department,BENEFICIARY,Purpose,Amount,Non Recoverable,Merchant Category
01-01-2024,Dedicated Schools Budget,Personal Information - Redacted,Private Contractors Payment - Other,5793.33,0,VENDOR
01-01-2024,Housing Revenue Account,East London Community Sports Association,Premises Hire - Facilities,935,0,VENDOR
01-01-2024,Environment and Sustainable Transport,R.A.M Fleet Solutions Ltd,"Purchase - Equipment, Furniture And Materials",3772,0,COMMERCIAL SUPPLIER
01-01-2024,Housing Revenue Account,Daisy Corporate Services Trading Ltd,Cyclical/Planned Maintenance - Mechanical And Electrical,279.34,0,COMMERCIAL SUPPLIER
01-01-2024,Housing Revenue Account,Daisy Corporate Services Trading Ltd,Land Line Telephone Costs,509.85,0,COMMERCIAL SUPPLIER
01-01-2024,Housing Revenue Account,Daisy Corporate Services Trading Ltd,Land Line Telephone Costs,1937.87,0,COMMERCIAL SUPPLIER
01-01-2024,Resources,Royal Docks Management Authority Ltd,Facilities Management,5526,0,VENDOR
01-01-2024,Inclusive Economy & Housing,Titan Containers A/S,Hire - Equipment Furniture And Materials,232.5,0,VENDOR
01-01-2024,Dedicated Schools Budget,Resources for Autism,Professional Services - General,138614,0,COMMERCIAL SUPPLIER
01-01-2024,RMS,Travis Perkins Trading Company Ltd,Building Alterations And Materials,95,0,COMMERCIAL SUPPLIER
01-01-2024,RMS,Travis Perkins Trading Company Ltd,Building Alterations And Materials,5262.1,0,COMMERCIAL SUPPLIER
01-01-2024,RMS,Travis Perkins Trading Company Ltd,Building Alterations And Materials,438.58,0,COMMERCIAL SUPPLIER
01-01-2024,Environment and Sustainable Transport,Gristwood & Toms,Tree Works,33452.93,0,COMMERCIAL SUPPLIER
01-01-2024,Environment and Sustainable Transport,Gristwood & Toms,Tree Works,21260,0,COMMERCIAL SUPPLIER
01-01-2024,Resources,County Shutters & Doors Ltd,Security Services (Excluding Premises),316,0,COMMERCIAL SUPPLIER
01-01-2024,Environment and Sustainable Transport,Portakabin Ltd,Premises Hire - Facilities,2373.33,0,COMMERCIAL SUPPLIER
01-01-2024,oneSource,Royal Mail Group Plc,Postage And Courier Services,7538.59,0,COMMERCIAL SUPPLIER
01-01-2024,oneSource,Royal Mail Group Plc,Postage And Courier Services,158.4,0,COMMERCIAL SUPPLIER
01-01-2024,Resources,TransUnion International UK Limited,Ict Licences,6976,0,COMMERCIAL SUPPLIER
01-01-2024,Marketing,The Docklands Settlements,Events,650,0,VENDOR
01-01-2024,Children and Young People,Early Start Group Ltd,Private Contractors Payment - Other,54450,0,COMMERCIAL SUPPLIER
01-01-2024,Children and Young People,Early Start Group Ltd,Private Contractors Payment - Other,112879,0,COMMERCIAL SUPPLIER
02-01-2024,Marketing,Personal Information - Redacted,Events,250,0,INDIVIDUALS
02-01-2024,Dedicated Schools Budget,Personal Information - Redacted,Professional Services - General,1986.63,0,INDIVIDUALS
02-01-2024,Dedicated Schools Budget,Personal Information - Redacted,Payments To Voluntary Sector,1086,0,VENDOR
02-01-2024,Dedicated Schools Budget,Personal Information - Redacted,Payments To Voluntary Sector,1906,0,NON COMMERCIAL SUPPLIER
01-01-2024,Marketing,The Docklands Settlements,Events,325,0,VENDOR
01-01-2024,Environment and Sustainable Transport,Chipside Ltd,Private Contractors Payment - Other,660,0,COMMERCIAL SUPPLIER
02-01-2024,Adults & Health,Vibrance,Daycare - Private Contractors Payment,874.04,0,VOLUNTARY ORGANISATION
02-01-2024,Adults & Health,Vibrance,Daycare - Private Contractors Payment,874.2,0,VOLUNTARY ORGANISATION
02-01-2024,Adults & Health,Vibrance,Daycare - Private Contractors Payment,874.2,0,VOLUNTARY ORGANISATION
02-01-2024,Adults & Health,Vibrance,Daycare - Private Contractors Payment,874.2,0,VOLUNTARY ORGANISATION
02-01-2024,Adults & Health,Uniting Friends,Daycare - Private Contractors Payment,360.25,0,VENDOR
02-01-2024,Adults & Health,Uniting Friends,Daycare - Private Contractors Payment,360.25,0,VENDOR
02-01-2024,Adults & Health,Uniting Friends,Daycare - Private Contractors Payment,216.15,0,VENDOR
02-01-2024,Adults & Health,Uniting Friends,Daycare - Private Contractors Payment,360.25,0,VENDOR
02-01-2024,Dedicated Schools Budget,Personal Information - Redacted,Schools - Transfer Payment,1689,0,NON COMMERCIAL SUPPLIER
02-01-2024,Adults & Health,Sahara Homes Ltd,Respite Care - Private Contractors Payment,1600,0,COMMERCIAL SUPPLIER
02-01-2024,Adults & Health,Sahara Homes Ltd,Respite Care - Private Contractors Payment,1142.86,0,COMMERCIAL SUPPLIER
02-01-2024,Adults & Health,Sahara Homes Ltd,Respite Care - Private Contractors Payment,1600,0,COMMERCIAL SUPPLIER
02-01-2024,Adults & Health,Sahara Homes Ltd,Respite Care - Private Contractors Payment,1600,0,COMMERCIAL SUPPLIER
02-01-2024,Adults & Health,Sahara Homes Ltd,Respite Care - Private Contractors Payment,1600,0,COMMERCIAL SUPPLIER
02-01-2024,Adults & Health,Sahara Homes Ltd,Respite Care - Private Contractors Payment,1142.86,0,COMMERCIAL SUPPLIER
02-01-2024,Adults & Health,Sahara Homes Ltd,Respite Care - Private Contractors Payment,1600,0,COMMERCIAL SUPPLIER
02-01-2024,Adults & Health,Sahara Homes Ltd,Respite Care - Private Contractors Payment,1600,0,COMMERCIAL SUPPLIER
02-01-2024,Adults & Health,Sahara Homes Ltd,Respite Care - Private Contractors Payment,1600,0,COMMERCIAL SUPPLIER
02-01-2024,Adults & Health,Sahara Homes Ltd,Respite Care - Private Contractors Payment,1600,0,COMMERCIAL SUPPLIER
02-01-2024,Adults & Health,Sahara Homes Ltd,Respite Care - Private Contractors Payment,1600,0,COMMERCIAL SUPPLIER
02-01-2024,Adults & Health,Sahara Homes Ltd,Respite Care - Private Contractors Payment,1600,0,COMMERCIAL SUPPLIER
02-01-2024,Adults & Health,Sahara Homes Ltd,Respite Care - Private Contractors Payment,1600,0,COMMERCIAL SUPPLIER
02-01-2024,Adults & Health,Sahara Homes Ltd,Respite Care - Private Contractors Payment,1600,0,COMMERCIAL SUPPLIER
02-01-2024,Children and Young People,ISWP Assessment Services Ltd,Legal Fees,829.7,0,COMMERCIAL SUPPLIER
02-01-2024,Adults & Health,Alpha Health & Care Services,Home Care - Private Contractors Payment,1051.37,0,NON COMMERCIAL SUPPLIER
02-01-2024,Adults & Health,Alpha Health & Care Services,Home Care - Private Contractors Payment,1629.53,0,NON COMMERCIAL SUPPLIER
02-01-2024,Adults & Health,Alpha Health & Care Services,Home Care - Private Contractors Payment,1629.53,0,NON COMMERCIAL SUPPLIER
02-01-2024,Adults & Health,Alpha Health & Care Services,Home Care - Private Contractors Payment,1629.53,0,NON COMMERCIAL SUPPLIER
02-01-2024,Adults & Health,Alpha Health & Care Services,Home Care - Private Contractors Payment,1629.53,0,NON COMMERCIAL SUPPLIER
02-01-2024,Adults & Health,Alpha Health & Care Services,Home Care - Private Contractors Payment,1629.53,0,NON COMMERCIAL SUPPLIER
02-01-2024,Adults & Health,Alpha Health & Care Services,Home Care - Private Contractors Payment,1396.74,0,NON COMMERCIAL SUPPLIER
02-01-2024,Housing Revenue Account,CTR Triangle Ltd,Payments To Voluntary Sector,3451.31,0,VENDOR
02-01-2024,Housing Revenue Account,CTR Triangle Ltd,Payments To Voluntary Sector,96608.69,0,VENDOR
02-01-2024,RMS,AMA Security Ltd,Private Contractors Payment - Other,265,0,COMMERCIAL SUPPLIER
02-01-2024,RMS,AMA Security Ltd,Private Contractors Payment - Other,285,0,COMMERCIAL SUPPLIER
02-01-2024,RMS,AMA Security Ltd,Private Contractors Payment - Other,541,0,COMMERCIAL SUPPLIER
02-01-2024,RMS,AMA Security Ltd,Private Contractors Payment - Other,550,0,COMMERCIAL SUPPLIER
02-01-2024,RMS,AMA Security Ltd,Private Contractors Payment - Other,550,0,COMMERCIAL SUPPLIER
02-01-2024,Inclusive Economy & Housing,Unique Office Solutions Ltd,"Purchase - Equipment, Furniture And Materials",640,0,COMMERCIAL SUPPLIER
02-01-2024,Resources,Bellrock Property & Facilities Management Ltd,"Maintenance - Equipment, Furniture And Materials",1104.49,0,
02-01-2024,Housing Revenue Account,Veritas Solicitors,Legal Fees,5000,0,NON COMMERCIAL SUPPLIER
02-01-2024,Adults & Health,Eastway Care Ltd,Daycare - Private Contractors Payment,242.96,0,COMMERCIAL SUPPLIER
02-01-2024,Adults & Health,Eastway Care Ltd,Daycare - Private Contractors Payment,671.1,0,COMMERCIAL SUPPLIER
02-01-2024,Adults & Health,Eastway Care Ltd,Daycare - Private Contractors Payment,242.96,0,COMMERCIAL SUPPLIER
02-01-2024,Adults & Health,Eastway Care Ltd,Daycare - Private Contractors Payment,593.04,0,COMMERCIAL SUPPLIER
02-01-2024,Adults & Health,Eastway Care Ltd,Daycare - Private Contractors Payment,593.04,0,COMMERCIAL SUPPLIER
02-01-2024,Adults & Health,Eastway Care Ltd,Daycare - Private Contractors Payment,242.96,0,COMMERCIAL SUPPLIER
02-01-2024,Adults & Health,Eastway Care Ltd,Daycare - Private Contractors Payment,988.4,0,COMMERCIAL SUPPLIER
02-01-2024,Adults & Health,Eastway Care Ltd,Daycare - Private Contractors Payment,593.04,0,COMMERCIAL SUPPLIER
02-01-2024,Adults & Health,Eastway Care Ltd,Daycare - Private Contractors Payment,593.04,0,COMMERCIAL SUPPLIER
02-01-2024,Adults & Health,Eastway Care Ltd,Daycare - Private Contractors Payment,197.68,0,COMMERCIAL SUPPLIER
02-01-2024,Adults & Health,Eastway Care Ltd,Daycare - Private Contractors Payment,988.4,0,COMMERCIAL SUPPLIER
02-01-2024,Adults & Health,Eastway Care Ltd,Daycare - Private Contractors Payment,121.44,0,COMMERCIAL SUPPLIER
02-01-2024,Adults & Health,Eastway Care Ltd,Daycare - Private Contractors Payment,988.4,0,COMMERCIAL SUPPLIER
02-01-2024,Adults & Health,Eastway Care Ltd,Daycare - Private Contractors Payment,988.4,0,COMMERCIAL SUPPLIER
02-01-2024,Adults & Health,Eastway Care Ltd,Daycare - Private Contractors Payment,242.88,0,COMMERCIAL SUPPLIER
02-01-2024,Adults & Health,Eastway Care Ltd,Daycare - Private Contractors Payment,395.36,0,COMMERCIAL SUPPLIER
02-01-2024,Adults & Health,Eastway Care Ltd,Daycare - Private Contractors Payment,402.66,0,COMMERCIAL SUPPLIER
02-01-2024,Adults & Health,Eastway Care Ltd,Daycare - Private Contractors Payment,671,0,COMMERCIAL SUPPLIER
02-01-2024,Adults & Health,Eastway Care Ltd,Daycare - Private Contractors Payment,121.48,0,COMMERCIAL SUPPLIER
02-01-2024,Adults & Health,Eastway Care Ltd,Daycare - Private Contractors Payment,988.4,0,COMMERCIAL SUPPLIER
02-01-2024,Adults & Health,Eastway Care Ltd,Daycare - Private Contractors Payment,988.4,0,COMMERCIAL SUPPLIER
02-01-2024,Adults & Health,Eastway Care Ltd,Daycare - Private Contractors Payment,242.96,0,COMMERCIAL SUPPLIER
02-01-2024,Adults & Health,Eastway Care Ltd,Daycare - Private Contractors Payment,242.88,0,COMMERCIAL SUPPLIER
02-01-2024,Adults & Health,Eastway Care Ltd,Daycare - Private Contractors Payment,607.2,0,COMMERCIAL SUPPLIER
02-01-2024,Adults & Health,Eastway Care Ltd,Daycare - Private Contractors Payment,134.22,0,COMMERCIAL SUPPLIER
02-01-2024,Adults & Health,Eastway Care Ltd,Daycare - Private Contractors Payment,607.2,0,COMMERCIAL SUPPLIER
02-01-2024,Adults & Health,Eastway Care Ltd,Daycare - Private Contractors Payment,242.88,0,COMMERCIAL SUPPLIER
02-01-2024,Adults & Health,Eastway Care Ltd,Daycare - Private Contractors Payment,242.88,0,COMMERCIAL SUPPLIER
02-01-2024,Adults & Health,Eastway Care Ltd,Daycare - Private Contractors Payment,268.44,0,COMMERCIAL SUPPLIER
02-01-2024,Adults & Health,Eastway Care Ltd,Daycare - Private Contractors Payment,671.1,0,COMMERCIAL SUPPLIER
02-01-2024,Adults & Health,Eastway Care Ltd,Daycare - Private Contractors Payment,268.44,0,COMMERCIAL SUPPLIER
02-01-2024,Adults & Health,Eastway Care Ltd,Daycare - Private Contractors Payment,364.44,0,COMMERCIAL SUPPLIER
02-01-2024,Adults & Health,Eastway Care Ltd,Daycare - Private Contractors Payment,364.44,0,COMMERCIAL SUPPLIER
02-01-2024,Adults & Health,Eastway Care Ltd,Daycare - Private Contractors Payment,607.4,0,COMMERCIAL SUPPLIER
02-01-2024,Adults & Health,Eastway Care Ltd,Daycare - Private Contractors Payment,485.92,0,COMMERCIAL SUPPLIER
02-01-2024,Adults & Health,Eastway Care Ltd,Daycare - Private Contractors Payment,242.96,0,COMMERCIAL SUPPLIER
02-01-2024,Adults & Health,Eastway Care Ltd,Daycare - Private Contractors Payment,593.04,0,COMMERCIAL SUPPLIER
02-01-2024,Adults & Health,Eastway Care Ltd,Daycare - Private Contractors Payment,593.04,0,COMMERCIAL SUPPLIER
02-01-2024,Adults & Health,Eastway Care Ltd,Daycare - Private Contractors Payment,671.1,0,COMMERCIAL SUPPLIER
02-01-2024,Adults & Health,Eastway Care Ltd,Daycare - Private Contractors Payment,988.4,0,COMMERCIAL SUPPLIER
02-01-2024,Adults & Health,Eastway Care Ltd,Daycare - Private Contractors Payment,593.04,0,COMMERCIAL SUPPLIER
02-01-2024,Adults & Health,Eastway Care Ltd,Daycare - Private Contractors Payment,593.04,0,COMMERCIAL SUPPLIER
02-01-2024,Adults & Health,Eastway Care Ltd,Daycare - Private Contractors Payment,197.68,0,COMMERCIAL SUPPLIER
02-01-2024,Adults & Health,Eastway Care Ltd,Daycare - Private Contractors Payment,988.4,0,COMMERCIAL SUPPLIER
02-01-2024,Adults & Health,Eastway Care Ltd,Daycare - Private Contractors Payment,671,0,COMMERCIAL SUPPLIER
02-01-2024,Adults & Health,Eastway Care Ltd,Daycare - Private Contractors Payment,242.96,0,COMMERCIAL SUPPLIER
02-01-2024,Adults & Health,Eastway Care Ltd,Daycare - Private Contractors Payment,121.48,0,COMMERCIAL SUPPLIER
02-01-2024,Adults & Health,Eastway Care Ltd,Daycare - Private Contractors Payment,988.4,0,COMMERCIAL SUPPLIER
02-01-2024,Adults & Health,Eastway Care Ltd,Daycare - Private Contractors Payment,988.4,0,COMMERCIAL SUPPLIER
02-01-2024,Adults & Health,Eastway Care Ltd,Daycare - Private Contractors Payment,242.96,0,COMMERCIAL SUPPLIER
02-01-2024,Adults & Health,Eastway Care Ltd,Daycare - Private Contractors Payment,607.2,0,COMMERCIAL SUPPLIER
02-01-2024,Adults & Health,Eastway Care Ltd,Daycare - Private Contractors Payment,593.04,0,COMMERCIAL SUPPLIER
02-01-2024,Adults & Health,Eastway Care Ltd,Daycare - Private Contractors Payment,671.1,0,COMMERCIAL SUPPLIER
02-01-2024,Adults & Health,Eastway Care Ltd,Daycare - Private Contractors Payment,268.44,0,COMMERCIAL SUPPLIER
02-01-2024,Adults & Health,Eastway Care Ltd,Daycare - Private Contractors Payment,364.32,0,COMMERCIAL SUPPLIER
02-01-2024,Adults & Health,Eastway Care Ltd,Daycare - Private Contractors Payment,607.2,0,COMMERCIAL SUPPLIER
02-01-2024,Adults & Health,Eastway Care Ltd,Daycare - Private Contractors Payment,364.32,0,COMMERCIAL SUPPLIER
02-01-2024,Adults & Health,Eastway Care Ltd,Daycare - Private Contractors Payment,607.4,0,COMMERCIAL SUPPLIER
02-01-2024,Adults & Health,Eastway Care Ltd,Daycare - Private Contractors Payment,485.76,0,COMMERCIAL SUPPLIER
02-01-2024,Adults & Health,Eastway Care Ltd,Daycare - Private Contractors Payment,242.88,0,COMMERCIAL SUPPLIER
02-01-2024,Adults & Health,Eastway Care Ltd,Daycare - Private Contractors Payment,988.4,0,COMMERCIAL SUPPLIER
02-01-2024,Adults & Health,Eastway Care Ltd,Daycare - Private Contractors Payment,593.04,0,COMMERCIAL SUPPLIER
02-01-2024,Adults & Health,Eastway Care Ltd,Daycare - Private Contractors Payment,536.88,0,COMMERCIAL SUPPLIER
02-01-2024,Adults & Health,Eastway Care Ltd,Daycare - Private Contractors Payment,607.2,0,COMMERCIAL SUPPLIER
02-01-2024,Adults & Health,Eastway Care Ltd,Daycare - Private Contractors Payment,988.4,0,COMMERCIAL SUPPLIER
02-01-2024,Adults & Health,Eastway Care Ltd,Daycare - Private Contractors Payment,416.4,0,COMMERCIAL SUPPLIER
02-01-2024,Adults & Health,Eastway Care Ltd,Daycare - Private Contractors Payment,395.36,0,COMMERCIAL SUPPLIER
02-01-2024,Adults & Health,Eastway Care Ltd,Daycare - Private Contractors Payment,988.4,0,COMMERCIAL SUPPLIER
02-01-2024,Adults & Health,Eastway Care Ltd,Daycare - Private Contractors Payment,242.96,0,COMMERCIAL SUPPLIER
02-01-2024,Adults & Health,Eastway Care Ltd,Daycare - Private Contractors Payment,536.88,0,COMMERCIAL SUPPLIER
02-01-2024,Adults & Health,Eastway Care Ltd,Daycare - Private Contractors Payment,395.36,0,COMMERCIAL SUPPLIER
02-01-2024,Adults & Health,Eastway Care Ltd,Daycare - Private Contractors Payment,607.4,0,COMMERCIAL SUPPLIER
02-01-2024,Adults & Health,Eastway Care Ltd,Daycare - Private Contractors Payment,593.04,0,COMMERCIAL SUPPLIER
02-01-2024,Adults & Health,Eastway Care Ltd,Daycare - Private Contractors Payment,395.36,0,COMMERCIAL SUPPLIER
02-01-2024,Adults & Health,Eastway Care Ltd,Daycare - Private Contractors Payment,268.44,0,COMMERCIAL SUPPLIER
02-01-2024,Adults & Health,Eastway Care Ltd,Daycare - Private Contractors Payment,242.96,0,COMMERCIAL SUPPLIER
02-01-2024,Adults & Health,Eastway Care Ltd,Daycare - Private Contractors Payment,607.4,0,COMMERCIAL SUPPLIER
02-01-2024,Adults & Health,Eastway Care Ltd,Daycare - Private Contractors Payment,607.4,0,COMMERCIAL SUPPLIER
02-01-2024,Adults & Health,Eastway Care Ltd,Daycare - Private Contractors Payment,242.96,0,COMMERCIAL SUPPLIER
02-01-2024,Adults & Health,Eastway Care Ltd,Daycare - Private Contractors Payment,134.22,0,COMMERCIAL SUPPLIER
02-01-2024,Adults & Health,Eastway Care Ltd,Daycare - Private Contractors Payment,242.88,0,COMMERCIAL SUPPLIER
02-01-2024,Adults & Health,Eastway Care Ltd,Daycare - Private Contractors Payment,197.68,0,COMMERCIAL SUPPLIER
02-01-2024,Adults & Health,Eastway Care Ltd,Daycare - Private Contractors Payment,242.96,0,COMMERCIAL SUPPLIER
02-01-2024,Adults & Health,Eastway Care Ltd,Daycare - Private Contractors Payment,988.4,0,COMMERCIAL SUPPLIER
02-01-2024,Adults & Health,Eastway Care Ltd,Daycare - Private Contractors Payment,593.04,0,COMMERCIAL SUPPLIER
02-01-2024,Adults & Health,Eastway Care Ltd,Daycare - Private Contractors Payment,593.04,0,COMMERCIAL SUPPLIER
02-01-2024,Adults & Health,Eastway Care Ltd,Daycare - Private Contractors Payment,988.4,0,COMMERCIAL SUPPLIER
02-01-2024,Adults & Health,Eastway Care Ltd,Daycare - Private Contractors Payment,988.4,0,COMMERCIAL SUPPLIER
02-01-2024,Adults & Health,Eastway Care Ltd,Daycare - Private Contractors Payment,121.48,0,COMMERCIAL SUPPLIER
02-01-2024,Adults & Health,Eastway Care Ltd,Daycare - Private Contractors Payment,364.32,0,COMMERCIAL SUPPLIER
02-01-2024,Adults & Health,Eastway Care Ltd,Daycare - Private Contractors Payment,671.1,0,COMMERCIAL SUPPLIER
02-01-2024,Adults & Health,Eastway Care Ltd,Daycare - Private Contractors Payment,988.4,0,COMMERCIAL SUPPLIER
02-01-2024,Adults & Health,Eastway Care Ltd,Daycare - Private Contractors Payment,593.04,0,COMMERCIAL SUPPLIER
02-01-2024,Adults & Health,Eastway Care Ltd,Daycare - Private Contractors Payment,593.04,0,COMMERCIAL SUPPLIER
02-01-2024,Adults & Health,Eastway Care Ltd,Daycare - Private Contractors Payment,197.68,0,COMMERCIAL SUPPLIER
02-01-2024,Adults & Health,Eastway Care Ltd,Daycare - Private Contractors Payment,402.66,0,COMMERCIAL SUPPLIER
02-01-2024,Adults & Health,Eastway Care Ltd,Daycare - Private Contractors Payment,607.4,0,COMMERCIAL SUPPLIER
02-01-2024,Adults & Health,Eastway Care Ltd,Daycare - Private Contractors Payment,671.1,0,COMMERCIAL SUPPLIER
02-01-2024,Adults & Health,Eastway Care Ltd,Daycare - Private Contractors Payment,268.44,0,COMMERCIAL SUPPLIER
02-01-2024,Adults & Health,Eastway Care Ltd,Daycare - Private Contractors Payment,364.44,0,COMMERCIAL SUPPLIER
02-01-2024,Adults & Health,Eastway Care Ltd,Daycare - Private Contractors Payment,364.44,0,COMMERCIAL SUPPLIER
02-01-2024,Adults & Health,Eastway Care Ltd,Daycare - Private Contractors Payment,607.4,0,COMMERCIAL SUPPLIER
02-01-2024,Adults & Health,Eastway Care Ltd,Daycare - Private Contractors Payment,364.44,0,COMMERCIAL SUPPLIER
02-01-2024,Adults & Health,Eastway Care Ltd,Daycare - Private Contractors Payment,607.4,0,COMMERCIAL SUPPLIER
02-01-2024,Adults & Health,Eastway Care Ltd,Daycare - Private Contractors Payment,485.92,0,COMMERCIAL SUPPLIER
02-01-2024,Adults & Health,Eastway Care Ltd,Daycare - Private Contractors Payment,268.44,0,COMMERCIAL SUPPLIER
02-01-2024,Adults & Health,Eastway Care Ltd,Daycare - Private Contractors Payment,402.66,0,COMMERCIAL SUPPLIER
02-01-2024,Adults & Health,Eastway Care Ltd,Daycare - Private Contractors Payment,364.44,0,COMMERCIAL SUPPLIER
02-01-2024,Adults & Health,Eastway Care Ltd,Daycare - Private Contractors Payment,607.4,0,COMMERCIAL SUPPLIER
02-01-2024,Adults & Health,Eastway Care Ltd,Daycare - Private Contractors Payment,242.96,0,COMMERCIAL SUPPLIER
02-01-2024,Adults & Health,Eastway Care Ltd,Daycare - Private Contractors Payment,364.44,0,COMMERCIAL SUPPLIER
02-01-2024,Adults & Health,Eastway Care Ltd,Daycare - Private Contractors Payment,607.4,0,COMMERCIAL SUPPLIER
02-01-2024,Adults & Health,Eastway Care Ltd,Daycare - Private Contractors Payment,671.1,0,COMMERCIAL SUPPLIER
02-01-2024,Adults & Health,Eastway Care Ltd,Daycare - Private Contractors Payment,364.44,0,COMMERCIAL SUPPLIER
02-01-2024,Adults & Health,Eastway Care Ltd,Daycare - Private Contractors Payment,607.4,0,COMMERCIAL SUPPLIER
02-01-2024,Adults & Health,Eastway Care Ltd,Daycare - Private Contractors Payment,485.92,0,COMMERCIAL SUPPLIER
02-01-2024,Adults & Health,Eastway Care Ltd,Daycare - Private Contractors Payment,395.36,0,COMMERCIAL SUPPLIER
02-01-2024,Adults & Health,Eastway Care Ltd,Daycare - Private Contractors Payment,593.04,0,COMMERCIAL SUPPLIER
02-01-2024,Adults & Health,Eastway Care Ltd,Daycare - Private Contractors Payment,242.96,0,COMMERCIAL SUPPLIER
02-01-2024,Adults & Health,Eastway Care Ltd,Daycare - Private Contractors Payment,988.4,0,COMMERCIAL SUPPLIER
02-01-2024,Adults & Health,Eastway Care Ltd,Daycare - Private Contractors Payment,607.4,0,COMMERCIAL SUPPLIER
02-01-2024,Adults & Health,Eastway Care Ltd,Daycare - Private Contractors Payment,268.44,0,COMMERCIAL SUPPLIER
02-01-2024,Adults & Health,Eastway Care Ltd,Daycare - Private Contractors Payment,536.88,0,COMMERCIAL SUPPLIER
02-01-2024,Adults & Health,Eastway Care Ltd,Daycare - Private Contractors Payment,395.36,0,COMMERCIAL SUPPLIER
02-01-2024,Adults & Health,Eastway Care Ltd,Daycare - Private Contractors Payment,242.96,0,COMMERCIAL SUPPLIER
02-01-2024,Adults & Health,Eastway Care Ltd,Daycare - Private Contractors Payment,607.4,0,COMMERCIAL SUPPLIER
02-01-2024,Adults & Health,Eastway Care Ltd,Daycare - Private Contractors Payment,593.04,0,COMMERCIAL SUPPLIER
02-01-2024,Adults & Health,Eastway Care Ltd,Daycare - Private Contractors Payment,242.96,0,COMMERCIAL SUPPLIER
02-01-2024,Adults & Health,Eastway Care Ltd,Daycare - Private Contractors Payment,134.22,0,COMMERCIAL SUPPLIER
02-01-2024,Adults & Health,Eastway Care Ltd,Daycare - Private Contractors Payment,607.4,0,COMMERCIAL SUPPLIER
02-01-2024,Adults & Health,Eastway Care Ltd,Daycare - Private Contractors Payment,988.4,0,COMMERCIAL SUPPLIER
02-01-2024,Adults & Health,Eastway Care Ltd,Daycare - Private Contractors Payment,671,0,COMMERCIAL SUPPLIER
02-01-2024,Adults & Health,Eastway Care Ltd,Daycare - Private Contractors Payment,671.1,0,COMMERCIAL SUPPLIER
02-01-2024,Adults & Health,Eastway Care Ltd,Daycare - Private Contractors Payment,242.96,0,COMMERCIAL SUPPLIER
02-01-2024,Adults & Health,Eastway Care Ltd,Daycare - Private Contractors Payment,395.36,0,COMMERCIAL SUPPLIER
02-01-2024,Adults & Health,Eastway Care Ltd,Daycare - Private Contractors Payment,242.96,0,COMMERCIAL SUPPLIER
02-01-2024,Adults & Health,Eastway Care Ltd,Daycare - Private Contractors Payment,988.4,0,COMMERCIAL SUPPLIER
02-01-2024,Adults & Health,Eastway Care Ltd,Daycare - Private Contractors Payment,536.88,0,COMMERCIAL SUPPLIER
02-01-2024,Adults & Health,Eastway Care Ltd,Daycare - Private Contractors Payment,395.36,0,COMMERCIAL SUPPLIER
02-01-2024,Adults & Health,Eastway Care Ltd,Daycare - Private Contractors Payment,607.4,0,COMMERCIAL SUPPLIER
02-01-2024,Adults & Health,Eastway Care Ltd,Daycare - Private Contractors Payment,593.04,0,COMMERCIAL SUPPLIER
02-01-2024,Adults & Health,Eastway Care Ltd,Daycare - Private Contractors Payment,242.96,0,COMMERCIAL SUPPLIER
02-01-2024,Adults & Health,Eastway Care Ltd,Daycare - Private Contractors Payment,607.4,0,COMMERCIAL SUPPLIER
02-01-2024,Adults & Health,Eastway Care Ltd,Daycare - Private Contractors Payment,395.36,0,COMMERCIAL SUPPLIER
02-01-2024,Adults & Health,Eastway Care Ltd,Daycare - Private Contractors Payment,268.44,0,COMMERCIAL SUPPLIER
02-01-2024,Adults & Health,Eastway Care Ltd,Daycare - Private Contractors Payment,134.22,0,COMMERCIAL SUPPLIER
02-01-2024,Adults & Health,Eastway Care Ltd,Daycare - Private Contractors Payment,607.4,0,COMMERCIAL SUPPLIER
02-01-2024,Adults & Health,Eastway Care Ltd,Daycare - Private Contractors Payment,402.66,0,COMMERCIAL SUPPLIER
02-01-2024,Adults & Health,Eastway Care Ltd,Daycare - Private Contractors Payment,607.4,0,COMMERCIAL SUPPLIER
02-01-2024,Adults & Health,Eastway Care Ltd,Daycare - Private Contractors Payment,364.44,0,COMMERCIAL SUPPLIER
02-01-2024,Adults & Health,Eastway Care Ltd,Daycare - Private Contractors Payment,607.4,0,COMMERCIAL SUPPLIER
02-01-2024,Adults & Health,Eastway Care Ltd,Daycare - Private Contractors Payment,671.1,0,COMMERCIAL SUPPLIER
02-01-2024,Adults & Health,Eastway Care Ltd,Daycare - Private Contractors Payment,671.1,0,COMMERCIAL SUPPLIER
02-01-2024,Adults & Health,Eastway Care Ltd,Daycare - Private Contractors Payment,671.1,0,COMMERCIAL SUPPLIER
02-01-2024,Adults & Health,Eastway Care Ltd,Daycare - Private Contractors Payment,671.1,0,COMMERCIAL SUPPLIER
02-01-2024,Adults & Health,Eastway Care Ltd,Daycare - Private Contractors Payment,536.88,0,COMMERCIAL SUPPLIER
02-01-2024,Adults & Health,Eastway Care Ltd,Daycare - Private Contractors Payment,536.88,0,COMMERCIAL SUPPLIER
02-01-2024,Adults & Health,Eastway Care Ltd,Daycare - Private Contractors Payment,536.88,0,COMMERCIAL SUPPLIER
02-01-2024,Adults & Health,Eastway Care Ltd,Daycare - Private Contractors Payment,332.88,0,COMMERCIAL SUPPLIER
02-01-2024,Adults & Health,Eastway Care Ltd,Daycare - Private Contractors Payment,790.72,0,COMMERCIAL SUPPLIER
02-01-2024,Adults & Health,Eastway Care Ltd,Daycare - Private Contractors Payment,790.72,0,COMMERCIAL SUPPLIER
02-01-2024,Adults & Health,Eastway Care Ltd,Daycare - Private Contractors Payment,790.72,0,COMMERCIAL SUPPLIER
02-01-2024,Adults & Health,Eastway Care Ltd,Daycare - Private Contractors Payment,242.96,0,COMMERCIAL SUPPLIER
02-01-2024,Adults & Health,Eastway Care Ltd,Daycare - Private Contractors Payment,242.88,0,COMMERCIAL SUPPLIER
02-01-2024,Adults & Health,Eastway Care Ltd,Daycare - Private Contractors Payment,242.96,0,COMMERCIAL SUPPLIER
02-01-2024,Adults & Health,Eastway Care Ltd,Daycare - Private Contractors Payment,242.96,0,COMMERCIAL SUPPLIER
02-01-2024,Adults & Health,Eastway Care Ltd,Daycare - Private Contractors Payment,593.04,0,COMMERCIAL SUPPLIER
02-01-2024,Adults & Health,Eastway Care Ltd,Daycare - Private Contractors Payment,593.04,0,COMMERCIAL SUPPLIER
02-01-2024,Adults & Health,Eastway Care Ltd,Daycare - Private Contractors Payment,593.04,0,COMMERCIAL SUPPLIER
02-01-2024,Adults & Health,Eastway Care Ltd,Daycare - Private Contractors Payment,593.04,0,COMMERCIAL SUPPLIER
02-01-2024,Adults & Health,Eastway Care Ltd,Daycare - Private Contractors Payment,593.04,0,COMMERCIAL SUPPLIER
02-01-2024,Adults & Health,Eastway Care Ltd,Daycare - Private Contractors Payment,593.04,0,COMMERCIAL SUPPLIER
02-01-2024,Adults & Health,Eastway Care Ltd,Daycare - Private Contractors Payment,395.36,0,COMMERCIAL SUPPLIER
02-01-2024,Adults & Health,Eastway Care Ltd,Daycare - Private Contractors Payment,395.36,0,COMMERCIAL SUPPLIER
02-01-2024,Adults & Health,Eastway Care Ltd,Daycare - Private Contractors Payment,395.36,0,COMMERCIAL SUPPLIER
02-01-2024,Adults & Health,Eastway Care Ltd,Daycare - Private Contractors Payment,395.36,0,COMMERCIAL SUPPLIER
02-01-2024,Adults & Health,Eastway Care Ltd,Daycare - Private Contractors Payment,395.36,0,COMMERCIAL SUPPLIER
02-01-2024,Adults & Health,Eastway Care Ltd,Daycare - Private Contractors Payment,593.04,0,COMMERCIAL SUPPLIER
02-01-2024,Adults & Health,Eastway Care Ltd,Daycare - Private Contractors Payment,593.04,0,COMMERCIAL SUPPLIER
02-01-2024,Adults & Health,Eastway Care Ltd,Daycare - Private Contractors Payment,593.04,0,COMMERCIAL SUPPLIER
02-01-2024,Adults & Health,Eastway Care Ltd,Daycare - Private Contractors Payment,593.04,0,COMMERCIAL SUPPLIER
02-01-2024,Adults & Health,Eastway Care Ltd,Daycare - Private Contractors Payment,593.04,0,COMMERCIAL SUPPLIER
02-01-2024,Marketing,Opinion Research Services Ltd,"Advertising, Publicity And Marketing",15578.5,0,COMMERCIAL SUPPLIER
02-01-2024,Children and Young People,Goldline Cars Ltd,Client Transport,2650,0,COMMERCIAL SUPPLIER
02-01-2024,Environment and Sustainable Transport,Greener Solutions,Highway Services,1942.5,0,VENDOR
02-01-2024,Children and Young People,Nottingham Rehab Ltd,Occupational Health,9923.68,0,COMMERCIAL SUPPLIER
02-01-2024,Dedicated Schools Budget,Personal Information - Redacted,Grants And Contributions,379,0,VENDOR
02-01-2024,Children and Young People,Springboard Services Ltd,Legal Fees,315,0,COMMERCIAL SUPPLIER
02-01-2024,Environment and Sustainable Transport,Car Hire Day of Swansea Ltd t/a Days Rental,Vehicle Hire,5348.12,0,COMMERCIAL SUPPLIER
02-01-2024,Environment and Sustainable Transport,Car Hire Day of Swansea Ltd t/a Days Rental,Vehicle Hire,1776.3,0,COMMERCIAL SUPPLIER
02-01-2024,Environment and Sustainable Transport,Car Hire Day of Swansea Ltd t/a Days Rental,Vehicle Hire,8403.17,0,COMMERCIAL SUPPLIER
02-01-2024,Environment and Sustainable Transport,Car Hire Day of Swansea Ltd t/a Days Rental,Vehicle Hire,399.59,0,COMMERCIAL SUPPLIER
02-01-2024,Environment and Sustainable Transport,Loughton Self Drive,Vehicle Hire,1200,0,COMMERCIAL SUPPLIER
02-01-2024,RMS,Loughton Self Drive,Vehicle Hire,1050,0,COMMERCIAL SUPPLIER
02-01-2024,RMS,Loughton Self Drive,Vehicle Hire,1370,0,COMMERCIAL SUPPLIER
02-01-2024,Adults & Health,Landmark Housing Group Ltd T/A Park Hotel.,Supported Other Accommodation - Private Contractors Payment,50,0,COMMERCIAL SUPPLIER
02-01-2024,Adults & Health,Landmark Housing Group Ltd T/A Park Hotel.,Supported Other Accommodation - Private Contractors Payment,650,0,COMMERCIAL SUPPLIER
02-01-2024,Adults & Health,Landmark Housing Group Ltd T/A Park Hotel.,Supported Other Accommodation - Private Contractors Payment,665,0,COMMERCIAL SUPPLIER
02-01-2024,Adults & Health,Landmark Housing Group Ltd T/A Park Hotel.,Supported Other Accommodation - Private Contractors Payment,665,0,COMMERCIAL SUPPLIER
02-01-2024,Adults & Health,Landmark Housing Group Ltd T/A Park Hotel.,Supported Other Accommodation - Private Contractors Payment,665,0,COMMERCIAL SUPPLIER
02-01-2024,Adults & Health,Landmark Housing Group Ltd T/A Park Hotel.,Supported Other Accommodation - Private Contractors Payment,665,0,COMMERCIAL SUPPLIER
02-01-2024,Environment and Sustainable Transport,Ford Motor Company Ltd t/a PartsPlus,Highway Services,219.59,0,COMMERCIAL SUPPLIER
02-01-2024,RMS,Master Locking Systems Ltd,Building Alterations And Materials,111.88,0,COMMERCIAL SUPPLIER
02-01-2024,RMS,Master Locking Systems Ltd,Building Alterations And Materials,458.48,0,COMMERCIAL SUPPLIER
02-01-2024,RMS,Master Locking Systems Ltd,Building Alterations And Materials,55.94,0,COMMERCIAL SUPPLIER
02-01-2024,RMS,Master Locking Systems Ltd,Building Alterations And Materials,55.94,0,COMMERCIAL SUPPLIER
02-01-2024,RMS,Master Locking Systems Ltd,Building Alterations And Materials,458.48,0,COMMERCIAL SUPPLIER
02-01-2024,Adults & Health,London Black Women's Project,Private Contractors Payment - Other,8333.33,0,VENDOR
02-01-2024,Adults & Health,St Mark's Day Service,Daycare - Private Contractors Payment,1120,0,VENDOR
02-01-2024,Adults & Health,St Mark's Day Service,Daycare - Private Contractors Payment,1120,0,VENDOR
02-01-2024,Adults & Health,St Mark's Day Service,Daycare - Private Contractors Payment,1120,0,VENDOR
02-01-2024,Adults & Health,St Mark's Day Service,Daycare - Private Contractors Payment,1120,0,VENDOR
02-01-2024,Adults & Health,Headway East London,Daycare - Private Contractors Payment,218.88,0,COMMERCIAL SUPPLIER
02-01-2024,Adults & Health,Headway East London,Daycare - Private Contractors Payment,218.88,0,COMMERCIAL SUPPLIER
02-01-2024,Adults & Health,Headway East London,Payments To Voluntary Sector,113.4,0,COMMERCIAL SUPPLIER
02-01-2024,Adults & Health,Headway East London,Daycare - Private Contractors Payment,218.88,0,COMMERCIAL SUPPLIER
02-01-2024,Adults & Health,Headway East London,Payments To Voluntary Sector,113.4,0,COMMERCIAL SUPPLIER
02-01-2024,Adults & Health,Headway East London,Daycare - Private Contractors Payment,61.94,0,COMMERCIAL SUPPLIER
02-01-2024,Adults & Health,Headway East London,Payments To Voluntary Sector,113.4,0,COMMERCIAL SUPPLIER
02-01-2024,Adults & Health,Headway East London,Payments To Voluntary Sector,113.4,0,COMMERCIAL SUPPLIER
02-01-2024,Adults & Health,Headway East London,Daycare - Private Contractors Payment,109.44,0,COMMERCIAL SUPPLIER
02-01-2024,Adults & Health,Headway East London,Daycare - Private Contractors Payment,109.44,0,COMMERCIAL SUPPLIER
02-01-2024,Adults & Health,Headway East London,Daycare - Private Contractors Payment,109.44,0,COMMERCIAL SUPPLIER
02-01-2024,Adults & Health,Headway East London,Daycare - Private Contractors Payment,109.44,0,COMMERCIAL SUPPLIER
02-01-2024,Adults & Health,Headway East London,Daycare - Private Contractors Payment,109.44,0,COMMERCIAL SUPPLIER
02-01-2024,Adults & Health,Headway East London,Daycare - Private Contractors Payment,109.44,0,COMMERCIAL SUPPLIER
02-01-2024,Adults & Health,Headway East London,Daycare - Private Contractors Payment,109.44,0,COMMERCIAL SUPPLIER
02-01-2024,Adults & Health,Headway East London,Daycare - Private Contractors Payment,109.44,0,COMMERCIAL SUPPLIER
02-01-2024,Adults & Health,Headway East London,Daycare - Private Contractors Payment,218.88,0,COMMERCIAL SUPPLIER
02-01-2024,Adults & Health,Headway East London,Daycare - Private Contractors Payment,218.88,0,COMMERCIAL SUPPLIER
02-01-2024,Adults & Health,Headway East London,Daycare - Private Contractors Payment,312.44,0,COMMERCIAL SUPPLIER
02-01-2024,Adults & Health,Headway East London,Daycare - Private Contractors Payment,218.88,0,COMMERCIAL SUPPLIER
02-01-2024,Adults & Health,Headway East London,Daycare - Private Contractors Payment,218.88,0,COMMERCIAL SUPPLIER
02-01-2024,Adults & Health,Headway East London,Daycare - Private Contractors Payment,218.88,0,COMMERCIAL SUPPLIER
02-01-2024,Adults & Health,Headway East London,Daycare - Private Contractors Payment,218.88,0,COMMERCIAL SUPPLIER
02-01-2024,Adults & Health,Headway East London,Daycare - Private Contractors Payment,218.88,0,COMMERCIAL SUPPLIER
02-01-2024,Children and Young People,Goldline Executive Travel,Client Transport,1100,0,COMMERCIAL SUPPLIER
02-01-2024,Environment and Sustainable Transport,Sparshatt Truck & Van Ltd,Highway Services,47.2,0,COMMERCIAL SUPPLIER
02-01-2024,Environment and Sustainable Transport,Sparshatt Truck & Van Ltd,Highway Services,254.41,0,COMMERCIAL SUPPLIER
02-01-2024,RMS,Travis Perkins Trading Company Ltd,Building Alterations And Materials,7307.25,0,COMMERCIAL SUPPLIER
02-01-2024,RMS,Travis Perkins Trading Company Ltd,Building Alterations And Materials,210.6,0,COMMERCIAL SUPPLIER
02-01-2024,RMS,Travis Perkins Trading Company Ltd,Building Alterations And Materials,237.5,0,COMMERCIAL SUPPLIER
02-01-2024,RMS,Travis Perkins Trading Company Ltd,Building Alterations And Materials,55.17,0,COMMERCIAL SUPPLIER
02-01-2024,RMS,Travis Perkins Trading Company Ltd,Building Alterations And Materials,1468.75,0,COMMERCIAL SUPPLIER
02-01-2024,RMS,Travis Perkins Trading Company Ltd,Building Alterations And Materials,531.25,0,COMMERCIAL SUPPLIER
02-01-2024,RMS,Travis Perkins Trading Company Ltd,Building Alterations And Materials,240,0,COMMERCIAL SUPPLIER
02-01-2024,RMS,Travis Perkins Trading Company Ltd,Building Alterations And Materials,26,0,COMMERCIAL SUPPLIER
02-01-2024,RMS,Travis Perkins Trading Company Ltd,Building Alterations And Materials,375.01,0,COMMERCIAL SUPPLIER
02-01-2024,RMS,Travis Perkins Trading Company Ltd,Building Alterations And Materials,32.67,0,COMMERCIAL SUPPLIER
02-01-2024,RMS,Travis Perkins Trading Company Ltd,Building Alterations And Materials,34.47,0,COMMERCIAL SUPPLIER
02-01-2024,RMS,Travis Perkins Trading Company Ltd,Building Alterations And Materials,46.35,0,COMMERCIAL SUPPLIER
02-01-2024,RMS,Travis Perkins Trading Company Ltd,Building Alterations And Materials,119.85,0,COMMERCIAL SUPPLIER
02-01-2024,RMS,Travis Perkins Trading Company Ltd,Building Alterations And Materials,1063.63,0,COMMERCIAL SUPPLIER
02-01-2024,RMS,Travis Perkins Trading Company Ltd,Building Alterations And Materials,33.29,0,COMMERCIAL SUPPLIER
02-01-2024,RMS,Travis Perkins Trading Company Ltd,Building Alterations And Materials,2647.2,0,COMMERCIAL SUPPLIER
02-01-2024,RMS,Travis Perkins Trading Company Ltd,Building Alterations And Materials,237.5,0,COMMERCIAL SUPPLIER
02-01-2024,RMS,Travis Perkins Trading Company Ltd,Building Alterations And Materials,281.25,0,COMMERCIAL SUPPLIER
02-01-2024,RMS,Travis Perkins Trading Company Ltd,Building Alterations And Materials,562.5,0,COMMERCIAL SUPPLIER
02-01-2024,Environment and Sustainable Transport,Kainos Software Ltd,Consultancy Fees,3750,0,COMMERCIAL SUPPLIER
02-01-2024,Adults & Health,Sweettree Home Care Services,Home Care - Private Contractors Payment,269.5,0,NON COMMERCIAL SUPPLIER
02-01-2024,Adults & Health,Sweettree Home Care Services,Home Care - Private Contractors Payment,377.3,0,NON COMMERCIAL SUPPLIER
02-01-2024,Adults & Health,Sweettree Home Care Services,Home Care - Private Contractors Payment,377.3,0,NON COMMERCIAL SUPPLIER
02-01-2024,Adults & Health,Sweettree Home Care Services,Home Care - Private Contractors Payment,377.3,0,NON COMMERCIAL SUPPLIER
02-01-2024,Adults & Health,Sweettree Home Care Services,Daycare - Private Contractors Payment,107.8,0,NON COMMERCIAL SUPPLIER
02-01-2024,Adults & Health,Sweettree Home Care Services,Home Care - Private Contractors Payment,431.2,0,NON COMMERCIAL SUPPLIER
02-01-2024,Adults & Health,Sweettree Home Care Services,Home Care - Private Contractors Payment,431.2,0,NON COMMERCIAL SUPPLIER
02-01-2024,Adults & Health,Sweettree Home Care Services,Home Care - Private Contractors Payment,431.21,0,NON COMMERCIAL SUPPLIER
02-01-2024,Adults & Health,Sweettree Home Care Services,Home Care - Private Contractors Payment,431.2,0,NON COMMERCIAL SUPPLIER
02-01-2024,Adults & Health,New Horizons Broad Oak Limited,Daycare - Private Contractors Payment,462.24,0,COMMERCIAL SUPPLIER
02-01-2024,Adults & Health,New Horizons Broad Oak Limited,Daycare - Private Contractors Payment,462.24,0,COMMERCIAL SUPPLIER
02-01-2024,Adults & Health,New Horizons Broad Oak Limited,Daycare - Private Contractors Payment,384.48,0,COMMERCIAL SUPPLIER
02-01-2024,Adults & Health,New Horizons Broad Oak Limited,Daycare - Private Contractors Payment,540,0,COMMERCIAL SUPPLIER
02-01-2024,Adults & Health,Brightside Print & Design Ltd,Printing,455,0,COMMERCIAL SUPPLIER
02-01-2024,Children and Young People,Nhs Property Services Ltd,Rents Payable,5900.09,0,COMMERCIAL SUPPLIER
02-01-2024,Children and Young People,Nhs Property Services Ltd,Rents Payable,15232.87,0,COMMERCIAL SUPPLIER
02-01-2024,Children and Young People,Nhs Property Services Ltd,Rents Payable,304.73,0,COMMERCIAL SUPPLIER
02-01-2024,Children and Young People,Nhs Property Services Ltd,Rents Payable,7169.26,0,COMMERCIAL SUPPLIER
02-01-2024,Children and Young People,Nhs Property Services Ltd,Rents Payable,0.04,0,COMMERCIAL SUPPLIER
02-01-2024,Children and Young People,Nhs Property Services Ltd,Rents Payable,18423.18,0,COMMERCIAL SUPPLIER
02-01-2024,Children and Young People,Nhs Property Services Ltd,Rents Payable,398.5,0,COMMERCIAL SUPPLIER
02-01-2024,Resources,Newham Learning Partnership (Project Co) Limited,"Maintenance - Equipment, Furniture And Materials",343241.99,0,VENDOR
02-01-2024,Resources,Newham Learning Partnership (Project Co) Limited,"Maintenance - Equipment, Furniture And Materials",425901.45,0,VENDOR
02-01-2024,Resources,Building A Future (Newham Schools) Limited,"Maintenance - Equipment, Furniture And Materials",77505.14,0,VENDOR
02-01-2024,Resources,Building A Future (Newham Schools) Limited,"Maintenance - Equipment, Furniture And Materials",77432.53,0,VENDOR
02-01-2024,Resources,Building A Future (Newham Schools) Limited,"Maintenance - Equipment, Furniture And Materials",292527.89,0,VENDOR
02-01-2024,Adults & Health,Achieve Together Ltd,Daycare - Private Contractors Payment,194.88,0,NON COMMERCIAL SUPPLIER
02-01-2024,Adults & Health,Achieve Together Ltd,Daycare - Private Contractors Payment,194.88,0,NON COMMERCIAL SUPPLIER
02-01-2024,Adults & Health,Achieve Together Ltd,Daycare - Private Contractors Payment,194.88,0,NON COMMERCIAL SUPPLIER
02-01-2024,Adults & Health,Achieve Together Ltd,Daycare - Private Contractors Payment,194.79,0,NON COMMERCIAL SUPPLIER
02-01-2024,Adults & Health,Achieve Together Ltd,Daycare - Private Contractors Payment,278.4,0,NON COMMERCIAL SUPPLIER
02-01-2024,Adults & Health,Achieve Together Ltd,Daycare - Private Contractors Payment,278.4,0,NON COMMERCIAL SUPPLIER
02-01-2024,Adults & Health,Achieve Together Ltd,Daycare - Private Contractors Payment,278.4,0,NON COMMERCIAL SUPPLIER
02-01-2024,Adults & Health,Achieve Together Ltd,Daycare - Private Contractors Payment,272.8,0,NON COMMERCIAL SUPPLIER
02-01-2024,Adults & Health,Helping Hands Home Care,Home Care - Private Contractors Payment,1192.38,0,NON COMMERCIAL SUPPLIER
02-01-2024,Adults & Health,Helping Hands Home Care,Home Care - Private Contractors Payment,1195.04,0,NON COMMERCIAL SUPPLIER
02-01-2024,Adults & Health,Helping Hands Home Care,Home Care - Private Contractors Payment,1195.04,0,NON COMMERCIAL SUPPLIER
02-01-2024,Adults & Health,Helping Hands Home Care,Home Care - Private Contractors Payment,1195.04,0,NON COMMERCIAL SUPPLIER
02-01-2024,Environment and Sustainable Transport,Worldline IT Services UK Ltd Re Fuel Genie,Transport Fuel,833.87,0,COMMERCIAL SUPPLIER
02-01-2024,Housing Revenue Account,Worldline IT Services UK Ltd Re Fuel Genie,Transport Fuel,748.82,0,COMMERCIAL SUPPLIER
02-01-2024,Adults & Health,Ambient Support Ltd,Respite Care - Private Contractors Payment,3772,0,VENDOR
02-01-2024,Adults & Health,Ambient Support Ltd,Respite Care - Private Contractors Payment,1700,0,VENDOR
02-01-2024,Adults & Health,Ambient Support Ltd,Respite Care - Private Contractors Payment,480,0,VENDOR
02-01-2024,Adults & Health,Ambient Support Ltd,Respite Care - Private Contractors Payment,480,0,VENDOR
02-01-2024,Adults & Health,Ambient Support Ltd,Respite Care - Private Contractors Payment,480,0,VENDOR
02-01-2024,Dedicated Schools Budget,Personal Information - Redacted,Schools - Transfer Payment,1226,0,VENDOR
02-01-2024,Dedicated Schools Budget,Personal Information - Redacted,Payment To Other Establishments - General,32211,0,VENDOR
02-01-2024,Dedicated Schools Budget,Personal Information - Redacted,Payments To Voluntary Sector,4049,0,NON COMMERCIAL SUPPLIER
02-01-2024,Dedicated Schools Budget,Personal Information - Redacted,Schools - Transfer Payment,1520,0,VENDOR
02-01-2024,Children and Young People,Personal Information - Redacted,Legal Fees,550,0,LEGAL SERVICES
02-01-2024,Children and Young People,Personal Information - Redacted,Legal Fees,550,0,LEGAL SERVICES
02-01-2024,Housing Revenue Account,Personal Information - Redacted,Legal Fees,775,0,COMMERCIAL SUPPLIER
02-01-2024,Children and Young People,Personal Information - Redacted,Legal Fees,6315,0,COMMERCIAL SUPPLIER
02-01-2024,Adults & Health,Reed Employment Plc,Daycare - Private Contractors Payment,344.88,0,COMMERCIAL SUPPLIER
02-01-2024,Adults & Health,Reed Employment Plc,Daycare - Private Contractors Payment,555.64,0,COMMERCIAL SUPPLIER
02-01-2024,Adults & Health,Reed Employment Plc,Daycare - Private Contractors Payment,555.64,0,COMMERCIAL SUPPLIER
02-01-2024,Adults & Health,Reed Employment Plc,Daycare - Private Contractors Payment,555.64,0,COMMERCIAL SUPPLIER
02-01-2024,Adults & Health,Reed Employment Plc,Daycare - Private Contractors Payment,191.6,0,COMMERCIAL SUPPLIER
02-01-2024,Adults & Health,Reed Employment Plc,Daycare - Private Contractors Payment,191.6,0,COMMERCIAL SUPPLIER
02-01-2024,Adults & Health,Reed Employment Plc,Daycare - Private Contractors Payment,182.02,0,COMMERCIAL SUPPLIER
02-01-2024,Adults & Health,Reed Employment Plc,Daycare - Private Contractors Payment,191.6,0,COMMERCIAL SUPPLIER
02-01-2024,Adults & Health,Reed Employment Plc,Daycare - Private Contractors Payment,306.56,0,COMMERCIAL SUPPLIER
02-01-2024,Adults & Health,Reed Employment Plc,Daycare - Private Contractors Payment,306.56,0,COMMERCIAL SUPPLIER
02-01-2024,Adults & Health,Reed Employment Plc,Daycare - Private Contractors Payment,201.12,0,COMMERCIAL SUPPLIER
02-01-2024,Adults & Health,Reed Employment Plc,Daycare - Private Contractors Payment,306.56,0,COMMERCIAL SUPPLIER
02-01-2024,Children and Young People,Diamond Falls Ltd t/a Cookie's Island,Events,1455,0,COMMERCIAL SUPPLIER
02-01-2024,Adults & Health,Look Ahead Housing and Care Ltd,Long Term Support - Community: Supported Living,40285,0,COMMERCIAL SUPPLIER
02-01-2024,Adults & Health,Look Ahead Housing and Care Ltd,Long Term Support - Community: Supported Living,123411.75,0,COMMERCIAL SUPPLIER
02-01-2024,Adults & Health,Look Ahead Housing and Care Ltd,Long Term Support - Community: Supported Living,20230.5,0,COMMERCIAL SUPPLIER
02-01-2024,Adults & Health,Look Ahead Housing and Care Ltd,Long Term Support - Community: Supported Living,38167.75,0,COMMERCIAL SUPPLIER
02-01-2024,Adults & Health,Accedo Care Ltd,Home Care - Private Contractors Payment,383.81,0,VENDOR
02-01-2024,Adults & Health,Accedo Care Ltd,Home Care - Private Contractors Payment,880.78,0,VENDOR
02-01-2024,Adults & Health,Accedo Care Ltd,Home Care - Private Contractors Payment,880.78,0,VENDOR
02-01-2024,Adults & Health,Accedo Care Ltd,Home Care - Private Contractors Payment,880.78,0,VENDOR
02-01-2024,Adults & Health,Accedo Care Ltd,Home Care - Private Contractors Payment,281.1,0,VENDOR
02-01-2024,RMS,London Network for Pest Solutions Ltd,Private Contractors Payment - Other,500,0,COMMERCIAL SUPPLIER
02-01-2024,RMS,London Network for Pest Solutions Ltd,Private Contractors Payment - Other,500,0,COMMERCIAL SUPPLIER
02-01-2024,RMS,London Network for Pest Solutions Ltd,Private Contractors Payment - Other,500,0,COMMERCIAL SUPPLIER
02-01-2024,Children and Young People,Oxford Brookes University,Professional Services - General,850,0,COMMERCIAL SUPPLIER
02-01-2024,Adults & Health,Bluebird Care (Newham),Home Care - Private Contractors Payment,37.28,0,VENDOR
02-01-2024,Adults & Health,Bluebird Care (Newham),Home Care - Private Contractors Payment,37.28,0,VENDOR
02-01-2024,Adults & Health,Bluebird Care (Newham),Home Care - Private Contractors Payment,574.56,0,VENDOR
02-01-2024,Adults & Health,Bluebird Care (Newham),Daycare - Private Contractors Payment,130.48,0,VENDOR
02-01-2024,Adults & Health,Bluebird Care (Newham),Home Care - Private Contractors Payment,574.56,0,VENDOR
02-01-2024,Adults & Health,Bluebird Care (Newham),Daycare - Private Contractors Payment,130.48,0,VENDOR
02-01-2024,Adults & Health,Bluebird Care (Newham),Daycare - Private Contractors Payment,130.48,0,VENDOR
02-01-2024,Adults & Health,Bluebird Care (Newham),Home Care - Private Contractors Payment,601.2,0,VENDOR
02-01-2024,Adults & Health,Bluebird Care (Newham),Home Care - Private Contractors Payment,37.28,0,VENDOR
02-01-2024,Adults & Health,Bluebird Care (Newham),Daycare - Private Contractors Payment,130.48,0,VENDOR
02-01-2024,Adults & Health,Bluebird Care (Newham),Home Care - Private Contractors Payment,574.56,0,VENDOR
02-01-2024,Adults & Health,Bluebird Care (Newham),Home Care - Private Contractors Payment,37.28,0,VENDOR
02-01-2024,Children and Young People,Personal Information - Redacted,Legal Fees,550,0,COMMERCIAL SUPPLIER
02-01-2024,Marketing,Personal Information - Redacted,Events,5000,0,COMMERCIAL SUPPLIER
02-01-2024,Dedicated Schools Budget,Personal Information - Redacted,Professional Services - General,1332.5,0,COMMERCIAL SUPPLIER
02-01-2024,Children and Young People,Personal Information - Redacted,Section 17 - Private Contractors Payment,294,0,INDIVIDUALS
02-01-2024,Children and Young People,Personal Information - Redacted,Weekly Allowances - Private Contractors Payment,273,0,INDIVIDUALS
02-01-2024,Environment and Sustainable Transport,Riverside Truck Rental Ltd,"Purchase - Equipment, Furniture And Materials",778,0,COMMERCIAL SUPPLIER
02-01-2024,Adults & Health,House of Advocacy LTD.,"Purchase - Equipment, Furniture And Materials",674.45,0,COMMERCIAL SUPPLIER
02-01-2024,Adults & Health,Rainbow Homecare Ltd,Daycare - Private Contractors Payment,41.04,0,VENDOR
02-01-2024,Adults & Health,Rainbow Homecare Ltd,Daycare - Private Contractors Payment,41.04,0,VENDOR
02-01-2024,Adults & Health,Rainbow Homecare Ltd,Daycare - Private Contractors Payment,61.56,0,VENDOR
02-01-2024,Adults & Health,Rainbow Homecare Ltd,Home Care - Private Contractors Payment,20.52,0,VENDOR
02-01-2024,Adults & Health,Rainbow Homecare Ltd,Daycare - Private Contractors Payment,102.6,0,VENDOR
02-01-2024,Adults & Health,Rainbow Homecare Ltd,Daycare - Private Contractors Payment,61.56,0,VENDOR
02-01-2024,Adults & Health,Rainbow Homecare Ltd,Daycare - Private Contractors Payment,41.04,0,VENDOR
02-01-2024,Adults & Health,Rainbow Homecare Ltd,Daycare - Private Contractors Payment,41.04,0,VENDOR
02-01-2024,Adults & Health,Rainbow Homecare Ltd,Home Care - Private Contractors Payment,51.3,0,VENDOR
02-01-2024,Adults & Health,Rainbow Homecare Ltd,Home Care - Private Contractors Payment,41.04,0,VENDOR
02-01-2024,Adults & Health,Rainbow Homecare Ltd,Daycare - Private Contractors Payment,20.52,0,VENDOR
02-01-2024,Adults & Health,Rainbow Homecare Ltd,Home Care - Private Contractors Payment,20.52,0,VENDOR
02-01-2024,Adults & Health,Rainbow Homecare Ltd,Home Care - Private Contractors Payment,20.52,0,VENDOR
02-01-2024,Adults & Health,Rainbow Homecare Ltd,Daycare - Private Contractors Payment,41.04,0,VENDOR
02-01-2024,Adults & Health,Rainbow Homecare Ltd,Daycare - Private Contractors Payment,20.52,0,VENDOR
02-01-2024,Adults & Health,Rainbow Homecare Ltd,Home Care - Private Contractors Payment,20.52,0,VENDOR
02-01-2024,Adults & Health,Rainbow Homecare Ltd,Home Care - Private Contractors Payment,51.3,0,VENDOR
02-01-2024,Adults & Health,Rainbow Homecare Ltd,Daycare - Private Contractors Payment,41.04,0,VENDOR
02-01-2024,Adults & Health,Rainbow Homecare Ltd,Home Care - Private Contractors Payment,20.52,0,VENDOR
02-01-2024,Adults & Health,Rainbow Homecare Ltd,Home Care - Private Contractors Payment,30.78,0,VENDOR
02-01-2024,Adults & Health,Rainbow Homecare Ltd,Daycare - Private Contractors Payment,41.04,0,VENDOR
02-01-2024,Adults & Health,Rainbow Homecare Ltd,Home Care - Private Contractors Payment,41.04,0,VENDOR
02-01-2024,Adults & Health,Rainbow Homecare Ltd,Home Care - Private Contractors Payment,20.52,0,VENDOR
02-01-2024,Adults & Health,Rainbow Homecare Ltd,Home Care - Private Contractors Payment,20.52,0,VENDOR
02-01-2024,Adults & Health,Rainbow Homecare Ltd,Home Care - Private Contractors Payment,20.52,0,VENDOR
02-01-2024,Adults & Health,Rainbow Homecare Ltd,Daycare - Private Contractors Payment,41.04,0,VENDOR
02-01-2024,Adults & Health,Rainbow Homecare Ltd,Daycare - Private Contractors Payment,41.04,0,VENDOR
02-01-2024,Adults & Health,Rainbow Homecare Ltd,Home Care - Private Contractors Payment,20.52,0,VENDOR
02-01-2024,Adults & Health,Rainbow Homecare Ltd,Daycare - Private Contractors Payment,82.08,0,VENDOR
02-01-2024,Adults & Health,Rainbow Homecare Ltd,Home Care - Private Contractors Payment,20.52,0,VENDOR
02-01-2024,Adults & Health,Rainbow Homecare Ltd,Daycare - Private Contractors Payment,30.78,0,VENDOR
02-01-2024,Adults & Health,Rainbow Homecare Ltd,Daycare - Private Contractors Payment,41.04,0,VENDOR
02-01-2024,Adults & Health,Rainbow Homecare Ltd,Home Care - Private Contractors Payment,41.04,0,VENDOR
02-01-2024,Adults & Health,Rainbow Homecare Ltd,Home Care - Private Contractors Payment,20.52,0,VENDOR
02-01-2024,Adults & Health,Rainbow Homecare Ltd,Home Care - Private Contractors Payment,30.78,0,VENDOR
02-01-2024,Adults & Health,Rainbow Homecare Ltd,Daycare - Private Contractors Payment,30.78,0,VENDOR
02-01-2024,Adults & Health,Rainbow Homecare Ltd,Daycare - Private Contractors Payment,41.04,0,VENDOR
02-01-2024,Adults & Health,Rainbow Homecare Ltd,Daycare - Private Contractors Payment,20.52,0,VENDOR
02-01-2024,Adults & Health,Rainbow Homecare Ltd,Home Care - Private Contractors Payment,51.3,0,VENDOR
02-01-2024,Adults & Health,Rainbow Homecare Ltd,Home Care - Private Contractors Payment,41.04,0,VENDOR
02-01-2024,Adults & Health,Rainbow Homecare Ltd,Home Care - Private Contractors Payment,51.3,0,VENDOR
02-01-2024,Adults & Health,Rainbow Homecare Ltd,Home Care - Private Contractors Payment,41.04,0,VENDOR
02-01-2024,Adults & Health,Rainbow Homecare Ltd,Home Care - Private Contractors Payment,20.52,0,VENDOR
02-01-2024,Adults & Health,Rainbow Homecare Ltd,Daycare - Private Contractors Payment,102.6,0,VENDOR
02-01-2024,Adults & Health,Rainbow Homecare Ltd,Daycare - Private Contractors Payment,20.52,0,VENDOR
02-01-2024,Adults & Health,Rainbow Homecare Ltd,Home Care - Private Contractors Payment,20.52,0,VENDOR
02-01-2024,Adults & Health,Rainbow Homecare Ltd,Home Care - Private Contractors Payment,61.56,0,VENDOR
02-01-2024,Adults & Health,Rainbow Homecare Ltd,Daycare - Private Contractors Payment,41.04,0,VENDOR
02-01-2024,Adults & Health,Rainbow Homecare Ltd,Daycare - Private Contractors Payment,41.04,0,VENDOR
02-01-2024,Adults & Health,Rainbow Homecare Ltd,Daycare - Private Contractors Payment,41.04,0,VENDOR
02-01-2024,Adults & Health,Rainbow Homecare Ltd,Daycare - Private Contractors Payment,41.04,0,VENDOR
02-01-2024,Adults & Health,Rainbow Homecare Ltd,Daycare - Private Contractors Payment,61.56,0,VENDOR
02-01-2024,Adults & Health,Rainbow Homecare Ltd,Daycare - Private Contractors Payment,92.34,0,VENDOR
02-01-2024,Adults & Health,Rainbow Homecare Ltd,Daycare - Private Contractors Payment,41.04,0,VENDOR
02-01-2024,Adults & Health,Rainbow Homecare Ltd,Home Care - Private Contractors Payment,41.04,0,VENDOR
02-01-2024,Adults & Health,Rainbow Homecare Ltd,Home Care - Private Contractors Payment,20.52,0,VENDOR
02-01-2024,Adults & Health,Rainbow Homecare Ltd,Daycare - Private Contractors Payment,61.56,0,VENDOR
02-01-2024,Adults & Health,Rainbow Homecare Ltd,Home Care - Private Contractors Payment,51.3,0,VENDOR
02-01-2024,Adults & Health,Rainbow Homecare Ltd,Home Care - Private Contractors Payment,41.04,0,VENDOR
02-01-2024,Adults & Health,Rainbow Homecare Ltd,Home Care - Private Contractors Payment,20.52,0,VENDOR
02-01-2024,Adults & Health,Rainbow Homecare Ltd,Home Care - Private Contractors Payment,20.52,0,VENDOR
02-01-2024,Adults & Health,Rainbow Homecare Ltd,Home Care - Private Contractors Payment,20.52,0,VENDOR
02-01-2024,Adults & Health,Rainbow Homecare Ltd,Daycare - Private Contractors Payment,61.56,0,VENDOR
02-01-2024,Adults & Health,Rainbow Homecare Ltd,Daycare - Private Contractors Payment,41.04,0,VENDOR
02-01-2024,Adults & Health,Rainbow Homecare Ltd,Daycare - Private Contractors Payment,61.56,0,VENDOR
02-01-2024,Adults & Health,Rainbow Homecare Ltd,Daycare - Private Contractors Payment,82.08,0,VENDOR
02-01-2024,Adults & Health,Rainbow Homecare Ltd,Home Care - Private Contractors Payment,41.04,0,VENDOR
02-01-2024,Adults & Health,Rainbow Homecare Ltd,Daycare - Private Contractors Payment,41.04,0,VENDOR
02-01-2024,Adults & Health,Rainbow Homecare Ltd,Home Care - Private Contractors Payment,30.78,0,VENDOR
02-01-2024,Adults & Health,Rainbow Homecare Ltd,Daycare - Private Contractors Payment,41.04,0,VENDOR
02-01-2024,Adults & Health,Rainbow Homecare Ltd,Daycare - Private Contractors Payment,41.04,0,VENDOR
02-01-2024,Adults & Health,Rainbow Homecare Ltd,Daycare - Private Contractors Payment,71.82,0,VENDOR
02-01-2024,Adults & Health,Rainbow Homecare Ltd,Home Care - Private Contractors Payment,20.52,0,VENDOR
02-01-2024,Adults & Health,Rainbow Homecare Ltd,Home Care - Private Contractors Payment,20.52,0,VENDOR
02-01-2024,Adults & Health,Rainbow Homecare Ltd,Daycare - Private Contractors Payment,41.04,0,VENDOR
02-01-2024,Adults & Health,Rainbow Homecare Ltd,Home Care - Private Contractors Payment,61.56,0,VENDOR
02-01-2024,Adults & Health,Rainbow Homecare Ltd,Daycare - Private Contractors Payment,61.56,0,VENDOR
02-01-2024,Adults & Health,Rainbow Homecare Ltd,Home Care - Private Contractors Payment,92.34,0,VENDOR
02-01-2024,Adults & Health,Rainbow Homecare Ltd,Daycare - Private Contractors Payment,71.82,0,VENDOR
02-01-2024,Adults & Health,Rainbow Homecare Ltd,Daycare - Private Contractors Payment,61.56,0,VENDOR
02-01-2024,Adults & Health,Rainbow Homecare Ltd,Home Care - Private Contractors Payment,30.78,0,VENDOR
02-01-2024,Adults & Health,Rainbow Homecare Ltd,Home Care - Private Contractors Payment,20.52,0,VENDOR
02-01-2024,Adults & Health,Rainbow Homecare Ltd,Daycare - Private Contractors Payment,41.04,0,VENDOR
02-01-2024,Adults & Health,Rainbow Homecare Ltd,Daycare - Private Contractors Payment,41.04,0,VENDOR
02-01-2024,Adults & Health,Rainbow Homecare Ltd,Home Care - Private Contractors Payment,20.52,0,VENDOR
02-01-2024,Adults & Health,Rainbow Homecare Ltd,Home Care - Private Contractors Payment,246.24,0,VENDOR
02-01-2024,Adults & Health,Rainbow Homecare Ltd,Daycare - Private Contractors Payment,41.04,0,VENDOR
02-01-2024,Adults & Health,Rainbow Homecare Ltd,Home Care - Private Contractors Payment,41.04,0,VENDOR
02-01-2024,Adults & Health,Rainbow Homecare Ltd,Home Care - Private Contractors Payment,92.34,0,VENDOR
02-01-2024,Adults & Health,Rainbow Homecare Ltd,Home Care - Private Contractors Payment,41.04,0,VENDOR
02-01-2024,Adults & Health,Rainbow Homecare Ltd,Daycare - Private Contractors Payment,41.04,0,VENDOR
02-01-2024,Adults & Health,Rainbow Homecare Ltd,Daycare - Private Contractors Payment,92.34,0,VENDOR
02-01-2024,Adults & Health,Rainbow Homecare Ltd,Home Care - Private Contractors Payment,41.04,0,VENDOR
02-01-2024,Adults & Health,Rainbow Homecare Ltd,Daycare - Private Contractors Payment,20.52,0,VENDOR
02-01-2024,Adults & Health,Rainbow Homecare Ltd,Home Care - Private Contractors Payment,51.3,0,VENDOR
02-01-2024,Adults & Health,Rainbow Homecare Ltd,Daycare - Private Contractors Payment,61.56,0,VENDOR
02-01-2024,Adults & Health,Rainbow Homecare Ltd,Daycare - Private Contractors Payment,61.56,0,VENDOR
02-01-2024,Adults & Health,Rainbow Homecare Ltd,Home Care - Private Contractors Payment,30.78,0,VENDOR
02-01-2024,Adults & Health,Rainbow Homecare Ltd,Home Care - Private Contractors Payment,20.52,0,VENDOR
02-01-2024,Adults & Health,Rainbow Homecare Ltd,Home Care - Private Contractors Payment,61.56,0,VENDOR
02-01-2024,Adults & Health,Rainbow Homecare Ltd,Home Care - Private Contractors Payment,20.52,0,VENDOR
02-01-2024,Adults & Health,Rainbow Homecare Ltd,Home Care - Private Contractors Payment,41.04,0,VENDOR
02-01-2024,Adults & Health,Rainbow Homecare Ltd,Home Care - Private Contractors Payment,51.3,0,VENDOR
02-01-2024,Adults & Health,Rainbow Homecare Ltd,Home Care - Private Contractors Payment,20.52,0,VENDOR
02-01-2024,Adults & Health,Rainbow Homecare Ltd,Daycare - Private Contractors Payment,82.08,0,VENDOR
02-01-2024,Adults & Health,Rainbow Homecare Ltd,Daycare - Private Contractors Payment,41.04,0,VENDOR
02-01-2024,Adults & Health,Rainbow Homecare Ltd,Home Care - Private Contractors Payment,41.04,0,VENDOR
02-01-2024,Adults & Health,Rainbow Homecare Ltd,Home Care - Private Contractors Payment,20.52,0,VENDOR
02-01-2024,Adults & Health,Rainbow Homecare Ltd,Daycare - Private Contractors Payment,35.91,0,VENDOR
02-01-2024,Adults & Health,Rainbow Homecare Ltd,Home Care - Private Contractors Payment,20.52,0,VENDOR
02-01-2024,Adults & Health,Rainbow Homecare Ltd,Daycare - Private Contractors Payment,30.78,0,VENDOR
02-01-2024,Adults & Health,Rainbow Homecare Ltd,Home Care - Private Contractors Payment,61.56,0,VENDOR
02-01-2024,Adults & Health,Rainbow Homecare Ltd,Daycare - Private Contractors Payment,20.52,0,VENDOR
02-01-2024,Adults & Health,Rainbow Homecare Ltd,Home Care - Private Contractors Payment,20.52,0,VENDOR
02-01-2024,Adults & Health,Rainbow Homecare Ltd,Home Care - Private Contractors Payment,41.04,0,VENDOR
02-01-2024,Adults & Health,Rainbow Homecare Ltd,Home Care - Private Contractors Payment,20.52,0,VENDOR
02-01-2024,Adults & Health,Rainbow Homecare Ltd,Daycare - Private Contractors Payment,41.04,0,VENDOR
02-01-2024,Adults & Health,Rainbow Homecare Ltd,Home Care - Private Contractors Payment,30.78,0,VENDOR
02-01-2024,Adults & Health,Rainbow Homecare Ltd,Home Care - Private Contractors Payment,30.78,0,VENDOR
02-01-2024,Adults & Health,Rainbow Homecare Ltd,Home Care - Private Contractors Payment,61.56,0,VENDOR
02-01-2024,Adults & Health,Rainbow Homecare Ltd,Home Care - Private Contractors Payment,51.3,0,VENDOR
02-01-2024,Adults & Health,Rainbow Homecare Ltd,Daycare - Private Contractors Payment,92.34,0,VENDOR
02-01-2024,Adults & Health,Rainbow Homecare Ltd,Home Care - Private Contractors Payment,92.34,0,VENDOR
02-01-2024,Adults & Health,Rainbow Homecare Ltd,Daycare - Private Contractors Payment,71.82,0,VENDOR
02-01-2024,Adults & Health,Rainbow Homecare Ltd,Respite Care - Private Contractors Payment,51.3,0,VENDOR
02-01-2024,Adults & Health,Rainbow Homecare Ltd,Daycare - Private Contractors Payment,41.04,0,VENDOR
02-01-2024,Adults & Health,Rainbow Homecare Ltd,Home Care - Private Contractors Payment,41.04,0,VENDOR
02-01-2024,Adults & Health,Rainbow Homecare Ltd,Daycare - Private Contractors Payment,61.56,0,VENDOR
02-01-2024,Adults & Health,Rainbow Homecare Ltd,Home Care - Private Contractors Payment,61.56,0,VENDOR
02-01-2024,Adults & Health,Rainbow Homecare Ltd,Home Care - Private Contractors Payment,20.52,0,VENDOR
02-01-2024,Adults & Health,Rainbow Homecare Ltd,Daycare - Private Contractors Payment,61.56,0,VENDOR
02-01-2024,Adults & Health,Rainbow Homecare Ltd,Daycare - Private Contractors Payment,82.08,0,VENDOR
02-01-2024,Adults & Health,Rainbow Homecare Ltd,Daycare - Private Contractors Payment,41.04,0,VENDOR
02-01-2024,Adults & Health,Rainbow Homecare Ltd,Daycare - Private Contractors Payment,41.04,0,VENDOR
02-01-2024,Adults & Health,Rainbow Homecare Ltd,Daycare - Private Contractors Payment,20.52,0,VENDOR
02-01-2024,Adults & Health,Rainbow Homecare Ltd,Home Care - Private Contractors Payment,20.52,0,VENDOR
02-01-2024,Adults & Health,Rainbow Homecare Ltd,Daycare - Private Contractors Payment,61.56,0,VENDOR
02-01-2024,Adults & Health,Rainbow Homecare Ltd,Home Care - Private Contractors Payment,20.52,0,VENDOR
02-01-2024,Adults & Health,Rainbow Homecare Ltd,Home Care - Private Contractors Payment,41.04,0,VENDOR
02-01-2024,Adults & Health,Rainbow Homecare Ltd,Daycare - Private Contractors Payment,41.04,0,VENDOR
02-01-2024,Adults & Health,Rainbow Homecare Ltd,Daycare - Private Contractors Payment,41.04,0,VENDOR
02-01-2024,Adults & Health,Rainbow Homecare Ltd,Daycare - Private Contractors Payment,102.6,0,VENDOR
02-01-2024,Adults & Health,Rainbow Homecare Ltd,Daycare - Private Contractors Payment,82.08,0,VENDOR
02-01-2024,Adults & Health,Rainbow Homecare Ltd,Daycare - Private Contractors Payment,92.34,0,VENDOR
02-01-2024,Adults & Health,Rainbow Homecare Ltd,Daycare - Private Contractors Payment,20.52,0,VENDOR
02-01-2024,Adults & Health,Rainbow Homecare Ltd,Home Care - Private Contractors Payment,20.52,0,VENDOR
02-01-2024,Adults & Health,Rainbow Homecare Ltd,Daycare - Private Contractors Payment,41.04,0,VENDOR
02-01-2024,Adults & Health,Rainbow Homecare Ltd,Daycare - Private Contractors Payment,41.04,0,VENDOR
02-01-2024,Adults & Health,Rainbow Homecare Ltd,Daycare - Private Contractors Payment,41.04,0,VENDOR
02-01-2024,Adults & Health,Rainbow Homecare Ltd,Home Care - Private Contractors Payment,20.52,0,VENDOR
02-01-2024,Adults & Health,Rainbow Homecare Ltd,Daycare - Private Contractors Payment,102.6,0,VENDOR
02-01-2024,Adults & Health,Rainbow Homecare Ltd,Daycare - Private Contractors Payment,41.04,0,VENDOR
02-01-2024,Adults & Health,Rainbow Homecare Ltd,Home Care - Private Contractors Payment,61.56,0,VENDOR
02-01-2024,Adults & Health,Rainbow Homecare Ltd,Home Care - Private Contractors Payment,51.3,0,VENDOR
02-01-2024,Adults & Health,Rainbow Homecare Ltd,Daycare - Private Contractors Payment,41.04,0,VENDOR
02-01-2024,Adults & Health,Rainbow Homecare Ltd,Daycare - Private Contractors Payment,41.04,0,VENDOR
02-01-2024,Adults & Health,Rainbow Homecare Ltd,Home Care - Private Contractors Payment,51.3,0,VENDOR
02-01-2024,Adults & Health,Rainbow Homecare Ltd,Daycare - Private Contractors Payment,71.82,0,VENDOR
02-01-2024,Adults & Health,Rainbow Homecare Ltd,Home Care - Private Contractors Payment,51.3,0,VENDOR
02-01-2024,Adults & Health,Rainbow Homecare Ltd,Daycare - Private Contractors Payment,41.04,0,VENDOR
02-01-2024,Adults & Health,Rainbow Homecare Ltd,Home Care - Private Contractors Payment,20.52,0,VENDOR
02-01-2024,Adults & Health,Rainbow Homecare Ltd,Home Care - Private Contractors Payment,61.56,0,VENDOR
02-01-2024,Adults & Health,Rainbow Homecare Ltd,Home Care - Private Contractors Payment,41.04,0,VENDOR
02-01-2024,Adults & Health,Rainbow Homecare Ltd,Home Care - Private Contractors Payment,41.04,0,VENDOR
02-01-2024,Adults & Health,Rainbow Homecare Ltd,Home Care - Private Contractors Payment,20.52,0,VENDOR
02-01-2024,Adults & Health,Rainbow Homecare Ltd,Home Care - Private Contractors Payment,20.52,0,VENDOR
02-01-2024,Adults & Health,Rainbow Homecare Ltd,Daycare - Private Contractors Payment,61.56,0,VENDOR
02-01-2024,Adults & Health,Rainbow Homecare Ltd,Home Care - Private Contractors Payment,41.04,0,VENDOR
02-01-2024,Adults & Health,Rainbow Homecare Ltd,Daycare - Private Contractors Payment,41.04,0,VENDOR
02-01-2024,Adults & Health,Rainbow Homecare Ltd,Respite Care - Private Contractors Payment,51.3,0,VENDOR
02-01-2024,Adults & Health,Rainbow Homecare Ltd,Daycare - Private Contractors Payment,61.56,0,VENDOR
02-01-2024,Adults & Health,Rainbow Homecare Ltd,Daycare - Private Contractors Payment,41.04,0,VENDOR
02-01-2024,Adults & Health,Rainbow Homecare Ltd,Home Care - Private Contractors Payment,51.3,0,VENDOR
02-01-2024,Adults & Health,Rainbow Homecare Ltd,Home Care - Private Contractors Payment,20.52,0,VENDOR
02-01-2024,Adults & Health,Rainbow Homecare Ltd,Home Care - Private Contractors Payment,20.52,0,VENDOR
02-01-2024,Adults & Health,Rainbow Homecare Ltd,Daycare - Private Contractors Payment,61.56,0,VENDOR
02-01-2024,Adults & Health,Rainbow Homecare Ltd,Home Care - Private Contractors Payment,20.52,0,VENDOR
02-01-2024,Adults & Health,Rainbow Homecare Ltd,Home Care - Private Contractors Payment,61.56,0,VENDOR
02-01-2024,Adults & Health,Rainbow Homecare Ltd,Home Care - Private Contractors Payment,41.04,0,VENDOR
02-01-2024,Adults & Health,Rainbow Homecare Ltd,Home Care - Private Contractors Payment,20.52,0,VENDOR
02-01-2024,Adults & Health,Rainbow Homecare Ltd,Home Care - Private Contractors Payment,92.34,0,VENDOR
02-01-2024,Adults & Health,Rainbow Homecare Ltd,Respite Care - Private Contractors Payment,51.3,0,VENDOR
02-01-2024,Adults & Health,Rainbow Homecare Ltd,Home Care - Private Contractors Payment,20.52,0,VENDOR
02-01-2024,Adults & Health,Rainbow Homecare Ltd,Home Care - Private Contractors Payment,20.52,0,VENDOR
02-01-2024,Adults & Health,Rainbow Homecare Ltd,Home Care - Private Contractors Payment,61.56,0,VENDOR
02-01-2024,Adults & Health,Rainbow Homecare Ltd,Daycare - Private Contractors Payment,41.04,0,VENDOR
02-01-2024,Adults & Health,Rainbow Homecare Ltd,Daycare - Private Contractors Payment,82.08,0,VENDOR
02-01-2024,Adults & Health,Rainbow Homecare Ltd,Daycare - Private Contractors Payment,41.04,0,VENDOR
02-01-2024,Adults & Health,Rainbow Homecare Ltd,Daycare - Private Contractors Payment,41.04,0,VENDOR
02-01-2024,Adults & Health,Rainbow Homecare Ltd,Home Care - Private Contractors Payment,41.04,0,VENDOR
02-01-2024,Adults & Health,Rainbow Homecare Ltd,Home Care - Private Contractors Payment,41.04,0,VENDOR
02-01-2024,Adults & Health,Rainbow Homecare Ltd,Home Care - Private Contractors Payment,20.52,0,VENDOR
02-01-2024,Adults & Health,Rainbow Homecare Ltd,Daycare - Private Contractors Payment,41.04,0,VENDOR
02-01-2024,Adults & Health,Rainbow Homecare Ltd,Home Care - Private Contractors Payment,30.78,0,VENDOR
02-01-2024,Adults & Health,Rainbow Homecare Ltd,Home Care - Private Contractors Payment,20.52,0,VENDOR
02-01-2024,Adults & Health,Rainbow Homecare Ltd,Daycare - Private Contractors Payment,41.04,0,VENDOR
02-01-2024,Adults & Health,Rainbow Homecare Ltd,Home Care - Private Contractors Payment,61.56,0,VENDOR
02-01-2024,Adults & Health,Rainbow Homecare Ltd,Home Care - Private Contractors Payment,20.52,0,VENDOR
02-01-2024,Adults & Health,Rainbow Homecare Ltd,Home Care - Private Contractors Payment,20.52,0,VENDOR
02-01-2024,Adults & Health,Rainbow Homecare Ltd,Daycare - Private Contractors Payment,41.04,0,VENDOR
02-01-2024,Adults & Health,Rainbow Homecare Ltd,Home Care - Private Contractors Payment,20.52,0,VENDOR
02-01-2024,Adults & Health,Rainbow Homecare Ltd,Daycare - Private Contractors Payment,61.56,0,VENDOR
02-01-2024,Adults & Health,Rainbow Homecare Ltd,Daycare - Private Contractors Payment,30.78,0,VENDOR
02-01-2024,Adults & Health,Rainbow Homecare Ltd,Home Care - Private Contractors Payment,20.52,0,VENDOR
02-01-2024,Adults & Health,Rainbow Homecare Ltd,Home Care - Private Contractors Payment,41.04,0,VENDOR
02-01-2024,Adults & Health,Rainbow Homecare Ltd,Home Care - Private Contractors Payment,41.04,0,VENDOR
02-01-2024,Adults & Health,Rainbow Homecare Ltd,Daycare - Private Contractors Payment,41.04,0,VENDOR
02-01-2024,Adults & Health,Rainbow Homecare Ltd,Daycare - Private Contractors Payment,82.08,0,VENDOR
02-01-2024,Adults & Health,Rainbow Homecare Ltd,Daycare - Private Contractors Payment,41.04,0,VENDOR
02-01-2024,Adults & Health,Rainbow Homecare Ltd,Home Care - Private Contractors Payment,41.04,0,VENDOR
02-01-2024,Adults & Health,Rainbow Homecare Ltd,Daycare - Private Contractors Payment,82.08,0,VENDOR
02-01-2024,Adults & Health,Rainbow Homecare Ltd,Home Care - Private Contractors Payment,20.52,0,VENDOR
02-01-2024,Adults & Health,Rainbow Homecare Ltd,Home Care - Private Contractors Payment,41.04,0,VENDOR
02-01-2024,Adults & Health,Rainbow Homecare Ltd,Daycare - Private Contractors Payment,61.56,0,VENDOR
02-01-2024,Adults & Health,Rainbow Homecare Ltd,Home Care - Private Contractors Payment,61.56,0,VENDOR
02-01-2024,Adults & Health,Rainbow Homecare Ltd,Home Care - Private Contractors Payment,20.52,0,VENDOR
02-01-2024,Adults & Health,Rainbow Homecare Ltd,Daycare - Private Contractors Payment,41.04,0,VENDOR
02-01-2024,Adults & Health,Rainbow Homecare Ltd,Daycare - Private Contractors Payment,41.04,0,VENDOR
02-01-2024,Adults & Health,Rainbow Homecare Ltd,Respite Care - Private Contractors Payment,51.3,0,VENDOR
02-01-2024,Adults & Health,Rainbow Homecare Ltd,Home Care - Private Contractors Payment,20.52,0,VENDOR
02-01-2024,Adults & Health,Rainbow Homecare Ltd,Daycare - Private Contractors Payment,41.04,0,VENDOR
02-01-2024,Adults & Health,Rainbow Homecare Ltd,Daycare - Private Contractors Payment,41.04,0,VENDOR
02-01-2024,Adults & Health,Subco Trust,Daycare - Private Contractors Payment,120,0,VENDOR
02-01-2024,Adults & Health,Subco Trust,Payments To Voluntary Sector,10.4,0,VENDOR
02-01-2024,Adults & Health,Subco Trust,Daycare - Private Contractors Payment,67.6,0,VENDOR
02-01-2024,Adults & Health,Subco Trust,Daycare - Private Contractors Payment,114.4,0,VENDOR
02-01-2024,Adults & Health,Subco Trust,Daycare - Private Contractors Payment,70,0,VENDOR
02-01-2024,Adults & Health,Subco Trust,Payments To Voluntary Sector,5.2,0,VENDOR
02-01-2024,Adults & Health,Subco Trust,Payments To Voluntary Sector,5.2,0,VENDOR
02-01-2024,Adults & Health,Subco Trust,Daycare - Private Contractors Payment,145.6,0,VENDOR
02-01-2024,Adults & Health,Subco Trust,Daycare - Private Contractors Payment,156,0,VENDOR
02-01-2024,Adults & Health,Subco Trust,Payments To Voluntary Sector,10.4,0,VENDOR
02-01-2024,Adults & Health,Subco Trust,Daycare - Private Contractors Payment,124.8,0,VENDOR
02-01-2024,Adults & Health,Subco Trust,Daycare - Private Contractors Payment,72.8,0,VENDOR
02-01-2024,Adults & Health,Subco Trust,Payments To Voluntary Sector,5.2,0,VENDOR
02-01-2024,Adults & Health,Subco Trust,Payments To Voluntary Sector,10.4,0,VENDOR
02-01-2024,Adults & Health,Subco Trust,Daycare - Private Contractors Payment,114.4,0,VENDOR
02-01-2024,Adults & Health,Subco Trust,Daycare - Private Contractors Payment,75,0,VENDOR
02-01-2024,Adults & Health,Subco Trust,Payments To Voluntary Sector,15.6,0,VENDOR
02-01-2024,Adults & Health,Subco Trust,Daycare - Private Contractors Payment,41.6,0,VENDOR
02-01-2024,Adults & Health,Subco Trust,Payments To Voluntary Sector,5.2,0,VENDOR
02-01-2024,Adults & Health,Subco Trust,Payments To Voluntary Sector,5.2,0,VENDOR
02-01-2024,Adults & Health,Subco Trust,Daycare - Private Contractors Payment,70,0,VENDOR
02-01-2024,Adults & Health,Subco Trust,Payments To Voluntary Sector,10.4,0,VENDOR
02-01-2024,Adults & Health,Subco Trust,Daycare - Private Contractors Payment,67.6,0,VENDOR
02-01-2024,Adults & Health,Subco Trust,Payments To Voluntary Sector,10.4,0,VENDOR
02-01-2024,Adults & Health,Subco Trust,Daycare - Private Contractors Payment,67.6,0,VENDOR
02-01-2024,Adults & Health,Subco Trust,Payments To Voluntary Sector,5.2,0,VENDOR
02-01-2024,Adults & Health,Subco Trust,Daycare - Private Contractors Payment,124.8,0,VENDOR
02-01-2024,Adults & Health,Subco Trust,Daycare - Private Contractors Payment,104,0,VENDOR
02-01-2024,Adults & Health,Subco Trust,Payments To Voluntary Sector,10,0,VENDOR
02-01-2024,Adults & Health,Subco Trust,Payments To Voluntary Sector,5.2,0,VENDOR
02-01-2024,Adults & Health,Subco Trust,Daycare - Private Contractors Payment,124.8,0,VENDOR
02-01-2024,Adults & Health,Subco Trust,Payments To Voluntary Sector,10.4,0,VENDOR
02-01-2024,Adults & Health,Subco Trust,Daycare - Private Contractors Payment,124.8,0,VENDOR
02-01-2024,Adults & Health,Subco Trust,Payments To Voluntary Sector,10.4,0,VENDOR
02-01-2024,Adults & Health,Subco Trust,Payments To Voluntary Sector,10.4,0,VENDOR
02-01-2024,Adults & Health,Subco Trust,Daycare - Private Contractors Payment,145.6,0,VENDOR
02-01-2024,Adults & Health,Subco Trust,Daycare - Private Contractors Payment,67.6,0,VENDOR
02-01-2024,Adults & Health,Subco Trust,Payments To Voluntary Sector,5.2,0,VENDOR
02-01-2024,Adults & Health,Subco Trust,Payments To Voluntary Sector,5.2,0,VENDOR
02-01-2024,Adults & Health,Subco Trust,Daycare - Private Contractors Payment,120,0,VENDOR
02-01-2024,Adults & Health,Subco Trust,Payments To Voluntary Sector,5.2,0,VENDOR
02-01-2024,Adults & Health,Subco Trust,Payments To Voluntary Sector,20.8,0,VENDOR
02-01-2024,Adults & Health,Subco Trust,Payments To Voluntary Sector,5.2,0,VENDOR
02-01-2024,Adults & Health,Subco Trust,Daycare - Private Contractors Payment,83.2,0,VENDOR
02-01-2024,Adults & Health,Subco Trust,Daycare - Private Contractors Payment,70,0,VENDOR
02-01-2024,Adults & Health,Subco Trust,Daycare - Private Contractors Payment,124.8,0,VENDOR
02-01-2024,Adults & Health,Subco Trust,Daycare - Private Contractors Payment,104,0,VENDOR
02-01-2024,Adults & Health,Subco Trust,Daycare - Private Contractors Payment,291.2,0,VENDOR
02-01-2024,Adults & Health,Subco Trust,Daycare - Private Contractors Payment,67.6,0,VENDOR
02-01-2024,Adults & Health,Subco Trust,Payments To Voluntary Sector,5.2,0,VENDOR
02-01-2024,Adults & Health,Subco Trust,Payments To Voluntary Sector,10,0,VENDOR
02-01-2024,Adults & Health,Subco Trust,Daycare - Private Contractors Payment,120,0,VENDOR
02-01-2024,Adults & Health,Subco Trust,Daycare - Private Contractors Payment,124.8,0,VENDOR
02-01-2024,Adults & Health,Subco Trust,Daycare - Private Contractors Payment,124.8,0,VENDOR
02-01-2024,Adults & Health,Subco Trust,Payments To Voluntary Sector,10.4,0,VENDOR
02-01-2024,Adults & Health,Subco Trust,Payments To Voluntary Sector,10.4,0,VENDOR
02-01-2024,Adults & Health,Subco Trust,Daycare - Private Contractors Payment,67.6,0,VENDOR
02-01-2024,Adults & Health,Subco Trust,Payments To Voluntary Sector,5.2,0,VENDOR
02-01-2024,Adults & Health,Subco Trust,Payments To Voluntary Sector,10.4,0,VENDOR
02-01-2024,Adults & Health,Subco Trust,Payments To Voluntary Sector,5.2,0,VENDOR
02-01-2024,Adults & Health,Subco Trust,Daycare - Private Contractors Payment,145.6,0,VENDOR
02-01-2024,Adults & Health,Subco Trust,Payments To Voluntary Sector,20.8,0,VENDOR
02-01-2024,Adults & Health,Subco Trust,Payments To Voluntary Sector,5.2,0,VENDOR
02-01-2024,Adults & Health,Subco Trust,Daycare - Private Contractors Payment,83.2,0,VENDOR
02-01-2024,Adults & Health,Subco Trust,Daycare - Private Contractors Payment,72.8,0,VENDOR
02-01-2024,Adults & Health,Subco Trust,Daycare - Private Contractors Payment,156,0,VENDOR
02-01-2024,Adults & Health,Subco Trust,Daycare - Private Contractors Payment,57.2,0,VENDOR
02-01-2024,Adults & Health,Subco Trust,Payments To Voluntary Sector,5.2,0,VENDOR
02-01-2024,Adults & Health,Subco Trust,Daycare - Private Contractors Payment,83.2,0,VENDOR
02-01-2024,Adults & Health,Subco Trust,Payments To Voluntary Sector,10.4,0,VENDOR
02-01-2024,Adults & Health,Subco Trust,Daycare - Private Contractors Payment,57.2,0,VENDOR
02-01-2024,Adults & Health,Subco Trust,Daycare - Private Contractors Payment,120,0,VENDOR
02-01-2024,Adults & Health,Subco Trust,Daycare - Private Contractors Payment,291.2,0,VENDOR
02-01-2024,Adults & Health,Subco Trust,Payments To Voluntary Sector,10,0,VENDOR
02-01-2024,Adults & Health,Subco Trust,Daycare - Private Contractors Payment,124.8,0,VENDOR
02-01-2024,Adults & Health,Subco Trust,Payments To Voluntary Sector,10.4,0,VENDOR
02-01-2024,Adults & Health,Subco Trust,Daycare - Private Contractors Payment,67.6,0,VENDOR
02-01-2024,Adults & Health,Subco Trust,Payments To Voluntary Sector,5.2,0,VENDOR
02-01-2024,Adults & Health,Subco Trust,Payments To Voluntary Sector,10.4,0,VENDOR
02-01-2024,Adults & Health,Subco Trust,Daycare - Private Contractors Payment,124.8,0,VENDOR
02-01-2024,Adults & Health,Subco Trust,Daycare - Private Contractors Payment,145.6,0,VENDOR
02-01-2024,Adults & Health,Subco Trust,Daycare - Private Contractors Payment,120,0,VENDOR
02-01-2024,Adults & Health,Subco Trust,Payments To Voluntary Sector,5.2,0,VENDOR
02-01-2024,Adults & Health,Subco Trust,Daycare - Private Contractors Payment,41.6,0,VENDOR
02-01-2024,Adults & Health,Subco Trust,Payments To Voluntary Sector,5.2,0,VENDOR
02-01-2024,Adults & Health,Subco Trust,Payments To Voluntary Sector,20.8,0,VENDOR
02-01-2024,Adults & Health,Subco Trust,Payments To Voluntary Sector,5.2,0,VENDOR
02-01-2024,Adults & Health,Subco Trust,Payments To Voluntary Sector,5.2,0,VENDOR
02-01-2024,Adults & Health,Subco Trust,Daycare - Private Contractors Payment,83.2,0,VENDOR
02-01-2024,Adults & Health,Subco Trust,Payments To Voluntary Sector,15.6,0,VENDOR
02-01-2024,Adults & Health,Subco Trust,Daycare - Private Contractors Payment,70,0,VENDOR
02-01-2024,Adults & Health,Subco Trust,Daycare - Private Contractors Payment,114.4,0,VENDOR
02-01-2024,Adults & Health,Subco Trust,Daycare - Private Contractors Payment,75,0,VENDOR
02-01-2024,Adults & Health,Subco Trust,Payments To Voluntary Sector,10.4,0,VENDOR
02-01-2024,Adults & Health,Subco Trust,Daycare - Private Contractors Payment,62.4,0,VENDOR
02-01-2024,Adults & Health,Subco Trust,Daycare - Private Contractors Payment,114.4,0,VENDOR
02-01-2024,Adults & Health,Subco Trust,Payments To Voluntary Sector,10.4,0,VENDOR
02-01-2024,Adults & Health,Subco Trust,Payments To Voluntary Sector,15.6,0,VENDOR
02-01-2024,Adults & Health,Subco Trust,Daycare - Private Contractors Payment,41.6,0,VENDOR
02-01-2024,Adults & Health,Subco Trust,Daycare - Private Contractors Payment,62.4,0,VENDOR
02-01-2024,Adults & Health,Subco Trust,Payments To Voluntary Sector,10.4,0,VENDOR
02-01-2024,Adults & Health,Subco Trust,Daycare - Private Contractors Payment,67.6,0,VENDOR
02-01-2024,Adults & Health,Subco Trust,Daycare - Private Contractors Payment,75,0,VENDOR
02-01-2024,Adults & Health,Subco Trust,Daycare - Private Contractors Payment,145.6,0,VENDOR
02-01-2024,Adults & Health,Subco Trust,Payments To Voluntary Sector,5.2,0,VENDOR
02-01-2024,Adults & Health,Subco Trust,Payments To Voluntary Sector,5.2,0,VENDOR
02-01-2024,Adults & Health,Subco Trust,Payments To Voluntary Sector,5.2,0,VENDOR
02-01-2024,Adults & Health,Subco Trust,Payments To Voluntary Sector,10.4,0,VENDOR
02-01-2024,Adults & Health,Subco Trust,Daycare - Private Contractors Payment,124.8,0,VENDOR
02-01-2024,Adults & Health,Subco Trust,Daycare - Private Contractors Payment,67.6,0,VENDOR
02-01-2024,Adults & Health,Subco Trust,Payments To Voluntary Sector,5.2,0,VENDOR
02-01-2024,Adults & Health,Subco Trust,Daycare - Private Contractors Payment,104,0,VENDOR
02-01-2024,Adults & Health,Subco Trust,Payments To Voluntary Sector,10.4,0,VENDOR
02-01-2024,Adults & Health,Subco Trust,Payments To Voluntary Sector,10.4,0,VENDOR
02-01-2024,Adults & Health,Subco Trust,Daycare - Private Contractors Payment,67.6,0,VENDOR
02-01-2024,Adults & Health,Subco Trust,Payments To Voluntary Sector,5.2,0,VENDOR
02-01-2024,Adults & Health,Subco Trust,Daycare - Private Contractors Payment,145.6,0,VENDOR
02-01-2024,Adults & Health,Subco Trust,Daycare - Private Contractors Payment,156,0,VENDOR
02-01-2024,Adults & Health,Subco Trust,Payments To Voluntary Sector,5.2,0,VENDOR
02-01-2024,Adults & Health,Subco Trust,Payments To Voluntary Sector,5.2,0,VENDOR
02-01-2024,Adults & Health,Subco Trust,Payments To Voluntary Sector,10.4,0,VENDOR
02-01-2024,Adults & Health,Subco Trust,Payments To Voluntary Sector,5.2,0,VENDOR
02-01-2024,Adults & Health,Subco Trust,Daycare - Private Contractors Payment,72.8,0,VENDOR
02-01-2024,Adults & Health,Subco Trust,Daycare - Private Contractors Payment,57.2,0,VENDOR
02-01-2024,Adults & Health,Subco Trust,Daycare - Private Contractors Payment,83.2,0,VENDOR
02-01-2024,Adults & Health,Subco Trust,Daycare - Private Contractors Payment,57.2,0,VENDOR
02-01-2024,Adults & Health,Subco Trust,Daycare - Private Contractors Payment,291.2,0,VENDOR
02-01-2024,Adults & Health,Subco Trust,Payments To Voluntary Sector,10,0,VENDOR
02-01-2024,Adults & Health,Subco Trust,Daycare - Private Contractors Payment,120,0,VENDOR
02-01-2024,Adults & Health,Subco Trust,Payments To Voluntary Sector,15.6,0,VENDOR
02-01-2024,Adults & Health,Subco Trust,Daycare - Private Contractors Payment,291.2,0,VENDOR
02-01-2024,Adults & Health,Subco Trust,Payments To Voluntary Sector,10.4,0,VENDOR
02-01-2024,Adults & Health,Subco Trust,Daycare - Private Contractors Payment,67.6,0,VENDOR
02-01-2024,Adults & Health,Subco Trust,Payments To Voluntary Sector,5.2,0,VENDOR
02-01-2024,Adults & Health,Subco Trust,Daycare - Private Contractors Payment,57.2,0,VENDOR
02-01-2024,Adults & Health,Subco Trust,Daycare - Private Contractors Payment,75,0,VENDOR
02-01-2024,Adults & Health,Subco Trust,Daycare - Private Contractors Payment,41.6,0,VENDOR
02-01-2024,Adults & Health,Subco Trust,Payments To Voluntary Sector,5.2,0,VENDOR
02-01-2024,Adults & Health,Subco Trust,Payments To Voluntary Sector,5.2,0,VENDOR
02-01-2024,Adults & Health,Subco Trust,Daycare - Private Contractors Payment,124.8,0,VENDOR
02-01-2024,Adults & Health,Subco Trust,Payments To Voluntary Sector,10.4,0,VENDOR
02-01-2024,Adults & Health,Subco Trust,Daycare - Private Contractors Payment,104,0,VENDOR
02-01-2024,Adults & Health,Subco Trust,Payments To Voluntary Sector,5.2,0,VENDOR
02-01-2024,Adults & Health,Subco Trust,Daycare - Private Contractors Payment,83.2,0,VENDOR
02-01-2024,Adults & Health,Subco Trust,Daycare - Private Contractors Payment,145.6,0,VENDOR
02-01-2024,Adults & Health,Subco Trust,Daycare - Private Contractors Payment,83.2,0,VENDOR
02-01-2024,Adults & Health,Subco Trust,Payments To Voluntary Sector,10.4,0,VENDOR
02-01-2024,Adults & Health,Subco Trust,Payments To Voluntary Sector,5.2,0,VENDOR
02-01-2024,Adults & Health,Subco Trust,Daycare - Private Contractors Payment,67.6,0,VENDOR
02-01-2024,Adults & Health,Subco Trust,Payments To Voluntary Sector,5.2,0,VENDOR
02-01-2024,Adults & Health,Subco Trust,Daycare - Private Contractors Payment,62.4,0,VENDOR
02-01-2024,Adults & Health,Subco Trust,Payments To Voluntary Sector,20.8,0,VENDOR
02-01-2024,Adults & Health,Subco Trust,Payments To Voluntary Sector,5.2,0,VENDOR
02-01-2024,Adults & Health,Subco Trust,Payments To Voluntary Sector,10.4,0,VENDOR
02-01-2024,Adults & Health,Subco Trust,Daycare - Private Contractors Payment,57.2,0,VENDOR
02-01-2024,Adults & Health,Subco Trust,Payments To Voluntary Sector,5.2,0,VENDOR
02-01-2024,Adults & Health,Subco Trust,Payments To Voluntary Sector,5.2,0,VENDOR
02-01-2024,Adults & Health,Subco Trust,Daycare - Private Contractors Payment,62.4,0,VENDOR
02-01-2024,Adults & Health,Subco Trust,Payments To Voluntary Sector,10.4,0,VENDOR
02-01-2024,Adults & Health,Subco Trust,Daycare - Private Contractors Payment,145.6,0,VENDOR
02-01-2024,Adults & Health,Subco Trust,Daycare - Private Contractors Payment,156,0,VENDOR
02-01-2024,Adults & Health,Subco Trust,Payments To Voluntary Sector,5.2,0,VENDOR
02-01-2024,Adults & Health,Subco Trust,Daycare - Private Contractors Payment,57.2,0,VENDOR
02-01-2024,Adults & Health,Subco Trust,Daycare - Private Contractors Payment,72.8,0,VENDOR
02-01-2024,Adults & Health,Subco Trust,Daycare - Private Contractors Payment,83.2,0,VENDOR
02-01-2024,Adults & Health,Subco Trust,Payments To Voluntary Sector,10.4,0,VENDOR
02-01-2024,Adults & Health,Subco Trust,Daycare - Private Contractors Payment,57.2,0,VENDOR
02-01-2024,Adults & Health,Subco Trust,Payments To Voluntary Sector,5.2,0,VENDOR
02-01-2024,Adults & Health,Subco Trust,Payments To Voluntary Sector,10.4,0,VENDOR
02-01-2024,Adults & Health,Our TLC Ltd,Home Care - Private Contractors Payment,453.6,0,NON COMMERCIAL SUPPLIER
02-01-2024,Adults & Health,Our TLC Ltd,Home Care - Private Contractors Payment,453.6,0,NON COMMERCIAL SUPPLIER
02-01-2024,Adults & Health,Our TLC Ltd,Home Care - Private Contractors Payment,453.6,0,NON COMMERCIAL SUPPLIER
02-01-2024,Adults & Health,Our TLC Ltd,Home Care - Private Contractors Payment,453.6,0,NON COMMERCIAL SUPPLIER
02-01-2024,Children and Young People,Personal Information - Redacted,Membership And Subscriptions,397.9,0,INDIVIDUALS
02-01-2024,Children and Young People,Personal Information - Redacted,Membership And Subscriptions,500,0,INDIVIDUALS
02-01-2024,Children and Young People,Personal Information - Redacted,Membership And Subscriptions,529.49,0,INDIVIDUALS
02-01-2024,Resources,Personal Information - Redacted,Miscellaneous Expenses,5400,0,INDIVIDUALS
02-01-2024,Children and Young People,Gordon Care Services Limited,Additional Placements - Third Party,903.06,0,COMMERCIAL SUPPLIER
02-01-2024,Children and Young People,Gordon Care Services Limited,Additional Placements - Third Party,1220,0,COMMERCIAL SUPPLIER
02-01-2024,Children and Young People,PFS Prepaid Financial Services,Weekly Allowances - Private Contractors Payment,456,0,INDIVIDUALS
02-01-2024,Children and Young People,PFS Prepaid Financial Services,Weekly Allowances - Private Contractors Payment,285,0,INDIVIDUALS
02-01-2024,Children and Young People,PFS Prepaid Financial Services,Bed & Breakfast - Private Contractors Payment,2650,0,INDIVIDUALS
02-01-2024,Children and Young People,PFS Prepaid Financial Services,Weekly Allowances - Private Contractors Payment,376.4,0,INDIVIDUALS
02-01-2024,Children and Young People,PFS Prepaid Financial Services,Client Expenses - Third Party,1059.72,0,INDIVIDUALS
02-01-2024,Children and Young People,PFS Prepaid Financial Services,Weekly Allowances - Private Contractors Payment,540,0,INDIVIDUALS
02-01-2024,Children and Young People,PFS Prepaid Financial Services,Weekly Allowances - Private Contractors Payment,288,0,INDIVIDUALS
02-01-2024,Resources,Personal Information - Redacted,Miscellaneous Expenses,3200,0,INDIVIDUALS
02-01-2024,Children and Young People,PFS Prepaid Financial Services,Equipment & Adaptation - Private Contractors Payment,258.63,0,INDIVIDUALS
02-01-2024,Children and Young People,PFS Prepaid Financial Services,Weekly Allowances - Private Contractors Payment,288,0,INDIVIDUALS
02-01-2024,Children and Young People,PFS Prepaid Financial Services,Weekly Allowances - Private Contractors Payment,285,0,INDIVIDUALS
02-01-2024,Children and Young People,PFS Prepaid Financial Services,Weekly Allowances - Private Contractors Payment,1742,0,INDIVIDUALS
02-01-2024,Children and Young People,Gordon Care Services Limited,Additional Placements - Third Party,903.06,0,COMMERCIAL SUPPLIER
02-01-2024,Children and Young People,Gordon Care Services Limited,Additional Placements - Third Party,903.06,0,COMMERCIAL SUPPLIER
02-01-2024,Children and Young People,Gordon Care Services Limited,Additional Placements - Third Party,903.06,0,COMMERCIAL SUPPLIER
02-01-2024,Children and Young People,PFS Prepaid Financial Services,Equipment & Adaptation - Private Contractors Payment,1500,0,INDIVIDUALS
02-01-2024,Children and Young People,PFS Prepaid Financial Services,Client Expenses - Third Party,2450,0,INDIVIDUALS
02-01-2024,Children and Young People,PFS Prepaid Financial Services,Client Expenses - Third Party,3000,0,INDIVIDUALS
02-01-2024,Resources,Personal Information - Redacted,Miscellaneous Expenses,13198.32,0,INDIVIDUALS
02-01-2024,Children and Young People,PFS Prepaid Financial Services,Weekly Allowances - Private Contractors Payment,300,0,INDIVIDUALS
02-01-2024,Children and Young People,PFS Prepaid Financial Services,Client Expenses - Third Party,500,0,INDIVIDUALS
02-01-2024,Housing Revenue Account,Personal Information - Redacted,Legal Fees,1000,0,INDIVIDUALS
02-01-2024,Children and Young People,Leyton House Community Care Ltd,Membership And Subscriptions,380,0,COMMERCIAL SUPPLIER
02-01-2024,Children and Young People,Care London Ltd,Membership And Subscriptions,566.5,0,VENDOR
02-01-2024,Children and Young People,PFS Prepaid Financial Services,Client Expenses - Third Party,499.99,0,INDIVIDUALS
02-01-2024,Children and Young People,PFS Prepaid Financial Services,Client Expenses - Third Party,1178,0,INDIVIDUALS
02-01-2024,Children and Young People,PFS Prepaid Financial Services,Weekly Allowances - Private Contractors Payment,285,0,INDIVIDUALS
02-01-2024,Children and Young People,Wellcare Fostering Services Ltd,Equipment & Adaptation - Private Contractors Payment,961,0,COMMERCIAL SUPPLIER
02-01-2024,Children and Young People,Gordon Care Services Limited,Residential Placements - Private Contractors Payment,603.43,0,COMMERCIAL SUPPLIER
02-01-2024,Children and Young People,Gordon Care Services Limited,Residential Placements - Private Contractors Payment,1365,0,COMMERCIAL SUPPLIER
02-01-2024,Children and Young People,Gordon Care Services Limited,Residential Placements - Private Contractors Payment,1408,0,COMMERCIAL SUPPLIER
02-01-2024,Children and Young People,Gordon Care Services Limited,Residential Placements - Private Contractors Payment,804.57,0,COMMERCIAL SUPPLIER
02-01-2024,Children and Young People,Gordon Care Services Limited,Residential Placements - Private Contractors Payment,1365,0,COMMERCIAL SUPPLIER
02-01-2024,Children and Young People,Gordon Care Services Limited,Residential Placements - Private Contractors Payment,3185,0,COMMERCIAL SUPPLIER
03-01-2024,Dedicated Schools Budget,Personal Information - Redacted,Payments To Voluntary Sector,1143,0,INDIVIDUALS
03-01-2024,Dedicated Schools Budget,Personal Information - Redacted,Payments To Voluntary Sector,5204,0,VENDOR
03-01-2024,RMS,Personal Information - Redacted,Compensation,500,0,INDIVIDUALS
02-01-2024,Housing Revenue Account,ABS Lawyers LTD,Legal Fees,14000,0,COMMERCIAL SUPPLIER
02-01-2024,Housing Revenue Account,Sandstone Legal Limited,Legal Fees,1300,0,NON COMMERCIAL SUPPLIER
03-01-2024,RMS,Personal Information - Redacted,Compensation,500,0,INDIVIDUALS
02-01-2024,Inclusive Economy & Housing,Liberty Solicitors,Legal Fees,5180.5,0,NON COMMERCIAL SUPPLIER
02-01-2024,Adults & Health,Sense,Daycare - Private Contractors Payment,257.84,0,VOLUNTARY ORGANISATION
02-01-2024,Adults & Health,Sense,Daycare - Private Contractors Payment,257.84,0,VOLUNTARY ORGANISATION
02-01-2024,Adults & Health,Sense,Daycare - Private Contractors Payment,257.84,0,VOLUNTARY ORGANISATION
02-01-2024,Adults & Health,Sense,Daycare - Private Contractors Payment,257.84,0,VOLUNTARY ORGANISATION
02-01-2024,Adults & Health,Sense,Daycare - Private Contractors Payment,113.19,0,VOLUNTARY ORGANISATION
02-01-2024,oneSource,Panther Print & Design Ltd,Printing,520,0,VENDOR
02-01-2024,oneSource,Panther Print & Design Ltd,Printing,690,0,VENDOR
02-01-2024,Adults & Health,Supreme Home Care Agency,Home Care - Private Contractors Payment,215.46,0,VENDOR
02-01-2024,Adults & Health,Supreme Home Care Agency,Home Care - Private Contractors Payment,179.55,0,VENDOR
02-01-2024,Adults & Health,Supreme Home Care Agency,Daycare - Private Contractors Payment,61.56,0,VENDOR
02-01-2024,Adults & Health,Supreme Home Care Agency,Home Care - Private Contractors Payment,251.37,0,VENDOR
02-01-2024,Adults & Health,Supreme Home Care Agency,Home Care - Private Contractors Payment,20.52,0,VENDOR
02-01-2024,Adults & Health,Supreme Home Care Agency,Home Care - Private Contractors Payment,174.42,0,VENDOR
02-01-2024,Adults & Health,Supreme Home Care Agency,Home Care - Private Contractors Payment,41.04,0,VENDOR
02-01-2024,Adults & Health,Supreme Home Care Agency,Home Care - Private Contractors Payment,718.2,0,VENDOR
02-01-2024,Adults & Health,Supreme Home Care Agency,Home Care - Private Contractors Payment,323.19,0,VENDOR
02-01-2024,Adults & Health,Supreme Home Care Agency,Home Care - Private Contractors Payment,41.04,0,VENDOR
02-01-2024,Adults & Health,Supreme Home Care Agency,Home Care - Private Contractors Payment,20.52,0,VENDOR
02-01-2024,Adults & Health,Supreme Home Care Agency,Home Care - Private Contractors Payment,718.2,0,VENDOR
02-01-2024,Adults & Health,Supreme Home Care Agency,Daycare - Private Contractors Payment,123.12,0,VENDOR
02-01-2024,Adults & Health,Supreme Home Care Agency,Home Care - Private Contractors Payment,71.82,0,VENDOR
02-01-2024,Adults & Health,Supreme Home Care Agency,Home Care - Private Contractors Payment,646.38,0,VENDOR
02-01-2024,Adults & Health,Supreme Home Care Agency,Home Care - Private Contractors Payment,430.92,0,VENDOR
02-01-2024,Adults & Health,Supreme Home Care Agency,Daycare - Private Contractors Payment,30.78,0,VENDOR
02-01-2024,Adults & Health,Supreme Home Care Agency,Home Care - Private Contractors Payment,323.19,0,VENDOR
02-01-2024,Adults & Health,Supreme Home Care Agency,Home Care - Private Contractors Payment,215.46,0,VENDOR
02-01-2024,Adults & Health,Supreme Home Care Agency,Home Care - Private Contractors Payment,251.37,0,VENDOR
02-01-2024,Adults & Health,Supreme Home Care Agency,Home Care - Private Contractors Payment,646.38,0,VENDOR
02-01-2024,Adults & Health,Supreme Home Care Agency,Home Care - Private Contractors Payment,41.04,0,VENDOR
02-01-2024,Adults & Health,Supreme Home Care Agency,Home Care - Private Contractors Payment,251.37,0,VENDOR
02-01-2024,Adults & Health,Supreme Home Care Agency,Home Care - Private Contractors Payment,754.11,0,VENDOR
02-01-2024,Adults & Health,Supreme Home Care Agency,Home Care - Private Contractors Payment,20.52,0,VENDOR
02-01-2024,Adults & Health,Supreme Home Care Agency,Daycare - Private Contractors Payment,41.04,0,VENDOR
02-01-2024,Adults & Health,Supreme Home Care Agency,Home Care - Private Contractors Payment,610.47,0,VENDOR
02-01-2024,Adults & Health,Supreme Home Care Agency,Home Care - Private Contractors Payment,359.1,0,VENDOR
02-01-2024,Adults & Health,Supreme Home Care Agency,Home Care - Private Contractors Payment,20.52,0,VENDOR
02-01-2024,Adults & Health,Supreme Home Care Agency,Daycare - Private Contractors Payment,20.52,0,VENDOR
02-01-2024,Adults & Health,Supreme Home Care Agency,Home Care - Private Contractors Payment,179.55,0,VENDOR
02-01-2024,Adults & Health,Supreme Home Care Agency,Home Care - Private Contractors Payment,107.73,0,VENDOR
02-01-2024,Adults & Health,Supreme Home Care Agency,Home Care - Private Contractors Payment,20.52,0,VENDOR
02-01-2024,Adults & Health,Supreme Home Care Agency,Home Care - Private Contractors Payment,41.04,0,VENDOR
02-01-2024,Adults & Health,Supreme Home Care Agency,Home Care - Private Contractors Payment,251.37,0,VENDOR
02-01-2024,Adults & Health,Supreme Home Care Agency,Home Care - Private Contractors Payment,123.12,0,VENDOR
02-01-2024,Adults & Health,Supreme Home Care Agency,Daycare - Private Contractors Payment,35.91,0,VENDOR
02-01-2024,Adults & Health,Supreme Home Care Agency,Home Care - Private Contractors Payment,143.64,0,VENDOR
02-01-2024,Adults & Health,Supreme Home Care Agency,Respite Care - Private Contractors Payment,82.08,0,VENDOR
02-01-2024,Adults & Health,Supreme Home Care Agency,Home Care - Private Contractors Payment,123.12,0,VENDOR
02-01-2024,Adults & Health,Supreme Home Care Agency,Home Care - Private Contractors Payment,41.04,0,VENDOR
02-01-2024,Adults & Health,Supreme Home Care Agency,Home Care - Private Contractors Payment,251.37,0,VENDOR
02-01-2024,Adults & Health,Supreme Home Care Agency,Home Care - Private Contractors Payment,251.37,0,VENDOR
02-01-2024,Adults & Health,Supreme Home Care Agency,Home Care - Private Contractors Payment,10.26,0,VENDOR
02-01-2024,Adults & Health,Supreme Home Care Agency,Daycare - Private Contractors Payment,30.78,0,VENDOR
02-01-2024,Adults & Health,Supreme Home Care Agency,Daycare - Private Contractors Payment,35.91,0,VENDOR
02-01-2024,Adults & Health,Supreme Home Care Agency,Daycare - Private Contractors Payment,61.56,0,VENDOR
02-01-2024,Adults & Health,Supreme Home Care Agency,Home Care - Private Contractors Payment,128.25,0,VENDOR
02-01-2024,Adults & Health,Supreme Home Care Agency,Daycare - Private Contractors Payment,123.12,0,VENDOR
02-01-2024,Adults & Health,Supreme Home Care Agency,Home Care - Private Contractors Payment,646.38,0,VENDOR
02-01-2024,Adults & Health,Supreme Home Care Agency,Home Care - Private Contractors Payment,20.52,0,VENDOR
02-01-2024,Adults & Health,Supreme Home Care Agency,Home Care - Private Contractors Payment,810.54,0,VENDOR
02-01-2024,Adults & Health,Supreme Home Care Agency,Respite Care - Private Contractors Payment,82.08,0,VENDOR
02-01-2024,Adults & Health,Supreme Home Care Agency,Home Care - Private Contractors Payment,287.28,0,VENDOR
02-01-2024,Adults & Health,Supreme Home Care Agency,Home Care - Private Contractors Payment,107.73,0,VENDOR
02-01-2024,Adults & Health,Supreme Home Care Agency,Home Care - Private Contractors Payment,179.55,0,VENDOR
02-01-2024,Adults & Health,Supreme Home Care Agency,Home Care - Private Contractors Payment,610.47,0,VENDOR
02-01-2024,Adults & Health,Supreme Home Care Agency,Daycare - Private Contractors Payment,41.04,0,VENDOR
02-01-2024,Adults & Health,Supreme Home Care Agency,Home Care - Private Contractors Payment,41.04,0,VENDOR
02-01-2024,Adults & Health,Supreme Home Care Agency,Home Care - Private Contractors Payment,215.46,0,VENDOR
02-01-2024,Adults & Health,Supreme Home Care Agency,Home Care - Private Contractors Payment,41.04,0,VENDOR
02-01-2024,Adults & Health,Supreme Home Care Agency,Home Care - Private Contractors Payment,20.52,0,VENDOR
02-01-2024,Adults & Health,Supreme Home Care Agency,Home Care - Private Contractors Payment,323.19,0,VENDOR
02-01-2024,Adults & Health,Supreme Home Care Agency,Home Care - Private Contractors Payment,287.28,0,VENDOR
02-01-2024,Adults & Health,Supreme Home Care Agency,Respite Care - Private Contractors Payment,82.08,0,VENDOR
02-01-2024,Adults & Health,Supreme Home Care Agency,Daycare - Private Contractors Payment,61.56,0,VENDOR
02-01-2024,Adults & Health,Supreme Home Care Agency,Home Care - Private Contractors Payment,348.84,0,VENDOR
02-01-2024,Adults & Health,Supreme Home Care Agency,Home Care - Private Contractors Payment,395.01,0,VENDOR
02-01-2024,Adults & Health,Supreme Home Care Agency,Home Care - Private Contractors Payment,215.46,0,VENDOR
02-01-2024,Adults & Health,Supreme Home Care Agency,Home Care - Private Contractors Payment,123.12,0,VENDOR
02-01-2024,Adults & Health,Supreme Home Care Agency,Home Care - Private Contractors Payment,41.04,0,VENDOR
02-01-2024,Adults & Health,Supreme Home Care Agency,Daycare - Private Contractors Payment,20.52,0,VENDOR
02-01-2024,Adults & Health,Supreme Home Care Agency,Home Care - Private Contractors Payment,20.52,0,VENDOR
02-01-2024,Adults & Health,Supreme Home Care Agency,Home Care - Private Contractors Payment,251.37,0,VENDOR
02-01-2024,Adults & Health,Supreme Home Care Agency,Home Care - Private Contractors Payment,215.46,0,VENDOR
02-01-2024,Adults & Health,Supreme Home Care Agency,Home Care - Private Contractors Payment,41.04,0,VENDOR
02-01-2024,Adults & Health,Supreme Home Care Agency,Home Care - Private Contractors Payment,179.55,0,VENDOR
02-01-2024,Adults & Health,Supreme Home Care Agency,Home Care - Private Contractors Payment,67.06,0,VENDOR
02-01-2024,Adults & Health,Supreme Home Care Agency,Home Care - Private Contractors Payment,41.04,0,VENDOR
02-01-2024,Adults & Health,Supreme Home Care Agency,Home Care - Private Contractors Payment,61.56,0,VENDOR
02-01-2024,Adults & Health,Supreme Home Care Agency,Home Care - Private Contractors Payment,143.64,0,VENDOR
02-01-2024,Adults & Health,Supreme Home Care Agency,Home Care - Private Contractors Payment,143.64,0,VENDOR
02-01-2024,Adults & Health,Supreme Home Care Agency,Daycare - Private Contractors Payment,123.12,0,VENDOR
02-01-2024,Adults & Health,Supreme Home Care Agency,Home Care - Private Contractors Payment,251.37,0,VENDOR
02-01-2024,Adults & Health,Supreme Home Care Agency,Home Care - Private Contractors Payment,41.04,0,VENDOR
02-01-2024,Adults & Health,Supreme Home Care Agency,Home Care - Private Contractors Payment,107.73,0,VENDOR
02-01-2024,Adults & Health,Supreme Home Care Agency,Daycare - Private Contractors Payment,225.72,0,VENDOR
02-01-2024,Adults & Health,Supreme Home Care Agency,Home Care - Private Contractors Payment,251.37,0,VENDOR
02-01-2024,Adults & Health,Supreme Home Care Agency,Home Care - Private Contractors Payment,646.38,0,VENDOR
02-01-2024,Adults & Health,Supreme Home Care Agency,Home Care - Private Contractors Payment,251.37,0,VENDOR
02-01-2024,Adults & Health,Supreme Home Care Agency,Home Care - Private Contractors Payment,20.52,0,VENDOR
02-01-2024,Adults & Health,Supreme Home Care Agency,Home Care - Private Contractors Payment,20.52,0,VENDOR
02-01-2024,Adults & Health,Supreme Home Care Agency,Home Care - Private Contractors Payment,251.37,0,VENDOR
02-01-2024,Adults & Health,Supreme Home Care Agency,Home Care - Private Contractors Payment,41.04,0,VENDOR
02-01-2024,Adults & Health,Supreme Home Care Agency,Home Care - Private Contractors Payment,359.1,0,VENDOR
02-01-2024,Adults & Health,Supreme Home Care Agency,Home Care - Private Contractors Payment,610.47,0,VENDOR
02-01-2024,Adults & Health,Supreme Home Care Agency,Home Care - Private Contractors Payment,215.46,0,VENDOR
02-01-2024,Adults & Health,Supreme Home Care Agency,Daycare - Private Contractors Payment,123.12,0,VENDOR
02-01-2024,Adults & Health,Supreme Home Care Agency,Home Care - Private Contractors Payment,123.12,0,VENDOR
02-01-2024,Adults & Health,Supreme Home Care Agency,Home Care - Private Contractors Payment,395.01,0,VENDOR
02-01-2024,Adults & Health,Supreme Home Care Agency,Home Care - Private Contractors Payment,179.55,0,VENDOR
02-01-2024,Adults & Health,Supreme Home Care Agency,Home Care - Private Contractors Payment,646.38,0,VENDOR
02-01-2024,Adults & Health,Supreme Home Care Agency,Daycare - Private Contractors Payment,92.34,0,VENDOR
02-01-2024,Adults & Health,Supreme Home Care Agency,Home Care - Private Contractors Payment,610.47,0,VENDOR
02-01-2024,Adults & Health,Supreme Home Care Agency,Daycare - Private Contractors Payment,82.08,0,VENDOR
02-01-2024,Adults & Health,Supreme Home Care Agency,Home Care - Private Contractors Payment,61.56,0,VENDOR
02-01-2024,Adults & Health,Supreme Home Care Agency,Home Care - Private Contractors Payment,323.19,0,VENDOR
02-01-2024,Adults & Health,Supreme Home Care Agency,Respite Care - Private Contractors Payment,41.04,0,VENDOR
02-01-2024,Adults & Health,Supreme Home Care Agency,Daycare - Private Contractors Payment,20.52,0,VENDOR
02-01-2024,Adults & Health,Supreme Home Care Agency,Home Care - Private Contractors Payment,76.95,0,VENDOR
02-01-2024,Adults & Health,Supreme Home Care Agency,Home Care - Private Contractors Payment,30.78,0,VENDOR
02-01-2024,Adults & Health,Supreme Home Care Agency,Home Care - Private Contractors Payment,123.12,0,VENDOR
02-01-2024,Adults & Health,Supreme Home Care Agency,Home Care - Private Contractors Payment,20.52,0,VENDOR
02-01-2024,Adults & Health,Supreme Home Care Agency,Home Care - Private Contractors Payment,179.55,0,VENDOR
02-01-2024,Adults & Health,Supreme Home Care Agency,Home Care - Private Contractors Payment,610.47,0,VENDOR
02-01-2024,Adults & Health,Supreme Home Care Agency,Home Care - Private Contractors Payment,287.28,0,VENDOR
02-01-2024,Adults & Health,Supreme Home Care Agency,Daycare - Private Contractors Payment,225.72,0,VENDOR
02-01-2024,Adults & Health,Supreme Home Care Agency,Home Care - Private Contractors Payment,67.06,0,VENDOR
02-01-2024,Adults & Health,Supreme Home Care Agency,Home Care - Private Contractors Payment,359.1,0,VENDOR
02-01-2024,Adults & Health,Supreme Home Care Agency,Home Care - Private Contractors Payment,30.78,0,VENDOR
02-01-2024,Adults & Health,Supreme Home Care Agency,Home Care - Private Contractors Payment,179.55,0,VENDOR
02-01-2024,Adults & Health,Supreme Home Care Agency,Respite Care - Private Contractors Payment,82.08,0,VENDOR
02-01-2024,Adults & Health,Supreme Home Care Agency,Home Care - Private Contractors Payment,348.84,0,VENDOR
02-01-2024,Adults & Health,Supreme Home Care Agency,Daycare - Private Contractors Payment,41.04,0,VENDOR
02-01-2024,Adults & Health,Supreme Home Care Agency,Home Care - Private Contractors Payment,20.52,0,VENDOR
02-01-2024,Adults & Health,Supreme Home Care Agency,Home Care - Private Contractors Payment,10.26,0,VENDOR
02-01-2024,Adults & Health,Supreme Home Care Agency,Daycare - Private Contractors Payment,61.56,0,VENDOR
02-01-2024,Adults & Health,Supreme Home Care Agency,Home Care - Private Contractors Payment,143.64,0,VENDOR
02-01-2024,Adults & Health,Supreme Home Care Agency,Home Care - Private Contractors Payment,20.52,0,VENDOR
02-01-2024,Adults & Health,Supreme Home Care Agency,Home Care - Private Contractors Payment,251.37,0,VENDOR
02-01-2024,Adults & Health,Supreme Home Care Agency,Home Care - Private Contractors Payment,102.6,0,VENDOR
02-01-2024,Adults & Health,Supreme Home Care Agency,Home Care - Private Contractors Payment,61.56,0,VENDOR
02-01-2024,Adults & Health,Supreme Home Care Agency,Daycare - Private Contractors Payment,41.04,0,VENDOR
02-01-2024,Adults & Health,Supreme Home Care Agency,Home Care - Private Contractors Payment,251.37,0,VENDOR
02-01-2024,Adults & Health,Supreme Home Care Agency,Daycare - Private Contractors Payment,123.12,0,VENDOR
02-01-2024,Adults & Health,Supreme Home Care Agency,Home Care - Private Contractors Payment,179.55,0,VENDOR
02-01-2024,Adults & Health,Supreme Home Care Agency,Home Care - Private Contractors Payment,30.78,0,VENDOR
02-01-2024,Adults & Health,Supreme Home Care Agency,Home Care - Private Contractors Payment,143.64,0,VENDOR
02-01-2024,Adults & Health,Supreme Home Care Agency,Home Care - Private Contractors Payment,143.64,0,VENDOR
02-01-2024,Adults & Health,Supreme Home Care Agency,Home Care - Private Contractors Payment,20.52,0,VENDOR
02-01-2024,Adults & Health,Supreme Home Care Agency,Home Care - Private Contractors Payment,610.47,0,VENDOR
02-01-2024,Adults & Health,Supreme Home Care Agency,Respite Care - Private Contractors Payment,123.12,0,VENDOR
02-01-2024,Adults & Health,Supreme Home Care Agency,Home Care - Private Contractors Payment,20.52,0,VENDOR
02-01-2024,Adults & Health,Supreme Home Care Agency,Home Care - Private Contractors Payment,174.42,0,VENDOR
02-01-2024,Adults & Health,Supreme Home Care Agency,Daycare - Private Contractors Payment,20.52,0,VENDOR
02-01-2024,Adults & Health,Supreme Home Care Agency,Home Care - Private Contractors Payment,395.01,0,VENDOR
02-01-2024,Adults & Health,Supreme Home Care Agency,Reablement,215.46,0,VENDOR
02-01-2024,Adults & Health,Supreme Home Care Agency,Daycare - Private Contractors Payment,61.56,0,VENDOR
02-01-2024,Adults & Health,Supreme Home Care Agency,Daycare - Private Contractors Payment,41.04,0,VENDOR
02-01-2024,Adults & Health,Supreme Home Care Agency,Home Care - Private Contractors Payment,323.19,0,VENDOR
02-01-2024,Adults & Health,Supreme Home Care Agency,Daycare - Private Contractors Payment,123.12,0,VENDOR
02-01-2024,Adults & Health,Supreme Home Care Agency,Home Care - Private Contractors Payment,395.01,0,VENDOR
02-01-2024,Adults & Health,Supreme Home Care Agency,Respite Care - Private Contractors Payment,41.04,0,VENDOR
02-01-2024,Adults & Health,Supreme Home Care Agency,Home Care - Private Contractors Payment,179.55,0,VENDOR
02-01-2024,Adults & Health,Supreme Home Care Agency,Home Care - Private Contractors Payment,323.19,0,VENDOR
02-01-2024,Adults & Health,Supreme Home Care Agency,Daycare - Private Contractors Payment,41.04,0,VENDOR
02-01-2024,Adults & Health,Supreme Home Care Agency,Home Care - Private Contractors Payment,143.64,0,VENDOR
02-01-2024,Adults & Health,Supreme Home Care Agency,Home Care - Private Contractors Payment,287.28,0,VENDOR
02-01-2024,Adults & Health,Supreme Home Care Agency,Daycare - Private Contractors Payment,92.34,0,VENDOR
02-01-2024,Adults & Health,Supreme Home Care Agency,Home Care - Private Contractors Payment,718.2,0,VENDOR
02-01-2024,Adults & Health,Supreme Home Care Agency,Home Care - Private Contractors Payment,41.04,0,VENDOR
02-01-2024,Adults & Health,Supreme Home Care Agency,Home Care - Private Contractors Payment,71.82,0,VENDOR
02-01-2024,Adults & Health,Supreme Home Care Agency,Home Care - Private Contractors Payment,359.1,0,VENDOR
02-01-2024,Adults & Health,Supreme Home Care Agency,Home Care - Private Contractors Payment,10.26,0,VENDOR
02-01-2024,Adults & Health,Supreme Home Care Agency,Home Care - Private Contractors Payment,323.19,0,VENDOR
02-01-2024,Adults & Health,Supreme Home Care Agency,Home Care - Private Contractors Payment,646.38,0,VENDOR
02-01-2024,Adults & Health,Supreme Home Care Agency,Home Care - Private Contractors Payment,123.12,0,VENDOR
02-01-2024,Adults & Health,Supreme Home Care Agency,Home Care - Private Contractors Payment,287.28,0,VENDOR
02-01-2024,Adults & Health,Supreme Home Care Agency,Home Care - Private Contractors Payment,128.25,0,VENDOR
02-01-2024,Adults & Health,Supreme Home Care Agency,Home Care - Private Contractors Payment,251.37,0,VENDOR
02-01-2024,Adults & Health,Supreme Home Care Agency,Daycare - Private Contractors Payment,61.56,0,VENDOR
02-01-2024,Adults & Health,Supreme Home Care Agency,Home Care - Private Contractors Payment,143.64,0,VENDOR
02-01-2024,Adults & Health,Supreme Home Care Agency,Daycare - Private Contractors Payment,30.78,0,VENDOR
02-01-2024,Adults & Health,Supreme Home Care Agency,Respite Care - Private Contractors Payment,82.08,0,VENDOR
02-01-2024,Adults & Health,Supreme Home Care Agency,Home Care - Private Contractors Payment,143.64,0,VENDOR
02-01-2024,Adults & Health,Supreme Home Care Agency,Home Care - Private Contractors Payment,810.54,0,VENDOR
02-01-2024,Adults & Health,Supreme Home Care Agency,Home Care - Private Contractors Payment,76.95,0,VENDOR
02-01-2024,Adults & Health,Supreme Home Care Agency,Home Care - Private Contractors Payment,143.64,0,VENDOR
02-01-2024,Adults & Health,Supreme Home Care Agency,Daycare - Private Contractors Payment,82.08,0,VENDOR
02-01-2024,Adults & Health,Supreme Home Care Agency,Home Care - Private Contractors Payment,323.19,0,VENDOR
02-01-2024,Adults & Health,Supreme Home Care Agency,Home Care - Private Contractors Payment,123.12,0,VENDOR
02-01-2024,Adults & Health,Supreme Home Care Agency,Home Care - Private Contractors Payment,179.55,0,VENDOR
02-01-2024,Adults & Health,Supreme Home Care Agency,Daycare - Private Contractors Payment,41.04,0,VENDOR
02-01-2024,Adults & Health,Supreme Home Care Agency,Home Care - Private Contractors Payment,25.65,0,VENDOR
02-01-2024,Adults & Health,Supreme Home Care Agency,Home Care - Private Contractors Payment,20.52,0,VENDOR
02-01-2024,Adults & Health,Supreme Home Care Agency,Home Care - Private Contractors Payment,179.55,0,VENDOR
02-01-2024,Adults & Health,Supreme Home Care Agency,Home Care - Private Contractors Payment,41.04,0,VENDOR
02-01-2024,Adults & Health,Supreme Home Care Agency,Home Care - Private Contractors Payment,76.95,0,VENDOR
02-01-2024,Adults & Health,Supreme Home Care Agency,Home Care - Private Contractors Payment,359.1,0,VENDOR
02-01-2024,Adults & Health,Supreme Home Care Agency,Home Care - Private Contractors Payment,143.64,0,VENDOR
02-01-2024,Adults & Health,Supreme Home Care Agency,Reablement,61.56,0,VENDOR
02-01-2024,Adults & Health,Supreme Home Care Agency,Home Care - Private Contractors Payment,41.04,0,VENDOR
02-01-2024,Adults & Health,Supreme Home Care Agency,Home Care - Private Contractors Payment,395.01,0,VENDOR
02-01-2024,Adults & Health,Supreme Home Care Agency,Home Care - Private Contractors Payment,20.52,0,VENDOR
02-01-2024,Adults & Health,Supreme Home Care Agency,Home Care - Private Contractors Payment,20.52,0,VENDOR
02-01-2024,Adults & Health,Supreme Home Care Agency,Home Care - Private Contractors Payment,41.04,0,VENDOR
02-01-2024,Adults & Health,Supreme Home Care Agency,Home Care - Private Contractors Payment,143.64,0,VENDOR
02-01-2024,Adults & Health,Supreme Home Care Agency,Daycare - Private Contractors Payment,61.56,0,VENDOR
02-01-2024,Adults & Health,Supreme Home Care Agency,Daycare - Private Contractors Payment,225.72,0,VENDOR
02-01-2024,Adults & Health,Supreme Home Care Agency,Home Care - Private Contractors Payment,41.04,0,VENDOR
02-01-2024,Adults & Health,Supreme Home Care Agency,Home Care - Private Contractors Payment,143.64,0,VENDOR
02-01-2024,Adults & Health,Supreme Home Care Agency,Home Care - Private Contractors Payment,323.19,0,VENDOR
02-01-2024,Adults & Health,Supreme Home Care Agency,Home Care - Private Contractors Payment,610.47,0,VENDOR
02-01-2024,Adults & Health,Supreme Home Care Agency,Daycare - Private Contractors Payment,41.04,0,VENDOR
02-01-2024,Adults & Health,Supreme Home Care Agency,Home Care - Private Contractors Payment,41.04,0,VENDOR
02-01-2024,Adults & Health,Supreme Home Care Agency,Home Care - Private Contractors Payment,107.73,0,VENDOR
02-01-2024,Adults & Health,Supreme Home Care Agency,Home Care - Private Contractors Payment,610.47,0,VENDOR
02-01-2024,Adults & Health,Supreme Home Care Agency,Home Care - Private Contractors Payment,20.52,0,VENDOR
02-01-2024,Adults & Health,Supreme Home Care Agency,Home Care - Private Contractors Payment,41.04,0,VENDOR
02-01-2024,Adults & Health,Supreme Home Care Agency,Home Care - Private Contractors Payment,20.52,0,VENDOR
02-01-2024,Adults & Health,Supreme Home Care Agency,Home Care - Private Contractors Payment,251.37,0,VENDOR
02-01-2024,Adults & Health,Supreme Home Care Agency,Home Care - Private Contractors Payment,143.64,0,VENDOR
02-01-2024,Adults & Health,Supreme Home Care Agency,Reablement,215.46,0,VENDOR
02-01-2024,Adults & Health,Supreme Home Care Agency,Daycare - Private Contractors Payment,20.52,0,VENDOR
02-01-2024,Adults & Health,Supreme Home Care Agency,Home Care - Private Contractors Payment,718.2,0,VENDOR
02-01-2024,Adults & Health,Supreme Home Care Agency,Home Care - Private Contractors Payment,20.52,0,VENDOR
02-01-2024,Adults & Health,Supreme Home Care Agency,Home Care - Private Contractors Payment,46.17,0,VENDOR
02-01-2024,Adults & Health,Supreme Home Care Agency,Home Care - Private Contractors Payment,179.55,0,VENDOR
02-01-2024,Adults & Health,Supreme Home Care Agency,Home Care - Private Contractors Payment,20.52,0,VENDOR
02-01-2024,Adults & Health,Supreme Home Care Agency,Home Care - Private Contractors Payment,287.28,0,VENDOR
02-01-2024,Adults & Health,Supreme Home Care Agency,Daycare - Private Contractors Payment,30.78,0,VENDOR
02-01-2024,Adults & Health,Supreme Home Care Agency,Home Care - Private Contractors Payment,610.47,0,VENDOR
02-01-2024,Adults & Health,Supreme Home Care Agency,Home Care - Private Contractors Payment,323.19,0,VENDOR
02-01-2024,Adults & Health,Supreme Home Care Agency,Home Care - Private Contractors Payment,20.52,0,VENDOR
02-01-2024,Adults & Health,Supreme Home Care Agency,Home Care - Private Contractors Payment,348.84,0,VENDOR
02-01-2024,Adults & Health,Supreme Home Care Agency,Home Care - Private Contractors Payment,359.1,0,VENDOR
02-01-2024,Adults & Health,Supreme Home Care Agency,Home Care - Private Contractors Payment,646.38,0,VENDOR
02-01-2024,Adults & Health,Supreme Home Care Agency,Home Care - Private Contractors Payment,359.1,0,VENDOR
02-01-2024,Adults & Health,Supreme Home Care Agency,Home Care - Private Contractors Payment,395.01,0,VENDOR
02-01-2024,Adults & Health,Supreme Home Care Agency,Home Care - Private Contractors Payment,143.64,0,VENDOR
02-01-2024,Adults & Health,Supreme Home Care Agency,Home Care - Private Contractors Payment,718.2,0,VENDOR
02-01-2024,Adults & Health,Supreme Home Care Agency,Respite Care - Private Contractors Payment,82.08,0,VENDOR
02-01-2024,Adults & Health,Supreme Home Care Agency,Home Care - Private Contractors Payment,287.28,0,VENDOR
02-01-2024,Adults & Health,Supreme Home Care Agency,Home Care - Private Contractors Payment,102.6,0,VENDOR
02-01-2024,Adults & Health,Supreme Home Care Agency,Home Care - Private Contractors Payment,251.37,0,VENDOR
02-01-2024,Adults & Health,Supreme Home Care Agency,Daycare - Private Contractors Payment,35.91,0,VENDOR
02-01-2024,Adults & Health,Supreme Home Care Agency,Home Care - Private Contractors Payment,20.52,0,VENDOR
02-01-2024,Adults & Health,Supreme Home Care Agency,Home Care - Private Contractors Payment,430.92,0,VENDOR
02-01-2024,Adults & Health,Supreme Home Care Agency,Home Care - Private Contractors Payment,251.37,0,VENDOR
02-01-2024,Adults & Health,Supreme Home Care Agency,Home Care - Private Contractors Payment,251.37,0,VENDOR
02-01-2024,Adults & Health,Supreme Home Care Agency,Home Care - Private Contractors Payment,30.78,0,VENDOR
02-01-2024,Adults & Health,Supreme Home Care Agency,Home Care - Private Contractors Payment,323.19,0,VENDOR
02-01-2024,Adults & Health,Supreme Home Care Agency,Home Care - Private Contractors Payment,251.37,0,VENDOR
02-01-2024,Adults & Health,Supreme Home Care Agency,Home Care - Private Contractors Payment,25.65,0,VENDOR
02-01-2024,Adults & Health,Supreme Home Care Agency,Home Care - Private Contractors Payment,754.11,0,VENDOR
02-01-2024,Adults & Health,Supreme Home Care Agency,Home Care - Private Contractors Payment,41.04,0,VENDOR
02-01-2024,Adults & Health,Supreme Home Care Agency,Home Care - Private Contractors Payment,20.52,0,VENDOR
02-01-2024,Adults & Health,Supreme Home Care Agency,Daycare - Private Contractors Payment,30.78,0,VENDOR
02-01-2024,Adults & Health,Supreme Home Care Agency,Home Care - Private Contractors Payment,395.01,0,VENDOR
02-01-2024,Adults & Health,Supreme Home Care Agency,Home Care - Private Contractors Payment,215.46,0,VENDOR
02-01-2024,Adults & Health,Supreme Home Care Agency,Home Care - Private Contractors Payment,20.52,0,VENDOR
02-01-2024,Adults & Health,Supreme Home Care Agency,Home Care - Private Contractors Payment,646.38,0,VENDOR
02-01-2024,Adults & Health,Supreme Home Care Agency,Daycare - Private Contractors Payment,61.56,0,VENDOR
02-01-2024,Adults & Health,Supreme Home Care Agency,Home Care - Private Contractors Payment,20.52,0,VENDOR
02-01-2024,Adults & Health,Supreme Home Care Agency,Home Care - Private Contractors Payment,20.52,0,VENDOR
02-01-2024,Adults & Health,Supreme Home Care Agency,Home Care - Private Contractors Payment,287.28,0,VENDOR
02-01-2024,Adults & Health,Supreme Home Care Agency,Home Care - Private Contractors Payment,718.2,0,VENDOR
02-01-2024,Adults & Health,Supreme Home Care Agency,Home Care - Private Contractors Payment,251.37,0,VENDOR
02-01-2024,Adults & Health,Supreme Home Care Agency,Home Care - Private Contractors Payment,61.56,0,VENDOR
02-01-2024,Adults & Health,Supreme Home Care Agency,Home Care - Private Contractors Payment,107.73,0,VENDOR
02-01-2024,Adults & Health,Supreme Home Care Agency,Respite Care - Private Contractors Payment,41.04,0,VENDOR
02-01-2024,Adults & Health,Supreme Home Care Agency,Home Care - Private Contractors Payment,610.47,0,VENDOR
02-01-2024,Adults & Health,Supreme Home Care Agency,Daycare - Private Contractors Payment,41.04,0,VENDOR
02-01-2024,Adults & Health,Supreme Home Care Agency,Home Care - Private Contractors Payment,41.04,0,VENDOR
02-01-2024,Adults & Health,Supreme Home Care Agency,Daycare - Private Contractors Payment,30.78,0,VENDOR
02-01-2024,Adults & Health,Supreme Home Care Agency,Home Care - Private Contractors Payment,41.04,0,VENDOR
02-01-2024,Adults & Health,Supreme Home Care Agency,Home Care - Private Contractors Payment,123.12,0,VENDOR
02-01-2024,Adults & Health,Supreme Home Care Agency,Home Care - Private Contractors Payment,215.46,0,VENDOR
02-01-2024,Adults & Health,Supreme Home Care Agency,Home Care - Private Contractors Payment,323.19,0,VENDOR
02-01-2024,Adults & Health,Supreme Home Care Agency,Home Care - Private Contractors Payment,610.47,0,VENDOR
02-01-2024,Adults & Health,Supreme Home Care Agency,Home Care - Private Contractors Payment,395.01,0,VENDOR
02-01-2024,Adults & Health,Supreme Home Care Agency,Home Care - Private Contractors Payment,20.52,0,VENDOR
02-01-2024,Adults & Health,Supreme Home Care Agency,Home Care - Private Contractors Payment,323.19,0,VENDOR
02-01-2024,Adults & Health,Supreme Home Care Agency,Home Care - Private Contractors Payment,10.26,0,VENDOR
02-01-2024,Adults & Health,Supreme Home Care Agency,Home Care - Private Contractors Payment,41.04,0,VENDOR
02-01-2024,Adults & Health,Supreme Home Care Agency,Home Care - Private Contractors Payment,25.65,0,VENDOR
02-01-2024,Adults & Health,Supreme Home Care Agency,Home Care - Private Contractors Payment,20.52,0,VENDOR
02-01-2024,Adults & Health,Supreme Home Care Agency,Home Care - Private Contractors Payment,20.52,0,VENDOR
02-01-2024,Adults & Health,Supreme Home Care Agency,Daycare - Private Contractors Payment,41.04,0,VENDOR
02-01-2024,Adults & Health,Supreme Home Care Agency,Daycare - Private Contractors Payment,61.56,0,VENDOR
02-01-2024,Adults & Health,Supreme Home Care Agency,Home Care - Private Contractors Payment,143.64,0,VENDOR
02-01-2024,Adults & Health,Supreme Home Care Agency,Home Care - Private Contractors Payment,610.47,0,VENDOR
02-01-2024,Adults & Health,Supreme Home Care Agency,Home Care - Private Contractors Payment,20.52,0,VENDOR
02-01-2024,Adults & Health,Supreme Home Care Agency,Daycare - Private Contractors Payment,20.52,0,VENDOR
02-01-2024,Adults & Health,Supreme Home Care Agency,Home Care - Private Contractors Payment,71.82,0,VENDOR
02-01-2024,Adults & Health,Supreme Home Care Agency,Daycare - Private Contractors Payment,30.78,0,VENDOR
02-01-2024,Adults & Health,Supreme Home Care Agency,Home Care - Private Contractors Payment,41.04,0,VENDOR
02-01-2024,Adults & Health,Supreme Home Care Agency,Home Care - Private Contractors Payment,41.04,0,VENDOR
02-01-2024,Adults & Health,Supreme Home Care Agency,Home Care - Private Contractors Payment,143.64,0,VENDOR
02-01-2024,Adults & Health,Supreme Home Care Agency,Home Care - Private Contractors Payment,30.78,0,VENDOR
02-01-2024,Adults & Health,Supreme Home Care Agency,Home Care - Private Contractors Payment,76.95,0,VENDOR
02-01-2024,Adults & Health,Supreme Home Care Agency,Home Care - Private Contractors Payment,215.46,0,VENDOR
02-01-2024,Adults & Health,Supreme Home Care Agency,Home Care - Private Contractors Payment,20.52,0,VENDOR
02-01-2024,Adults & Health,Supreme Home Care Agency,Daycare - Private Contractors Payment,30.78,0,VENDOR
02-01-2024,Adults & Health,Supreme Home Care Agency,Daycare - Private Contractors Payment,123.12,0,VENDOR
02-01-2024,Adults & Health,Supreme Home Care Agency,Home Care - Private Contractors Payment,143.64,0,VENDOR
02-01-2024,Adults & Health,Supreme Home Care Agency,Home Care - Private Contractors Payment,251.37,0,VENDOR
02-01-2024,Adults & Health,Supreme Home Care Agency,Home Care - Private Contractors Payment,143.64,0,VENDOR
02-01-2024,Adults & Health,Supreme Home Care Agency,Home Care - Private Contractors Payment,359.1,0,VENDOR
02-01-2024,Adults & Health,Supreme Home Care Agency,Home Care - Private Contractors Payment,323.19,0,VENDOR
02-01-2024,Adults & Health,Supreme Home Care Agency,Daycare - Private Contractors Payment,41.04,0,VENDOR
02-01-2024,Adults & Health,Supreme Home Care Agency,Home Care - Private Contractors Payment,20.52,0,VENDOR
02-01-2024,Adults & Health,Supreme Home Care Agency,Home Care - Private Contractors Payment,107.73,0,VENDOR
02-01-2024,Adults & Health,Supreme Home Care Agency,Home Care - Private Contractors Payment,251.37,0,VENDOR
02-01-2024,Adults & Health,Supreme Home Care Agency,Respite Care - Private Contractors Payment,82.08,0,VENDOR
02-01-2024,Adults & Health,Supreme Home Care Agency,Home Care - Private Contractors Payment,143.64,0,VENDOR
02-01-2024,Adults & Health,Supreme Home Care Agency,Home Care - Private Contractors Payment,323.19,0,VENDOR
02-01-2024,Adults & Health,Supreme Home Care Agency,Home Care - Private Contractors Payment,143.64,0,VENDOR
02-01-2024,Adults & Health,Supreme Home Care Agency,Home Care - Private Contractors Payment,102.6,0,VENDOR
02-01-2024,Adults & Health,Supreme Home Care Agency,Home Care - Private Contractors Payment,123.12,0,VENDOR
02-01-2024,Adults & Health,Supreme Home Care Agency,Daycare - Private Contractors Payment,35.91,0,VENDOR
02-01-2024,Adults & Health,Supreme Home Care Agency,Home Care - Private Contractors Payment,718.2,0,VENDOR
02-01-2024,Adults & Health,Supreme Home Care Agency,Home Care - Private Contractors Payment,86.1,0,VENDOR
02-01-2024,Adults & Health,Supreme Home Care Agency,Home Care - Private Contractors Payment,738.72,0,VENDOR
02-01-2024,Adults & Health,Supreme Home Care Agency,Home Care - Private Contractors Payment,251.37,0,VENDOR
02-01-2024,Adults & Health,Supreme Home Care Agency,Home Care - Private Contractors Payment,20.52,0,VENDOR
02-01-2024,Adults & Health,Supreme Home Care Agency,Daycare - Private Contractors Payment,20.52,0,VENDOR
02-01-2024,Adults & Health,Supreme Home Care Agency,Home Care - Private Contractors Payment,41.04,0,VENDOR
02-01-2024,Adults & Health,Supreme Home Care Agency,Home Care - Private Contractors Payment,41.04,0,VENDOR
02-01-2024,Adults & Health,Supreme Home Care Agency,Home Care - Private Contractors Payment,646.38,0,VENDOR
02-01-2024,Adults & Health,Supreme Home Care Agency,Home Care - Private Contractors Payment,610.47,0,VENDOR
02-01-2024,Adults & Health,Supreme Home Care Agency,Daycare - Private Contractors Payment,41.04,0,VENDOR
02-01-2024,Adults & Health,Supreme Home Care Agency,Home Care - Private Contractors Payment,82.08,0,VENDOR
02-01-2024,Adults & Health,Supreme Home Care Agency,Home Care - Private Contractors Payment,107.73,0,VENDOR
02-01-2024,Adults & Health,Supreme Home Care Agency,Home Care - Private Contractors Payment,46.17,0,VENDOR
02-01-2024,Adults & Health,Supreme Home Care Agency,Home Care - Private Contractors Payment,143.64,0,VENDOR
02-01-2024,Adults & Health,Supreme Home Care Agency,Home Care - Private Contractors Payment,287.28,0,VENDOR
02-01-2024,Adults & Health,Supreme Home Care Agency,Home Care - Private Contractors Payment,395.01,0,VENDOR
02-01-2024,Adults & Health,Supreme Home Care Agency,Home Care - Private Contractors Payment,20.52,0,VENDOR
02-01-2024,Adults & Health,Supreme Home Care Agency,Home Care - Private Contractors Payment,20.52,0,VENDOR
02-01-2024,Adults & Health,Supreme Home Care Agency,Home Care - Private Contractors Payment,359.1,0,VENDOR
02-01-2024,Adults & Health,Supreme Home Care Agency,Home Care - Private Contractors Payment,718.2,0,VENDOR
02-01-2024,Adults & Health,Supreme Home Care Agency,Home Care - Private Contractors Payment,179.55,0,VENDOR
02-01-2024,Adults & Health,Supreme Home Care Agency,Home Care - Private Contractors Payment,215.46,0,VENDOR
02-01-2024,Adults & Health,Supreme Home Care Agency,Daycare - Private Contractors Payment,20.52,0,VENDOR
02-01-2024,Adults & Health,Supreme Home Care Agency,Home Care - Private Contractors Payment,123.12,0,VENDOR
02-01-2024,Adults & Health,Supreme Home Care Agency,Home Care - Private Contractors Payment,20.52,0,VENDOR
02-01-2024,Adults & Health,Supreme Home Care Agency,Home Care - Private Contractors Payment,287.28,0,VENDOR
02-01-2024,Adults & Health,Supreme Home Care Agency,Daycare - Private Contractors Payment,41.04,0,VENDOR
02-01-2024,Adults & Health,Supreme Home Care Agency,Home Care - Private Contractors Payment,369.36,0,VENDOR
02-01-2024,Adults & Health,Supreme Home Care Agency,Home Care - Private Contractors Payment,67.06,0,VENDOR
02-01-2024,Adults & Health,Supreme Home Care Agency,Home Care - Private Contractors Payment,359.1,0,VENDOR
02-01-2024,Adults & Health,Supreme Home Care Agency,Daycare - Private Contractors Payment,20.52,0,VENDOR
02-01-2024,Adults & Health,Supreme Home Care Agency,Home Care - Private Contractors Payment,71.82,0,VENDOR
02-01-2024,Adults & Health,Supreme Home Care Agency,Home Care - Private Contractors Payment,359.1,0,VENDOR
02-01-2024,Adults & Health,Supreme Home Care Agency,Daycare - Private Contractors Payment,61.56,0,VENDOR
02-01-2024,Adults & Health,Supreme Home Care Agency,Home Care - Private Contractors Payment,323.19,0,VENDOR
02-01-2024,Adults & Health,Supreme Home Care Agency,Home Care - Private Contractors Payment,287.28,0,VENDOR
02-01-2024,Adults & Health,Supreme Home Care Agency,Home Care - Private Contractors Payment,353.97,0,VENDOR
02-01-2024,Adults & Health,Supreme Home Care Agency,Home Care - Private Contractors Payment,179.55,0,VENDOR
02-01-2024,Adults & Health,Supreme Home Care Agency,Home Care - Private Contractors Payment,251.37,0,VENDOR
02-01-2024,Adults & Health,Supreme Home Care Agency,Home Care - Private Contractors Payment,20.52,0,VENDOR
02-01-2024,Adults & Health,Supreme Home Care Agency,Daycare - Private Contractors Payment,41.04,0,VENDOR
02-01-2024,Adults & Health,Supreme Home Care Agency,Daycare - Private Contractors Payment,61.56,0,VENDOR
02-01-2024,Adults & Health,Supreme Home Care Agency,Respite Care - Private Contractors Payment,82.08,0,VENDOR
02-01-2024,Adults & Health,Supreme Home Care Agency,Home Care - Private Contractors Payment,41.04,0,VENDOR
02-01-2024,Adults & Health,Supreme Home Care Agency,Home Care - Private Contractors Payment,107.73,0,VENDOR
02-01-2024,Adults & Health,Supreme Home Care Agency,Home Care - Private Contractors Payment,359.1,0,VENDOR
02-01-2024,Adults & Health,Supreme Home Care Agency,Home Care - Private Contractors Payment,143.64,0,VENDOR
02-01-2024,Adults & Health,Supreme Home Care Agency,Home Care - Private Contractors Payment,25.65,0,VENDOR
02-01-2024,Adults & Health,Supreme Home Care Agency,Daycare - Private Contractors Payment,123.12,0,VENDOR
02-01-2024,Adults & Health,Supreme Home Care Agency,Home Care - Private Contractors Payment,215.46,0,VENDOR
02-01-2024,Adults & Health,Supreme Home Care Agency,Respite Care - Private Contractors Payment,41.04,0,VENDOR
02-01-2024,Adults & Health,Supreme Home Care Agency,Home Care - Private Contractors Payment,646.38,0,VENDOR
02-01-2024,Adults & Health,Supreme Home Care Agency,Home Care - Private Contractors Payment,41.04,0,VENDOR
02-01-2024,Adults & Health,Supreme Home Care Agency,Home Care - Private Contractors Payment,179.55,0,VENDOR
02-01-2024,Adults & Health,Supreme Home Care Agency,Home Care - Private Contractors Payment,102.6,0,VENDOR
02-01-2024,Adults & Health,Supreme Home Care Agency,Daycare - Private Contractors Payment,123.12,0,VENDOR
02-01-2024,Adults & Health,Supreme Home Care Agency,Daycare - Private Contractors Payment,225.72,0,VENDOR
02-01-2024,Adults & Health,Supreme Home Care Agency,Home Care - Private Contractors Payment,251.37,0,VENDOR
02-01-2024,Adults & Health,Supreme Home Care Agency,Home Care - Private Contractors Payment,76.95,0,VENDOR
02-01-2024,Adults & Health,Supreme Home Care Agency,Home Care - Private Contractors Payment,754.11,0,VENDOR
02-01-2024,Adults & Health,Supreme Home Care Agency,Home Care - Private Contractors Payment,61.56,0,VENDOR
02-01-2024,Adults & Health,Supreme Home Care Agency,Home Care - Private Contractors Payment,20.52,0,VENDOR
02-01-2024,Adults & Health,Supreme Home Care Agency,Home Care - Private Contractors Payment,251.37,0,VENDOR
02-01-2024,Adults & Health,Supreme Home Care Agency,Home Care - Private Contractors Payment,92.34,0,VENDOR
02-01-2024,Adults & Health,Supreme Home Care Agency,Home Care - Private Contractors Payment,46.17,0,VENDOR
02-01-2024,Adults & Health,Supreme Home Care Agency,Home Care - Private Contractors Payment,323.19,0,VENDOR
02-01-2024,Adults & Health,Supreme Home Care Agency,Home Care - Private Contractors Payment,251.37,0,VENDOR
02-01-2024,Adults & Health,Supreme Home Care Agency,Daycare - Private Contractors Payment,20.52,0,VENDOR
02-01-2024,Adults & Health,Supreme Home Care Agency,Home Care - Private Contractors Payment,41.04,0,VENDOR
02-01-2024,Adults & Health,Supreme Home Care Agency,Daycare - Private Contractors Payment,123.12,0,VENDOR
02-01-2024,Adults & Health,Supreme Home Care Agency,Home Care - Private Contractors Payment,718.2,0,VENDOR
02-01-2024,Adults & Health,Supreme Home Care Agency,Home Care - Private Contractors Payment,179.55,0,VENDOR
02-01-2024,Adults & Health,Supreme Home Care Agency,Home Care - Private Contractors Payment,251.37,0,VENDOR
02-01-2024,Adults & Health,Supreme Home Care Agency,Home Care - Private Contractors Payment,20.52,0,VENDOR
02-01-2024,Adults & Health,Supreme Home Care Agency,Home Care - Private Contractors Payment,251.37,0,VENDOR
02-01-2024,Adults & Health,Supreme Home Care Agency,Home Care - Private Contractors Payment,30.78,0,VENDOR
02-01-2024,Adults & Health,Supreme Home Care Agency,Home Care - Private Contractors Payment,430.92,0,VENDOR
02-01-2024,Adults & Health,Supreme Home Care Agency,Home Care - Private Contractors Payment,430.92,0,VENDOR
02-01-2024,Adults & Health,Supreme Home Care Agency,Home Care - Private Contractors Payment,610.47,0,VENDOR
02-01-2024,Adults & Health,Supreme Home Care Agency,Daycare - Private Contractors Payment,41.04,0,VENDOR
02-01-2024,Adults & Health,Supreme Home Care Agency,Home Care - Private Contractors Payment,359.1,0,VENDOR
02-01-2024,Adults & Health,Supreme Home Care Agency,Home Care - Private Contractors Payment,323.19,0,VENDOR
02-01-2024,Adults & Health,Supreme Home Care Agency,Home Care - Private Contractors Payment,20.52,0,VENDOR
02-01-2024,Adults & Health,Supreme Home Care Agency,Home Care - Private Contractors Payment,20.52,0,VENDOR
02-01-2024,Adults & Health,Supreme Home Care Agency,Daycare - Private Contractors Payment,41.04,0,VENDOR
02-01-2024,Adults & Health,Supreme Home Care Agency,Home Care - Private Contractors Payment,215.46,0,VENDOR
02-01-2024,Adults & Health,Supreme Home Care Agency,Home Care - Private Contractors Payment,128.25,0,VENDOR
02-01-2024,Adults & Health,Supreme Home Care Agency,Home Care - Private Contractors Payment,49.83,0,VENDOR
02-01-2024,Adults & Health,Supreme Home Care Agency,Home Care - Private Contractors Payment,41.04,0,VENDOR
02-01-2024,Adults & Health,Supreme Home Care Agency,Daycare - Private Contractors Payment,82.08,0,VENDOR
02-01-2024,Adults & Health,Supreme Home Care Agency,Home Care - Private Contractors Payment,718.2,0,VENDOR
02-01-2024,Adults & Health,Supreme Home Care Agency,Home Care - Private Contractors Payment,610.47,0,VENDOR
02-01-2024,Adults & Health,Supreme Home Care Agency,Home Care - Private Contractors Payment,123.12,0,VENDOR
02-01-2024,Adults & Health,Supreme Home Care Agency,Home Care - Private Contractors Payment,251.37,0,VENDOR
02-01-2024,Adults & Health,Supreme Home Care Agency,Home Care - Private Contractors Payment,610.47,0,VENDOR
02-01-2024,Adults & Health,Supreme Home Care Agency,Home Care - Private Contractors Payment,41.04,0,VENDOR
02-01-2024,Adults & Health,Supreme Home Care Agency,Home Care - Private Contractors Payment,30.78,0,VENDOR
02-01-2024,Adults & Health,Supreme Home Care Agency,Home Care - Private Contractors Payment,610.47,0,VENDOR
02-01-2024,Adults & Health,Supreme Home Care Agency,Home Care - Private Contractors Payment,646.38,0,VENDOR
02-01-2024,Adults & Health,Supreme Home Care Agency,Home Care - Private Contractors Payment,215.46,0,VENDOR
02-01-2024,Adults & Health,Supreme Home Care Agency,Home Care - Private Contractors Payment,107.73,0,VENDOR
02-01-2024,Adults & Health,Supreme Home Care Agency,Home Care - Private Contractors Payment,179.55,0,VENDOR
02-01-2024,Adults & Health,Supreme Home Care Agency,Home Care - Private Contractors Payment,287.28,0,VENDOR
02-01-2024,Adults & Health,Supreme Home Care Agency,Home Care - Private Contractors Payment,348.84,0,VENDOR
02-01-2024,Adults & Health,Supreme Home Care Agency,Home Care - Private Contractors Payment,738.72,0,VENDOR
02-01-2024,Adults & Health,Supreme Home Care Agency,Daycare - Private Contractors Payment,92.34,0,VENDOR
02-01-2024,Adults & Health,Supreme Home Care Agency,Home Care - Private Contractors Payment,287.28,0,VENDOR
02-01-2024,Adults & Health,Supreme Home Care Agency,Home Care - Private Contractors Payment,359.1,0,VENDOR
02-01-2024,Adults & Health,Supreme Home Care Agency,Daycare - Private Contractors Payment,41.04,0,VENDOR
02-01-2024,Adults & Health,Supreme Home Care Agency,Home Care - Private Contractors Payment,395.01,0,VENDOR
02-01-2024,Adults & Health,Supreme Home Care Agency,Home Care - Private Contractors Payment,215.46,0,VENDOR
02-01-2024,Adults & Health,Supreme Home Care Agency,Daycare - Private Contractors Payment,20.52,0,VENDOR
02-01-2024,Adults & Health,Supreme Home Care Agency,Home Care - Private Contractors Payment,610.47,0,VENDOR
02-01-2024,Adults & Health,Supreme Home Care Agency,Home Care - Private Contractors Payment,143.64,0,VENDOR
02-01-2024,Adults & Health,Supreme Home Care Agency,Daycare - Private Contractors Payment,41.04,0,VENDOR
02-01-2024,Adults & Health,Supreme Home Care Agency,Home Care - Private Contractors Payment,25.65,0,VENDOR
02-01-2024,Adults & Health,Supreme Home Care Agency,Home Care - Private Contractors Payment,610.47,0,VENDOR
02-01-2024,Adults & Health,Supreme Home Care Agency,Home Care - Private Contractors Payment,718.2,0,VENDOR
02-01-2024,Adults & Health,Supreme Home Care Agency,Home Care - Private Contractors Payment,128.25,0,VENDOR
02-01-2024,Adults & Health,Supreme Home Care Agency,Home Care - Private Contractors Payment,646.38,0,VENDOR
02-01-2024,Adults & Health,Supreme Home Care Agency,Home Care - Private Contractors Payment,143.64,0,VENDOR
02-01-2024,Adults & Health,Supreme Home Care Agency,Daycare - Private Contractors Payment,41.04,0,VENDOR
02-01-2024,Adults & Health,Supreme Home Care Agency,Home Care - Private Contractors Payment,20.52,0,VENDOR
02-01-2024,Adults & Health,Supreme Home Care Agency,Daycare - Private Contractors Payment,41.04,0,VENDOR
02-01-2024,Adults & Health,Supreme Home Care Agency,Home Care - Private Contractors Payment,143.64,0,VENDOR
02-01-2024,Adults & Health,Supreme Home Care Agency,Home Care - Private Contractors Payment,251.37,0,VENDOR
02-01-2024,Adults & Health,Supreme Home Care Agency,Home Care - Private Contractors Payment,25.65,0,VENDOR
02-01-2024,Adults & Health,Supreme Home Care Agency,Home Care - Private Contractors Payment,25.65,0,VENDOR
02-01-2024,Adults & Health,Supreme Home Care Agency,Home Care - Private Contractors Payment,610.47,0,VENDOR
02-01-2024,Adults & Health,Supreme Home Care Agency,Home Care - Private Contractors Payment,107.73,0,VENDOR
02-01-2024,Adults & Health,Supreme Home Care Agency,Home Care - Private Contractors Payment,179.55,0,VENDOR
02-01-2024,Adults & Health,Supreme Home Care Agency,Home Care - Private Contractors Payment,143.64,0,VENDOR
02-01-2024,Adults & Health,Supreme Home Care Agency,Home Care - Private Contractors Payment,20.52,0,VENDOR
02-01-2024,Adults & Health,Supreme Home Care Agency,Home Care - Private Contractors Payment,20.52,0,VENDOR
02-01-2024,Adults & Health,Supreme Home Care Agency,Home Care - Private Contractors Payment,718.2,0,VENDOR
02-01-2024,Adults & Health,Supreme Home Care Agency,Home Care - Private Contractors Payment,143.64,0,VENDOR
02-01-2024,Adults & Health,Supreme Home Care Agency,Home Care - Private Contractors Payment,41.04,0,VENDOR
02-01-2024,Adults & Health,Supreme Home Care Agency,Home Care - Private Contractors Payment,738.72,0,VENDOR
02-01-2024,Adults & Health,Supreme Home Care Agency,Home Care - Private Contractors Payment,646.38,0,VENDOR
02-01-2024,Adults & Health,Supreme Home Care Agency,Home Care - Private Contractors Payment,251.37,0,VENDOR
02-01-2024,Adults & Health,Supreme Home Care Agency,Daycare - Private Contractors Payment,82.08,0,VENDOR
02-01-2024,Adults & Health,Supreme Home Care Agency,Home Care - Private Contractors Payment,123.12,0,VENDOR
02-01-2024,Adults & Health,Supreme Home Care Agency,Daycare - Private Contractors Payment,61.56,0,VENDOR
02-01-2024,Adults & Health,Supreme Home Care Agency,Home Care - Private Contractors Payment,61.56,0,VENDOR
02-01-2024,Adults & Health,Supreme Home Care Agency,Home Care - Private Contractors Payment,179.55,0,VENDOR
02-01-2024,Adults & Health,Supreme Home Care Agency,Home Care - Private Contractors Payment,215.46,0,VENDOR
02-01-2024,Adults & Health,Supreme Home Care Agency,Home Care - Private Contractors Payment,20.52,0,VENDOR
02-01-2024,Adults & Health,Supreme Home Care Agency,Home Care - Private Contractors Payment,323.19,0,VENDOR
02-01-2024,Adults & Health,Supreme Home Care Agency,Daycare - Private Contractors Payment,20.52,0,VENDOR
02-01-2024,Adults & Health,Supreme Home Care Agency,Home Care - Private Contractors Payment,395.01,0,VENDOR
02-01-2024,Adults & Health,Supreme Home Care Agency,Daycare - Private Contractors Payment,61.56,0,VENDOR
02-01-2024,Adults & Health,Supreme Home Care Agency,Home Care - Private Contractors Payment,287.28,0,VENDOR
02-01-2024,Adults & Health,Supreme Home Care Agency,Home Care - Private Contractors Payment,61.56,0,VENDOR
02-01-2024,Adults & Health,Supreme Home Care Agency,Daycare - Private Contractors Payment,20.52,0,VENDOR
02-01-2024,Adults & Health,Supreme Home Care Agency,Home Care - Private Contractors Payment,338.58,0,VENDOR
02-01-2024,Adults & Health,Supreme Home Care Agency,Home Care - Private Contractors Payment,41.04,0,VENDOR
02-01-2024,Adults & Health,Supreme Home Care Agency,Daycare - Private Contractors Payment,61.56,0,VENDOR
02-01-2024,Adults & Health,Supreme Home Care Agency,Respite Care - Private Contractors Payment,123.12,0,VENDOR
02-01-2024,Adults & Health,Supreme Home Care Agency,Home Care - Private Contractors Payment,71.82,0,VENDOR
02-01-2024,Adults & Health,Supreme Home Care Agency,Daycare - Private Contractors Payment,61.56,0,VENDOR
02-01-2024,Adults & Health,Supreme Home Care Agency,Home Care - Private Contractors Payment,610.47,0,VENDOR
02-01-2024,Adults & Health,Supreme Home Care Agency,Daycare - Private Contractors Payment,20.52,0,VENDOR
02-01-2024,Adults & Health,Supreme Home Care Agency,Home Care - Private Contractors Payment,323.19,0,VENDOR
02-01-2024,Adults & Health,Supreme Home Care Agency,Home Care - Private Contractors Payment,610.47,0,VENDOR
02-01-2024,Adults & Health,Supreme Home Care Agency,Home Care - Private Contractors Payment,82.08,0,VENDOR
02-01-2024,Adults & Health,Supreme Home Care Agency,Home Care - Private Contractors Payment,143.64,0,VENDOR
02-01-2024,Adults & Health,Supreme Home Care Agency,Respite Care - Private Contractors Payment,123.12,0,VENDOR
02-01-2024,Adults & Health,Supreme Home Care Agency,Home Care - Private Contractors Payment,323.19,0,VENDOR
02-01-2024,Adults & Health,Supreme Home Care Agency,Daycare - Private Contractors Payment,61.56,0,VENDOR
02-01-2024,Adults & Health,Supreme Home Care Agency,Home Care - Private Contractors Payment,251.37,0,VENDOR
02-01-2024,Adults & Health,Supreme Home Care Agency,Daycare - Private Contractors Payment,92.34,0,VENDOR
02-01-2024,Adults & Health,Supreme Home Care Agency,Home Care - Private Contractors Payment,359.1,0,VENDOR
02-01-2024,Adults & Health,Supreme Home Care Agency,Home Care - Private Contractors Payment,323.19,0,VENDOR
02-01-2024,Adults & Health,Supreme Home Care Agency,Home Care - Private Contractors Payment,41.04,0,VENDOR
02-01-2024,Adults & Health,Supreme Home Care Agency,Home Care - Private Contractors Payment,646.38,0,VENDOR
02-01-2024,Adults & Health,Supreme Home Care Agency,Home Care - Private Contractors Payment,179.55,0,VENDOR
02-01-2024,Adults & Health,Supreme Home Care Agency,Home Care - Private Contractors Payment,323.19,0,VENDOR
02-01-2024,Adults & Health,Supreme Home Care Agency,Home Care - Private Contractors Payment,359.1,0,VENDOR
02-01-2024,Adults & Health,Supreme Home Care Agency,Home Care - Private Contractors Payment,20.52,0,VENDOR
02-01-2024,Adults & Health,Supreme Home Care Agency,Home Care - Private Contractors Payment,41.04,0,VENDOR
02-01-2024,Adults & Health,Supreme Home Care Agency,Home Care - Private Contractors Payment,76.95,0,VENDOR
02-01-2024,Adults & Health,Supreme Home Care Agency,Home Care - Private Contractors Payment,30.78,0,VENDOR
02-01-2024,Adults & Health,Supreme Home Care Agency,Home Care - Private Contractors Payment,46.17,0,VENDOR
02-01-2024,Adults & Health,Supreme Home Care Agency,Daycare - Private Contractors Payment,123.12,0,VENDOR
02-01-2024,Adults & Health,Supreme Home Care Agency,Home Care - Private Contractors Payment,76.95,0,VENDOR
02-01-2024,Adults & Health,Supreme Home Care Agency,Home Care - Private Contractors Payment,143.64,0,VENDOR
02-01-2024,Adults & Health,Supreme Home Care Agency,Home Care - Private Contractors Payment,20.52,0,VENDOR
02-01-2024,Adults & Health,Supreme Home Care Agency,Home Care - Private Contractors Payment,323.19,0,VENDOR
02-01-2024,Adults & Health,Supreme Home Care Agency,Daycare - Private Contractors Payment,61.56,0,VENDOR
02-01-2024,Adults & Health,Supreme Home Care Agency,Home Care - Private Contractors Payment,46.17,0,VENDOR
02-01-2024,Adults & Health,Supreme Home Care Agency,Home Care - Private Contractors Payment,251.37,0,VENDOR
02-01-2024,Adults & Health,Supreme Home Care Agency,Home Care - Private Contractors Payment,143.64,0,VENDOR
02-01-2024,Adults & Health,Supreme Home Care Agency,Home Care - Private Contractors Payment,143.64,0,VENDOR
02-01-2024,Adults & Health,Supreme Home Care Agency,Daycare - Private Contractors Payment,30.78,0,VENDOR
02-01-2024,Adults & Health,Supreme Home Care Agency,Home Care - Private Contractors Payment,25.65,0,VENDOR
02-01-2024,Adults & Health,Supreme Home Care Agency,Daycare - Private Contractors Payment,20.52,0,VENDOR
02-01-2024,Adults & Health,Supreme Home Care Agency,Respite Care - Private Contractors Payment,123.12,0,VENDOR
02-01-2024,Adults & Health,Supreme Home Care Agency,Home Care - Private Contractors Payment,287.28,0,VENDOR
02-01-2024,Adults & Health,Supreme Home Care Agency,Home Care - Private Contractors Payment,738.72,0,VENDOR
02-01-2024,Adults & Health,Supreme Home Care Agency,Home Care - Private Contractors Payment,76.95,0,VENDOR
02-01-2024,Adults & Health,Supreme Home Care Agency,Daycare - Private Contractors Payment,123.12,0,VENDOR
02-01-2024,Adults & Health,Supreme Home Care Agency,Home Care - Private Contractors Payment,82.08,0,VENDOR
02-01-2024,Adults & Health,Supreme Home Care Agency,Daycare - Private Contractors Payment,20.52,0,VENDOR
02-01-2024,Adults & Health,Supreme Home Care Agency,Home Care - Private Contractors Payment,20.52,0,VENDOR
02-01-2024,Adults & Health,Supreme Home Care Agency,Home Care - Private Contractors Payment,143.64,0,VENDOR
02-01-2024,Adults & Health,Supreme Home Care Agency,Home Care - Private Contractors Payment,323.19,0,VENDOR
02-01-2024,Adults & Health,Supreme Home Care Agency,Home Care - Private Contractors Payment,251.37,0,VENDOR
02-01-2024,Adults & Health,Supreme Home Care Agency,Home Care - Private Contractors Payment,610.47,0,VENDOR
02-01-2024,Adults & Health,Supreme Home Care Agency,Home Care - Private Contractors Payment,107.73,0,VENDOR
02-01-2024,Adults & Health,Supreme Home Care Agency,Home Care - Private Contractors Payment,251.37,0,VENDOR
02-01-2024,Adults & Health,Supreme Home Care Agency,Home Care - Private Contractors Payment,20.52,0,VENDOR
02-01-2024,Adults & Health,Supreme Home Care Agency,Home Care - Private Contractors Payment,810.54,0,VENDOR
02-01-2024,Adults & Health,Supreme Home Care Agency,Home Care - Private Contractors Payment,107.73,0,VENDOR
02-01-2024,Adults & Health,Supreme Home Care Agency,Home Care - Private Contractors Payment,61.56,0,VENDOR
02-01-2024,Adults & Health,Supreme Home Care Agency,Daycare - Private Contractors Payment,30.78,0,VENDOR
02-01-2024,Adults & Health,Supreme Home Care Agency,Daycare - Private Contractors Payment,30.78,0,VENDOR
02-01-2024,Adults & Health,Supreme Home Care Agency,Home Care - Private Contractors Payment,754.11,0,VENDOR
02-01-2024,Adults & Health,Supreme Home Care Agency,Daycare - Private Contractors Payment,30.78,0,VENDOR
02-01-2024,Adults & Health,Supreme Home Care Agency,Home Care - Private Contractors Payment,287.28,0,VENDOR
02-01-2024,Adults & Health,Supreme Home Care Agency,Home Care - Private Contractors Payment,20.52,0,VENDOR
02-01-2024,Adults & Health,Supreme Home Care Agency,Home Care - Private Contractors Payment,143.64,0,VENDOR
02-01-2024,Adults & Health,Supreme Home Care Agency,Home Care - Private Contractors Payment,174.42,0,VENDOR
02-01-2024,Adults & Health,Supreme Home Care Agency,Home Care - Private Contractors Payment,87.21,0,VENDOR
02-01-2024,Adults & Health,Supreme Home Care Agency,Home Care - Private Contractors Payment,251.37,0,VENDOR
02-01-2024,Adults & Health,Supreme Home Care Agency,Home Care - Private Contractors Payment,251.37,0,VENDOR
02-01-2024,Adults & Health,Supreme Home Care Agency,Home Care - Private Contractors Payment,251.37,0,VENDOR
02-01-2024,Adults & Health,Castle Water Ltd,Water And Sewerage,743.79,0,COMMERCIAL SUPPLIER
02-01-2024,Housing Revenue Account,Swan Housing Group,Professional Services - General,888428.6,0,VENDOR
02-01-2024,Environment and Sustainable Transport,Kent County Council (Kcs),Electricity,187019.19,0,LOCAL AUTHORITY SERVICES
02-01-2024,Environment and Sustainable Transport,Riverside Truck Rental Ltd,"Purchase - Equipment, Furniture And Materials",778,0,COMMERCIAL SUPPLIER
03-01-2024,Resources,Haworth Tompkins Limited,"Maintenance - Equipment, Furniture And Materials",30870,0,COMMERCIAL SUPPLIER
03-01-2024,Housing Revenue Account,Blake Contractors Ltd,Responsive Repairs - Mechanical And Electrical,600,0,COMMERCIAL SUPPLIER
03-01-2024,Resources,LAVAT Consulting Ltd t/a PSTAX,Consultancy Fees,3250,0,COMMERCIAL SUPPLIER
03-01-2024,Adults & Health,Supply Chain Coordination Ltd (SCCL),Specialist Equipment For Service Provision,301.5,0,NHS BODIES
03-01-2024,Resources,Bellrock Property & Facilities Management Ltd,"Maintenance - Equipment, Furniture And Materials",1098.24,0,
03-01-2024,Environment and Sustainable Transport,Parking and Secure Documents,"Purchase - Equipment, Furniture And Materials",8080,0,COMMERCIAL SUPPLIER
03-01-2024,Children and Young People,First Option Healthcare,Additional Placements - Third Party,23.4,0,NON COMMERCIAL SUPPLIER
03-01-2024,Children and Young People,First Option Healthcare,Additional Placements - Third Party,23.4,0,NON COMMERCIAL SUPPLIER
03-01-2024,Children and Young People,First Option Healthcare,Additional Placements - Third Party,18.72,0,NON COMMERCIAL SUPPLIER
03-01-2024,Children and Young People,First Option Healthcare,Additional Placements - Third Party,23.4,0,NON COMMERCIAL SUPPLIER
03-01-2024,Children and Young People,First Option Healthcare,Additional Placements - Third Party,14.04,0,NON COMMERCIAL SUPPLIER
03-01-2024,Children and Young People,First Option Healthcare,Additional Placements - Third Party,251.4,0,NON COMMERCIAL SUPPLIER
03-01-2024,Children and Young People,First Option Healthcare,Additional Placements - Third Party,23.4,0,NON COMMERCIAL SUPPLIER
03-01-2024,Children and Young People,First Option Healthcare,Additional Placements - Third Party,9.15,0,NON COMMERCIAL SUPPLIER
03-01-2024,Children and Young People,First Option Healthcare,Additional Placements - Third Party,23.4,0,NON COMMERCIAL SUPPLIER
03-01-2024,Children and Young People,First Option Healthcare,Additional Placements - Third Party,9.16,0,NON COMMERCIAL SUPPLIER
03-01-2024,Children and Young People,First Option Healthcare,Additional Placements - Third Party,23.4,0,NON COMMERCIAL SUPPLIER
03-01-2024,Children and Young People,First Option Healthcare,Additional Placements - Third Party,18.72,0,NON COMMERCIAL SUPPLIER
03-01-2024,Children and Young People,First Option Healthcare,Additional Placements - Third Party,228.72,0,NON COMMERCIAL SUPPLIER
03-01-2024,Children and Young People,First Option Healthcare,Additional Placements - Third Party,-14.4,0,NON COMMERCIAL SUPPLIER
03-01-2024,Children and Young People,First Option Healthcare,Additional Placements - Third Party,-75.16,0,NON COMMERCIAL SUPPLIER
03-01-2024,Children and Young People,First Option Healthcare,Additional Placements - Third Party,-14.4,0,NON COMMERCIAL SUPPLIER
03-01-2024,Children and Young People,First Option Healthcare,Additional Placements - Third Party,-191.87,0,NON COMMERCIAL SUPPLIER
03-01-2024,Children and Young People,First Option Healthcare,Additional Placements - Third Party,-14.4,0,NON COMMERCIAL SUPPLIER
03-01-2024,Children and Young People,First Option Healthcare,Additional Placements - Third Party,251.4,0,NON COMMERCIAL SUPPLIER
03-01-2024,Children and Young People,First Option Healthcare,Additional Placements - Third Party,18.72,0,NON COMMERCIAL SUPPLIER
03-01-2024,Children and Young People,First Option Healthcare,Additional Placements - Third Party,18.72,0,NON COMMERCIAL SUPPLIER
03-01-2024,Children and Young People,First Option Healthcare,Additional Placements - Third Party,23.4,0,NON COMMERCIAL SUPPLIER
03-01-2024,Children and Young People,First Option Healthcare,Additional Placements - Third Party,251.4,0,NON COMMERCIAL SUPPLIER
03-01-2024,Children and Young People,First Option Healthcare,Additional Placements - Third Party,23.4,0,NON COMMERCIAL SUPPLIER
03-01-2024,Children and Young People,First Option Healthcare,Additional Placements - Third Party,23.4,0,NON COMMERCIAL SUPPLIER
03-01-2024,Children and Young People,First Option Healthcare,Additional Placements - Third Party,23.4,0,NON COMMERCIAL SUPPLIER
03-01-2024,Children and Young People,First Option Healthcare,Additional Placements - Third Party,23.4,0,NON COMMERCIAL SUPPLIER
03-01-2024,Children and Young People,First Option Healthcare,Additional Placements - Third Party,23.4,0,NON COMMERCIAL SUPPLIER
03-01-2024,Children and Young People,First Option Healthcare,Additional Placements - Third Party,23.4,0,NON COMMERCIAL SUPPLIER
03-01-2024,Children and Young People,First Option Healthcare,Additional Placements - Third Party,159.67,0,NON COMMERCIAL SUPPLIER
03-01-2024,Children and Young People,First Option Healthcare,Additional Placements - Third Party,23.4,0,NON COMMERCIAL SUPPLIER
03-01-2024,Children and Young People,First Option Healthcare,Additional Placements - Third Party,18.72,0,NON COMMERCIAL SUPPLIER
03-01-2024,Children and Young People,First Option Healthcare,Additional Placements - Third Party,18.72,0,NON COMMERCIAL SUPPLIER
03-01-2024,Children and Young People,First Option Healthcare,Additional Placements - Third Party,23.4,0,NON COMMERCIAL SUPPLIER
03-01-2024,Children and Young People,First Option Healthcare,Additional Placements - Third Party,23.4,0,NON COMMERCIAL SUPPLIER
03-01-2024,Children and Young People,First Option Healthcare,Additional Placements - Third Party,23.4,0,NON COMMERCIAL SUPPLIER
03-01-2024,Children and Young People,First Option Healthcare,Additional Placements - Third Party,18.72,0,NON COMMERCIAL SUPPLIER
03-01-2024,Children and Young People,First Option Healthcare,Additional Placements - Third Party,14.04,0,NON COMMERCIAL SUPPLIER
03-01-2024,Children and Young People,First Option Healthcare,Additional Placements - Third Party,23.4,0,NON COMMERCIAL SUPPLIER
03-01-2024,Children and Young People,First Option Healthcare,Additional Placements - Third Party,-33.6,0,NON COMMERCIAL SUPPLIER
03-01-2024,Children and Young People,First Option Healthcare,Additional Placements - Third Party,18.72,0,NON COMMERCIAL SUPPLIER
03-01-2024,Children and Young People,First Option Healthcare,Additional Placements - Third Party,23.4,0,NON COMMERCIAL SUPPLIER
03-01-2024,Children and Young People,First Option Healthcare,Additional Placements - Third Party,118.68,0,NON COMMERCIAL SUPPLIER
03-01-2024,Children and Young People,First Option Healthcare,Additional Placements - Third Party,111.65,0,NON COMMERCIAL SUPPLIER
03-01-2024,Children and Young People,First Option Healthcare,Additional Placements - Third Party,593.4,0,NON COMMERCIAL SUPPLIER
03-01-2024,Children and Young People,First Option Healthcare,Additional Placements - Third Party,23.4,0,NON COMMERCIAL SUPPLIER
03-01-2024,Children and Young People,First Option Healthcare,Additional Placements - Third Party,23.4,0,NON COMMERCIAL SUPPLIER
03-01-2024,Children and Young People,First Option Healthcare,Additional Placements - Third Party,18.72,0,NON COMMERCIAL SUPPLIER
03-01-2024,Children and Young People,First Option Healthcare,Additional Placements - Third Party,23.4,0,NON COMMERCIAL SUPPLIER
03-01-2024,Children and Young People,First Option Healthcare,Additional Placements - Third Party,-95.28,0,NON COMMERCIAL SUPPLIER
03-01-2024,Children and Young People,First Option Healthcare,Additional Placements - Third Party,18.72,0,NON COMMERCIAL SUPPLIER
03-01-2024,Children and Young People,First Option Healthcare,Additional Placements - Third Party,47.4,0,NON COMMERCIAL SUPPLIER
03-01-2024,Children and Young People,First Option Healthcare,Additional Placements - Third Party,23.4,0,NON COMMERCIAL SUPPLIER
03-01-2024,Children and Young People,First Option Healthcare,Additional Placements - Third Party,18.72,0,NON COMMERCIAL SUPPLIER
03-01-2024,Children and Young People,First Option Healthcare,Additional Placements - Third Party,251.4,0,NON COMMERCIAL SUPPLIER
03-01-2024,Children and Young People,First Option Healthcare,Additional Placements - Third Party,-2528.08,0,NON COMMERCIAL SUPPLIER
03-01-2024,Children and Young People,First Option Healthcare,Additional Placements - Third Party,18.72,0,NON COMMERCIAL SUPPLIER
03-01-2024,Children and Young People,First Option Healthcare,Additional Placements - Third Party,23.4,0,NON COMMERCIAL SUPPLIER
03-01-2024,Children and Young People,First Option Healthcare,Additional Placements - Third Party,23.4,0,NON COMMERCIAL SUPPLIER
03-01-2024,Children and Young People,First Option Healthcare,Additional Placements - Third Party,23.4,0,NON COMMERCIAL SUPPLIER
03-01-2024,Children and Young People,First Option Healthcare,Additional Placements - Third Party,14.04,0,NON COMMERCIAL SUPPLIER
03-01-2024,Children and Young People,First Option Healthcare,Additional Placements - Third Party,23.4,0,NON COMMERCIAL SUPPLIER
03-01-2024,Children and Young People,First Option Healthcare,Additional Placements - Third Party,308.4,0,NON COMMERCIAL SUPPLIER
03-01-2024,Children and Young People,First Option Healthcare,Additional Placements - Third Party,23.4,0,NON COMMERCIAL SUPPLIER
03-01-2024,Children and Young People,First Option Healthcare,Additional Placements - Third Party,23.4,0,NON COMMERCIAL SUPPLIER
03-01-2024,Children and Young People,First Option Healthcare,Additional Placements - Third Party,23.4,0,NON COMMERCIAL SUPPLIER
03-01-2024,Environment and Sustainable Transport,Key Tracker Ltd,Security Services (Excluding Premises),3068.18,0,COMMERCIAL SUPPLIER
03-01-2024,Adults & Health,Deafblind UK.,Daycare - Private Contractors Payment,246,0,COMMERCIAL SUPPLIER
03-01-2024,Adults & Health,Deafblind UK.,Daycare - Private Contractors Payment,246,0,COMMERCIAL SUPPLIER
03-01-2024,Adults & Health,Deafblind UK.,Daycare - Private Contractors Payment,246,0,COMMERCIAL SUPPLIER
03-01-2024,Adults & Health,Deafblind UK.,Daycare - Private Contractors Payment,246,0,COMMERCIAL SUPPLIER
03-01-2024,Adults & Health,Deafblind UK.,Daycare - Private Contractors Payment,338.28,0,COMMERCIAL SUPPLIER
03-01-2024,Adults & Health,Deafblind UK.,Daycare - Private Contractors Payment,338.25,0,COMMERCIAL SUPPLIER
03-01-2024,Adults & Health,Deafblind UK.,Daycare - Private Contractors Payment,338.25,0,COMMERCIAL SUPPLIER
03-01-2024,Adults & Health,Deafblind UK.,Daycare - Private Contractors Payment,338.25,0,COMMERCIAL SUPPLIER
03-01-2024,Environment and Sustainable Transport,Arkwood,Consultancy Fees,5720,0,COMMERCIAL SUPPLIER
03-01-2024,Children and Young People,Aceso Global Health Consultants Limited,Professional Services - General,13219.2,0,COMMERCIAL SUPPLIER
03-01-2024,Children and Young People,Aceso Global Health Consultants Limited,Professional Services - General,11628,0,COMMERCIAL SUPPLIER
03-01-2024,Housing Revenue Account,RGE Services Ltd,Cyclical/Planned Maintenance - Mechanical And Electrical,360.5,0,CIS
03-01-2024,Housing Revenue Account,RGE Services Ltd,Cyclical/Planned Maintenance - Mechanical And Electrical,267,0,CIS
03-01-2024,Adults & Health,Newsquest Media Group Ltd,"Advertising, Publicity And Marketing",2500,0,COMMERCIAL SUPPLIER
03-01-2024,RMS,Travis Perkins Trading Company Ltd,Building Alterations And Materials,1099,0,COMMERCIAL SUPPLIER
03-01-2024,RMS,Travis Perkins Trading Company Ltd,Building Alterations And Materials,214.72,0,COMMERCIAL SUPPLIER
03-01-2024,RMS,Travis Perkins Trading Company Ltd,Building Alterations And Materials,271.2,0,COMMERCIAL SUPPLIER
03-01-2024,RMS,Travis Perkins Trading Company Ltd,Building Alterations And Materials,238.2,0,COMMERCIAL SUPPLIER
03-01-2024,RMS,Travis Perkins Trading Company Ltd,Building Alterations And Materials,458.28,0,COMMERCIAL SUPPLIER
03-01-2024,RMS,Travis Perkins Trading Company Ltd,Building Alterations And Materials,1598.3,0,COMMERCIAL SUPPLIER
03-01-2024,RMS,Travis Perkins Trading Company Ltd,Building Alterations And Materials,103.32,0,COMMERCIAL SUPPLIER
03-01-2024,RMS,Travis Perkins Trading Company Ltd,Building Alterations And Materials,448.64,0,COMMERCIAL SUPPLIER
03-01-2024,RMS,Travis Perkins Trading Company Ltd,Building Alterations And Materials,61.7,0,COMMERCIAL SUPPLIER
03-01-2024,RMS,Travis Perkins Trading Company Ltd,Building Alterations And Materials,77,0,COMMERCIAL SUPPLIER
03-01-2024,RMS,Travis Perkins Trading Company Ltd,Building Alterations And Materials,305.75,0,COMMERCIAL SUPPLIER
03-01-2024,RMS,Travis Perkins Trading Company Ltd,Building Alterations And Materials,239.8,0,COMMERCIAL SUPPLIER
03-01-2024,RMS,Travis Perkins Trading Company Ltd,Building Alterations And Materials,58,0,COMMERCIAL SUPPLIER
03-01-2024,RMS,Travis Perkins Trading Company Ltd,Building Alterations And Materials,171,0,COMMERCIAL SUPPLIER
03-01-2024,RMS,Travis Perkins Trading Company Ltd,Building Alterations And Materials,100,0,COMMERCIAL SUPPLIER
03-01-2024,RMS,Travis Perkins Trading Company Ltd,Building Alterations And Materials,212,0,COMMERCIAL SUPPLIER
03-01-2024,RMS,Travis Perkins Trading Company Ltd,Building Alterations And Materials,50,0,COMMERCIAL SUPPLIER
03-01-2024,RMS,Travis Perkins Trading Company Ltd,Building Alterations And Materials,57,0,COMMERCIAL SUPPLIER
03-01-2024,RMS,Travis Perkins Trading Company Ltd,Building Alterations And Materials,46,0,COMMERCIAL SUPPLIER
03-01-2024,RMS,Travis Perkins Trading Company Ltd,Building Alterations And Materials,1407,0,COMMERCIAL SUPPLIER
03-01-2024,RMS,Travis Perkins Trading Company Ltd,Building Alterations And Materials,1438.8,0,COMMERCIAL SUPPLIER
03-01-2024,RMS,Travis Perkins Trading Company Ltd,Building Alterations And Materials,1796.4,0,COMMERCIAL SUPPLIER
03-01-2024,RMS,Travis Perkins Trading Company Ltd,Building Alterations And Materials,920.02,0,COMMERCIAL SUPPLIER
03-01-2024,RMS,Travis Perkins Trading Company Ltd,Building Alterations And Materials,268.52,0,COMMERCIAL SUPPLIER
03-01-2024,RMS,Travis Perkins Trading Company Ltd,Building Alterations And Materials,2877.6,0,COMMERCIAL SUPPLIER
03-01-2024,RMS,Travis Perkins Trading Company Ltd,Building Alterations And Materials,627.3,0,COMMERCIAL SUPPLIER
03-01-2024,RMS,Travis Perkins Trading Company Ltd,Building Alterations And Materials,600,0,COMMERCIAL SUPPLIER
03-01-2024,Environment and Sustainable Transport,Rushton Workwear Ltd,Highway Services,270,0,COMMERCIAL SUPPLIER
03-01-2024,Environment and Sustainable Transport,Rushton Workwear Ltd,Highway Services,279.5,0,COMMERCIAL SUPPLIER
03-01-2024,Environment and Sustainable Transport,Rushton Workwear Ltd,Highway Services,279.5,0,COMMERCIAL SUPPLIER
03-01-2024,Environment and Sustainable Transport,Rushton Workwear Ltd,Highway Services,432,0,COMMERCIAL SUPPLIER
03-01-2024,Environment and Sustainable Transport,Rushton Workwear Ltd,Highway Services,270,0,COMMERCIAL SUPPLIER
03-01-2024,Environment and Sustainable Transport,Rushton Workwear Ltd,Highway Services,270,0,COMMERCIAL SUPPLIER
03-01-2024,Environment and Sustainable Transport,Rushton Workwear Ltd,Highway Services,162,0,COMMERCIAL SUPPLIER
03-01-2024,Environment and Sustainable Transport,Rushton Workwear Ltd,Highway Services,135,0,COMMERCIAL SUPPLIER
03-01-2024,Environment and Sustainable Transport,Rushton Workwear Ltd,Highway Services,270,0,COMMERCIAL SUPPLIER
03-01-2024,Adults & Health,Christies Care Ltd,Home Care - Private Contractors Payment,5612,0,COMMERCIAL SUPPLIER
03-01-2024,Adults & Health,Metro Properties Ltd t/a Woodlands Lodge,Supported Other Accommodation - Private Contractors Payment,798,0,COMMERCIAL SUPPLIER
03-01-2024,Adults & Health,Metro Properties Ltd t/a Woodlands Lodge,Supported Other Accommodation - Private Contractors Payment,342,0,COMMERCIAL SUPPLIER
03-01-2024,Resources,Northumbria Healthcare NHS Foundation Trust,Payment To Health Authorities,358.32,0,NHS BODIES
03-01-2024,Resources,Northumbria Healthcare NHS Foundation Trust,Payment To Health Authorities,2820.36,0,NHS BODIES
03-01-2024,Resources,Northumbria Healthcare NHS Foundation Trust,Payment To Health Authorities,46536.2,0,NHS BODIES
03-01-2024,Resources,Northumbria Healthcare NHS Foundation Trust,Payment To Health Authorities,5945.26,0,NHS BODIES
03-01-2024,Housing Revenue Account,J.A. Steel & Son Ltd,Private Contractors Payment - Other,2359,0,COMMERCIAL SUPPLIER
03-01-2024,Adults & Health,Sayers (Car Hire),Payments To Voluntary Sector,120,0,VENDOR
03-01-2024,Adults & Health,Sayers (Car Hire),Payments To Voluntary Sector,120,0,VENDOR
03-01-2024,Adults & Health,Sayers (Car Hire),Payments To Voluntary Sector,40,0,VENDOR
03-01-2024,Inclusive Economy & Housing,Theori Housing Management Services Limited,Rents Payable,5671.33,0,COMMERCIAL SUPPLIER
03-01-2024,Inclusive Economy & Housing,Theori Housing Management Services Limited,Rents Payable,5671.33,0,COMMERCIAL SUPPLIER
03-01-2024,Inclusive Economy & Housing,Theori Housing Management Services Limited,Rents Payable,5671.33,0,COMMERCIAL SUPPLIER
03-01-2024,Inclusive Economy & Housing,Theori Housing Management Services Limited,Rents Payable,5671.33,0,COMMERCIAL SUPPLIER
03-01-2024,Marketing,Venue View Ltd,Design And Photographic Costs,7298.9,0,COMMERCIAL SUPPLIER
03-01-2024,Inclusive Economy & Housing,British Gas Business,Electricity,5612.84,0,COMMERCIAL SUPPLIER
03-01-2024,Resources,Newham Learning Partnership (Project Co) Limited,"Maintenance - Equipment, Furniture And Materials",331.88,0,VENDOR
03-01-2024,Resources,Newham Learning Partnership (Project Co) Limited,"Maintenance - Equipment, Furniture And Materials",1250.73,0,VENDOR
03-01-2024,Resources,Newham Learning Partnership (Project Co) Limited,"Maintenance - Equipment, Furniture And Materials",1738.2,0,VENDOR
03-01-2024,Adults & Health,NEC Software Solutions UK Ltd,Ict Software,4055,0,COMMERCIAL SUPPLIER
03-01-2024,Environment and Sustainable Transport,Shout Out UK,Professional Services - General,9715,0,COMMERCIAL SUPPLIER
03-01-2024,RMS,Benchmarx Kitchens and Joinery,Building Alterations And Materials,404.45,0,COMMERCIAL SUPPLIER
03-01-2024,RMS,Benchmarx Kitchens and Joinery,Building Alterations And Materials,319.83,0,COMMERCIAL SUPPLIER
03-01-2024,Environment and Sustainable Transport,Terberg Matec Uk Ltd,Highway Services,76.44,0,COMMERCIAL SUPPLIER
03-01-2024,Environment and Sustainable Transport,Terberg Matec Uk Ltd,Highway Services,146.89,0,COMMERCIAL SUPPLIER
03-01-2024,Environment and Sustainable Transport,Terberg Matec Uk Ltd,Highway Services,1934.4,0,COMMERCIAL SUPPLIER
03-01-2024,Inclusive Economy & Housing,A DAKRI AND CO LTD T/A GREENLEAF HOTEL,Rents Payable,7210,0,CARERS
03-01-2024,Inclusive Economy & Housing,A DAKRI AND CO LTD T/A GREENLEAF HOTEL,Rents Payable,6860,0,CARERS
03-01-2024,Inclusive Economy & Housing,A DAKRI AND CO LTD T/A GREENLEAF HOTEL,Rents Payable,7980,0,CARERS
03-01-2024,Inclusive Economy & Housing,A DAKRI AND CO LTD T/A GREENLEAF HOTEL,Rents Payable,6570,0,CARERS
03-01-2024,Inclusive Economy & Housing,A DAKRI AND CO LTD T/A GREENLEAF HOTEL,Rents Payable,6980,0,CARERS
03-01-2024,Inclusive Economy & Housing,A DAKRI AND CO LTD T/A GREENLEAF HOTEL,Rents Payable,7960,0,CARERS
03-01-2024,Inclusive Economy & Housing,A DAKRI AND CO LTD T/A GREENLEAF HOTEL,Rents Payable,8260,0,CARERS
03-01-2024,Inclusive Economy & Housing,A DAKRI AND CO LTD T/A GREENLEAF HOTEL,Rents Payable,8260,0,CARERS
03-01-2024,Resources,ikon Consultancy Ltd t/a Lambert Smith Hampton Group Ltd,Consultancy Fees,676.52,0,COMMERCIAL SUPPLIER
03-01-2024,Dedicated Schools Budget,Personal Information - Redacted,Agency Staff,668.32,0,COMMERCIAL SUPPLIER
03-01-2024,Inclusive Economy & Housing,Personal Information - Redacted,Rents Payable,1767,0,INDIVIDUALS
03-01-2024,Children and Young People,Skyguard Ltd,Health And Safety Works,10441.2,0,COMMERCIAL SUPPLIER
03-01-2024,Adults & Health,Nomase Care Ltd,Home Care - Private Contractors Payment,3460.93,0,NON COMMERCIAL SUPPLIER
03-01-2024,Dedicated Schools Budget,Personal Information - Redacted,Schools - Transfer Payment,128023,0,COMMERCIAL SUPPLIER
03-01-2024,Dedicated Schools Budget,Personal Information - Redacted,Schools - Transfer Payment,658618.88,0,NON COMMERCIAL SUPPLIER
03-01-2024,Adults & Health,Look Ahead Housing and Care Ltd,Supported Other Accommodation - Private Contractors Payment,901.53,0,COMMERCIAL SUPPLIER
03-01-2024,Adults & Health,Look Ahead Housing and Care Ltd,Supported Other Accommodation - Private Contractors Payment,901.53,0,COMMERCIAL SUPPLIER
03-01-2024,Adults & Health,Look Ahead Housing and Care Ltd,Supported Other Accommodation - Private Contractors Payment,665.61,0,COMMERCIAL SUPPLIER
03-01-2024,Adults & Health,Look Ahead Housing and Care Ltd,Supported Other Accommodation - Private Contractors Payment,901.53,0,COMMERCIAL SUPPLIER
03-01-2024,Adults & Health,Look Ahead Housing and Care Ltd,Supported Other Accommodation - Private Contractors Payment,913.6,0,COMMERCIAL SUPPLIER
03-01-2024,Adults & Health,Look Ahead Housing and Care Ltd,Supported Other Accommodation - Private Contractors Payment,913.6,0,COMMERCIAL SUPPLIER
03-01-2024,Adults & Health,Look Ahead Housing and Care Ltd,Supported Other Accommodation - Private Contractors Payment,674.52,0,COMMERCIAL SUPPLIER
03-01-2024,Adults & Health,Look Ahead Housing and Care Ltd,Supported Other Accommodation - Private Contractors Payment,913.6,0,COMMERCIAL SUPPLIER
03-01-2024,Adults & Health,Look Ahead Housing and Care Ltd,Supported Other Accommodation - Private Contractors Payment,901.53,0,COMMERCIAL SUPPLIER
03-01-2024,Adults & Health,Look Ahead Housing and Care Ltd,Supported Other Accommodation - Private Contractors Payment,901.53,0,COMMERCIAL SUPPLIER
03-01-2024,Adults & Health,Look Ahead Housing and Care Ltd,Supported Other Accommodation - Private Contractors Payment,901.53,0,COMMERCIAL SUPPLIER
03-01-2024,Adults & Health,Look Ahead Housing and Care Ltd,Supported Other Accommodation - Private Contractors Payment,665.61,0,COMMERCIAL SUPPLIER
03-01-2024,Adults & Health,Look Ahead Housing and Care Ltd,Supported Other Accommodation - Private Contractors Payment,665.61,0,COMMERCIAL SUPPLIER
03-01-2024,Adults & Health,Look Ahead Housing and Care Ltd,Supported Other Accommodation - Private Contractors Payment,901.53,0,COMMERCIAL SUPPLIER
03-01-2024,Adults & Health,Look Ahead Housing and Care Ltd,Supported Other Accommodation - Private Contractors Payment,901.53,0,COMMERCIAL SUPPLIER
03-01-2024,Adults & Health,Look Ahead Housing and Care Ltd,Supported Other Accommodation - Private Contractors Payment,901.53,0,COMMERCIAL SUPPLIER
03-01-2024,Adults & Health,Look Ahead Housing and Care Ltd,Supported Other Accommodation - Private Contractors Payment,950.31,0,COMMERCIAL SUPPLIER
03-01-2024,Adults & Health,Look Ahead Housing and Care Ltd,Supported Other Accommodation - Private Contractors Payment,950.31,0,COMMERCIAL SUPPLIER
03-01-2024,Adults & Health,Look Ahead Housing and Care Ltd,Supported Other Accommodation - Private Contractors Payment,703.27,0,COMMERCIAL SUPPLIER
03-01-2024,Adults & Health,Look Ahead Housing and Care Ltd,Supported Other Accommodation - Private Contractors Payment,950.31,0,COMMERCIAL SUPPLIER
03-01-2024,Adults & Health,Look Ahead Housing and Care Ltd,Supported Other Accommodation - Private Contractors Payment,253.59,0,COMMERCIAL SUPPLIER
03-01-2024,Adults & Health,Look Ahead Housing and Care Ltd,Supported Other Accommodation - Private Contractors Payment,253.59,0,COMMERCIAL SUPPLIER
03-01-2024,Adults & Health,Look Ahead Housing and Care Ltd,Supported Other Accommodation - Private Contractors Payment,253.59,0,COMMERCIAL SUPPLIER
03-01-2024,Adults & Health,Look Ahead Housing and Care Ltd,Supported Other Accommodation - Private Contractors Payment,189.63,0,COMMERCIAL SUPPLIER
03-01-2024,Adults & Health,Look Ahead Housing and Care Ltd,Supported Other Accommodation - Private Contractors Payment,970.21,0,COMMERCIAL SUPPLIER
03-01-2024,Adults & Health,Look Ahead Housing and Care Ltd,Supported Other Accommodation - Private Contractors Payment,716.33,0,COMMERCIAL SUPPLIER
03-01-2024,Adults & Health,Look Ahead Housing and Care Ltd,Supported Other Accommodation - Private Contractors Payment,970.21,0,COMMERCIAL SUPPLIER
03-01-2024,Adults & Health,Look Ahead Housing and Care Ltd,Supported Other Accommodation - Private Contractors Payment,970.21,0,COMMERCIAL SUPPLIER
03-01-2024,Adults & Health,Look Ahead Housing and Care Ltd,Supported Other Accommodation - Private Contractors Payment,558.7,0,COMMERCIAL SUPPLIER
03-01-2024,Adults & Health,Look Ahead Housing and Care Ltd,Supported Other Accommodation - Private Contractors Payment,756.7,0,COMMERCIAL SUPPLIER
03-01-2024,Adults & Health,Look Ahead Housing and Care Ltd,Supported Other Accommodation - Private Contractors Payment,756.7,0,COMMERCIAL SUPPLIER
03-01-2024,Adults & Health,Look Ahead Housing and Care Ltd,Supported Other Accommodation - Private Contractors Payment,756.7,0,COMMERCIAL SUPPLIER
03-01-2024,Adults & Health,Look Ahead Housing and Care Ltd,Supported Other Accommodation - Private Contractors Payment,558.7,0,COMMERCIAL SUPPLIER
03-01-2024,Adults & Health,Look Ahead Housing and Care Ltd,Supported Other Accommodation - Private Contractors Payment,756.7,0,COMMERCIAL SUPPLIER
03-01-2024,Adults & Health,Look Ahead Housing and Care Ltd,Supported Other Accommodation - Private Contractors Payment,756.7,0,COMMERCIAL SUPPLIER
03-01-2024,Adults & Health,Look Ahead Housing and Care Ltd,Supported Other Accommodation - Private Contractors Payment,756.7,0,COMMERCIAL SUPPLIER
03-01-2024,Adults & Health,Look Ahead Housing and Care Ltd,Supported Other Accommodation - Private Contractors Payment,756.7,0,COMMERCIAL SUPPLIER
03-01-2024,Adults & Health,Look Ahead Housing and Care Ltd,Supported Other Accommodation - Private Contractors Payment,756.7,0,COMMERCIAL SUPPLIER
03-01-2024,Adults & Health,Look Ahead Housing and Care Ltd,Supported Other Accommodation - Private Contractors Payment,756.7,0,COMMERCIAL SUPPLIER
03-01-2024,Adults & Health,Look Ahead Housing and Care Ltd,Supported Other Accommodation - Private Contractors Payment,558.7,0,COMMERCIAL SUPPLIER
03-01-2024,Environment and Sustainable Transport,Digitec Security Ltd,Security Services (Excluding Premises),826.9,0,COMMERCIAL SUPPLIER
03-01-2024,Housing Revenue Account,Barnes Solicitors LLP,Legal Fees,9400,0,COMMERCIAL SUPPLIER
03-01-2024,Environment and Sustainable Transport,Matrix Scm,Agency Staff,383.73,0,COMMERCIAL SUPPLIER
03-01-2024,Environment and Sustainable Transport,Matrix Scm,Agency Staff,493.34,0,COMMERCIAL SUPPLIER
03-01-2024,Environment and Sustainable Transport,Matrix Scm,Agency Staff,159.11,0,COMMERCIAL SUPPLIER
03-01-2024,Environment and Sustainable Transport,Matrix Scm,Agency Staff,1022.33,0,COMMERCIAL SUPPLIER
03-01-2024,Environment and Sustainable Transport,Matrix Scm,Agency Staff,222.39,0,COMMERCIAL SUPPLIER
03-01-2024,Environment and Sustainable Transport,Matrix Scm,Agency Staff,843.01,0,COMMERCIAL SUPPLIER
03-01-2024,Environment and Sustainable Transport,Matrix Scm,Agency Staff,185.6,0,COMMERCIAL SUPPLIER
03-01-2024,Environment and Sustainable Transport,Matrix Scm,Agency Staff,395.52,0,COMMERCIAL SUPPLIER
03-01-2024,Environment and Sustainable Transport,Matrix Scm,Agency Staff,163.94,0,COMMERCIAL SUPPLIER
03-01-2024,Environment and Sustainable Transport,Matrix Scm,Agency Staff,421.84,0,COMMERCIAL SUPPLIER
03-01-2024,Environment and Sustainable Transport,Matrix Scm,Agency Staff,843.01,0,COMMERCIAL SUPPLIER
03-01-2024,Environment and Sustainable Transport,Matrix Scm,Agency Staff,527.56,0,COMMERCIAL SUPPLIER
03-01-2024,Environment and Sustainable Transport,Matrix Scm,Agency Staff,744.34,0,COMMERCIAL SUPPLIER
03-01-2024,Environment and Sustainable Transport,Matrix Scm,Agency Staff,159.11,0,COMMERCIAL SUPPLIER
03-01-2024,Environment and Sustainable Transport,Matrix Scm,Agency Staff,706.34,0,COMMERCIAL SUPPLIER
03-01-2024,Environment and Sustainable Transport,Matrix Scm,Agency Staff,558.74,0,COMMERCIAL SUPPLIER
03-01-2024,Environment and Sustainable Transport,Matrix Scm,Agency Staff,179.2,0,COMMERCIAL SUPPLIER
03-01-2024,Environment and Sustainable Transport,Matrix Scm,Agency Staff,263.78,0,COMMERCIAL SUPPLIER
03-01-2024,Environment and Sustainable Transport,Matrix Scm,Agency Staff,185.6,0,COMMERCIAL SUPPLIER
03-01-2024,Environment and Sustainable Transport,Matrix Scm,Agency Staff,395.67,0,COMMERCIAL SUPPLIER
03-01-2024,Environment and Sustainable Transport,Matrix Scm,Agency Staff,468.51,0,COMMERCIAL SUPPLIER
03-01-2024,Environment and Sustainable Transport,Matrix Scm,Agency Staff,338.58,0,COMMERCIAL SUPPLIER
03-01-2024,Environment and Sustainable Transport,Matrix Scm,Agency Staff,852.81,0,COMMERCIAL SUPPLIER
03-01-2024,Environment and Sustainable Transport,Matrix Scm,Agency Staff,1022.33,0,COMMERCIAL SUPPLIER
03-01-2024,Environment and Sustainable Transport,Matrix Scm,Agency Staff,222.39,0,COMMERCIAL SUPPLIER
03-01-2024,Environment and Sustainable Transport,Matrix Scm,Agency Staff,383.58,0,COMMERCIAL SUPPLIER
03-01-2024,Environment and Sustainable Transport,Matrix Scm,Agency Staff,998.55,0,COMMERCIAL SUPPLIER
03-01-2024,Environment and Sustainable Transport,Matrix Scm,Agency Staff,222.39,0,COMMERCIAL SUPPLIER
03-01-2024,Environment and Sustainable Transport,Matrix Scm,Agency Staff,383.58,0,COMMERCIAL SUPPLIER
03-01-2024,Environment and Sustainable Transport,Matrix Scm,Agency Staff,274.47,0,COMMERCIAL SUPPLIER
03-01-2024,Environment and Sustainable Transport,Matrix Scm,Agency Staff,163.94,0,COMMERCIAL SUPPLIER
03-01-2024,Environment and Sustainable Transport,Matrix Scm,Agency Staff,388.59,0,COMMERCIAL SUPPLIER
03-01-2024,Environment and Sustainable Transport,Matrix Scm,Agency Staff,185.6,0,COMMERCIAL SUPPLIER
03-01-2024,Environment and Sustainable Transport,Matrix Scm,Agency Staff,753,0,COMMERCIAL SUPPLIER
03-01-2024,Environment and Sustainable Transport,Matrix Scm,Agency Staff,156.38,0,COMMERCIAL SUPPLIER
03-01-2024,Environment and Sustainable Transport,Matrix Scm,Agency Staff,925.36,0,COMMERCIAL SUPPLIER
03-01-2024,Environment and Sustainable Transport,Matrix Scm,Agency Staff,744.34,0,COMMERCIAL SUPPLIER
03-01-2024,Environment and Sustainable Transport,Matrix Scm,Agency Staff,169.8,0,COMMERCIAL SUPPLIER
03-01-2024,Environment and Sustainable Transport,Matrix Scm,Agency Staff,222.39,0,COMMERCIAL SUPPLIER
03-01-2024,Environment and Sustainable Transport,Matrix Scm,Agency Staff,383.58,0,COMMERCIAL SUPPLIER
03-01-2024,Environment and Sustainable Transport,Matrix Scm,Agency Staff,501.57,0,COMMERCIAL SUPPLIER
03-01-2024,Environment and Sustainable Transport,Matrix Scm,Agency Staff,624.61,0,COMMERCIAL SUPPLIER
03-01-2024,Environment and Sustainable Transport,Matrix Scm,Agency Staff,503.16,0,COMMERCIAL SUPPLIER
03-01-2024,Environment and Sustainable Transport,Matrix Scm,Agency Staff,727.02,0,COMMERCIAL SUPPLIER
03-01-2024,Environment and Sustainable Transport,Matrix Scm,Agency Staff,256,0,COMMERCIAL SUPPLIER
03-01-2024,Environment and Sustainable Transport,Matrix Scm,Agency Staff,137.34,0,COMMERCIAL SUPPLIER
03-01-2024,Environment and Sustainable Transport,Matrix Scm,Agency Staff,286.4,0,COMMERCIAL SUPPLIER
03-01-2024,Environment and Sustainable Transport,Matrix Scm,Agency Staff,274.47,0,COMMERCIAL SUPPLIER
03-01-2024,Environment and Sustainable Transport,Matrix Scm,Agency Staff,256,0,COMMERCIAL SUPPLIER
03-01-2024,Environment and Sustainable Transport,Matrix Scm,Agency Staff,306.09,0,COMMERCIAL SUPPLIER
03-01-2024,Environment and Sustainable Transport,Matrix Scm,Agency Staff,256,0,COMMERCIAL SUPPLIER
03-01-2024,Environment and Sustainable Transport,Matrix Scm,Agency Staff,284.27,0,COMMERCIAL SUPPLIER
03-01-2024,Environment and Sustainable Transport,Matrix Scm,Agency Staff,179.2,0,COMMERCIAL SUPPLIER
03-01-2024,Environment and Sustainable Transport,Matrix Scm,Agency Staff,274.47,0,COMMERCIAL SUPPLIER
03-01-2024,Environment and Sustainable Transport,Matrix Scm,Agency Staff,256,0,COMMERCIAL SUPPLIER
03-01-2024,Environment and Sustainable Transport,Matrix Scm,Agency Staff,256,0,COMMERCIAL SUPPLIER
03-01-2024,Environment and Sustainable Transport,Matrix Scm,Agency Staff,284.27,0,COMMERCIAL SUPPLIER
03-01-2024,Environment and Sustainable Transport,Matrix Scm,Agency Staff,256,0,COMMERCIAL SUPPLIER
03-01-2024,Environment and Sustainable Transport,Matrix Scm,Agency Staff,340.1,0,COMMERCIAL SUPPLIER
03-01-2024,Environment and Sustainable Transport,Matrix Scm,Agency Staff,306.09,0,COMMERCIAL SUPPLIER
03-01-2024,Environment and Sustainable Transport,Matrix Scm,Agency Staff,306.09,0,COMMERCIAL SUPPLIER
03-01-2024,Environment and Sustainable Transport,Matrix Scm,Agency Staff,306.09,0,COMMERCIAL SUPPLIER
03-01-2024,Environment and Sustainable Transport,Matrix Scm,Agency Staff,1130.75,0,COMMERCIAL SUPPLIER
03-01-2024,RMS,Matrix Scm,Agency Staff,848.43,0,COMMERCIAL SUPPLIER
03-01-2024,RMS,Matrix Scm,Agency Staff,641.04,0,COMMERCIAL SUPPLIER
03-01-2024,RMS,Matrix Scm,Agency Staff,778.48,0,COMMERCIAL SUPPLIER
03-01-2024,RMS,Matrix Scm,Agency Staff,1002.35,0,COMMERCIAL SUPPLIER
03-01-2024,RMS,Matrix Scm,Agency Staff,538.48,0,COMMERCIAL SUPPLIER
03-01-2024,Inclusive Economy & Housing,Matrix Scm,Agency Staff,589.56,0,COMMERCIAL SUPPLIER
03-01-2024,Environment and Sustainable Transport,Matrix Scm,Agency Staff,395.52,0,COMMERCIAL SUPPLIER
03-01-2024,Environment and Sustainable Transport,Matrix Scm,Agency Staff,925.36,0,COMMERCIAL SUPPLIER
03-01-2024,Environment and Sustainable Transport,Matrix Scm,Agency Staff,201.18,0,COMMERCIAL SUPPLIER
03-01-2024,Environment and Sustainable Transport,Matrix Scm,Agency Staff,1022.33,0,COMMERCIAL SUPPLIER
03-01-2024,Environment and Sustainable Transport,Matrix Scm,Agency Staff,230.33,0,COMMERCIAL SUPPLIER
03-01-2024,Environment and Sustainable Transport,Matrix Scm,Agency Staff,744.34,0,COMMERCIAL SUPPLIER
03-01-2024,Environment and Sustainable Transport,Matrix Scm,Agency Staff,744.34,0,COMMERCIAL SUPPLIER
03-01-2024,Environment and Sustainable Transport,Matrix Scm,Agency Staff,159.18,0,COMMERCIAL SUPPLIER
03-01-2024,Environment and Sustainable Transport,Matrix Scm,Agency Staff,568.54,0,COMMERCIAL SUPPLIER
03-01-2024,Environment and Sustainable Transport,Matrix Scm,Agency Staff,185.6,0,COMMERCIAL SUPPLIER
03-01-2024,Environment and Sustainable Transport,Matrix Scm,Agency Staff,1022.33,0,COMMERCIAL SUPPLIER
03-01-2024,Environment and Sustainable Transport,Matrix Scm,Agency Staff,222.39,0,COMMERCIAL SUPPLIER
03-01-2024,Environment and Sustainable Transport,Matrix Scm,Agency Staff,395.52,0,COMMERCIAL SUPPLIER
03-01-2024,Environment and Sustainable Transport,Matrix Scm,Agency Staff,843.01,0,COMMERCIAL SUPPLIER
03-01-2024,Environment and Sustainable Transport,Matrix Scm,Agency Staff,179.2,0,COMMERCIAL SUPPLIER
03-01-2024,Environment and Sustainable Transport,Matrix Scm,Agency Staff,383.73,0,COMMERCIAL SUPPLIER
03-01-2024,Inclusive Economy & Housing,Matrix Scm,Agency Staff,529.74,0,COMMERCIAL SUPPLIER
03-01-2024,Inclusive Economy & Housing,Matrix Scm,Agency Staff,706.34,0,COMMERCIAL SUPPLIER
03-01-2024,Environment and Sustainable Transport,Matrix Scm,Agency Staff,719.28,0,COMMERCIAL SUPPLIER
03-01-2024,Environment and Sustainable Transport,Matrix Scm,Agency Staff,255.82,0,COMMERCIAL SUPPLIER
03-01-2024,Environment and Sustainable Transport,Matrix Scm,Agency Staff,843.01,0,COMMERCIAL SUPPLIER
03-01-2024,Environment and Sustainable Transport,Matrix Scm,Agency Staff,388.59,0,COMMERCIAL SUPPLIER
03-01-2024,Environment and Sustainable Transport,Matrix Scm,Agency Staff,185.6,0,COMMERCIAL SUPPLIER
03-01-2024,Environment and Sustainable Transport,Matrix Scm,Agency Staff,502,0,COMMERCIAL SUPPLIER
03-01-2024,Environment and Sustainable Transport,Matrix Scm,Agency Staff,843.01,0,COMMERCIAL SUPPLIER
03-01-2024,Environment and Sustainable Transport,Matrix Scm,Agency Staff,179.2,0,COMMERCIAL SUPPLIER
03-01-2024,Environment and Sustainable Transport,Matrix Scm,Agency Staff,131.89,0,COMMERCIAL SUPPLIER
03-01-2024,Environment and Sustainable Transport,Matrix Scm,Agency Staff,843.01,0,COMMERCIAL SUPPLIER
03-01-2024,Environment and Sustainable Transport,Matrix Scm,Agency Staff,179.2,0,COMMERCIAL SUPPLIER
03-01-2024,Environment and Sustainable Transport,Matrix Scm,Agency Staff,383.73,0,COMMERCIAL SUPPLIER
03-01-2024,Environment and Sustainable Transport,Matrix Scm,Agency Staff,1022.33,0,COMMERCIAL SUPPLIER
03-01-2024,Environment and Sustainable Transport,Matrix Scm,Agency Staff,222.39,0,COMMERCIAL SUPPLIER
03-01-2024,Transformation,Matrix Scm,Agency Staff,1235.4,0,COMMERCIAL SUPPLIER
03-01-2024,Transformation,Matrix Scm,Agency Staff,1235.4,0,COMMERCIAL SUPPLIER
03-01-2024,Inclusive Economy & Housing,Matrix Scm,Agency Staff,1176.65,0,COMMERCIAL SUPPLIER
03-01-2024,Children and Young People,Matrix Scm,Agency Staff,614.58,0,COMMERCIAL SUPPLIER
03-01-2024,Environment and Sustainable Transport,Matrix Scm,Agency Staff,179.2,0,COMMERCIAL SUPPLIER
03-01-2024,Environment and Sustainable Transport,Matrix Scm,Agency Staff,252.9,0,COMMERCIAL SUPPLIER
03-01-2024,Environment and Sustainable Transport,Matrix Scm,Agency Staff,747.85,0,COMMERCIAL SUPPLIER
03-01-2024,Environment and Sustainable Transport,Matrix Scm,Agency Staff,297.25,0,COMMERCIAL SUPPLIER
03-01-2024,Environment and Sustainable Transport,Matrix Scm,Agency Staff,727.22,0,COMMERCIAL SUPPLIER
03-01-2024,Environment and Sustainable Transport,Matrix Scm,Agency Staff,119.08,0,COMMERCIAL SUPPLIER
03-01-2024,Environment and Sustainable Transport,Matrix Scm,Agency Staff,824.4,0,COMMERCIAL SUPPLIER
03-01-2024,Children and Young People,Matrix Scm,Agency Staff,1344.96,0,COMMERCIAL SUPPLIER
03-01-2024,Children and Young People,Matrix Scm,Agency Staff,541.86,0,COMMERCIAL SUPPLIER
03-01-2024,Children and Young People,Matrix Scm,Agency Staff,1344.96,0,COMMERCIAL SUPPLIER
03-01-2024,Children and Young People,Matrix Scm,Agency Staff,502.71,0,COMMERCIAL SUPPLIER
03-01-2024,Children and Young People,Matrix Scm,Agency Staff,812.79,0,COMMERCIAL SUPPLIER
03-01-2024,Children and Young People,Matrix Scm,Agency Staff,573.16,0,COMMERCIAL SUPPLIER
03-01-2024,Children and Young People,Matrix Scm,Agency Staff,1447.94,0,COMMERCIAL SUPPLIER
03-01-2024,Children and Young People,Matrix Scm,Agency Staff,1383.48,0,COMMERCIAL SUPPLIER
03-01-2024,Children and Young People,Matrix Scm,Agency Staff,1361.27,0,COMMERCIAL SUPPLIER
03-01-2024,Children and Young People,Matrix Scm,Agency Staff,711,0,COMMERCIAL SUPPLIER
03-01-2024,Children and Young People,Matrix Scm,Agency Staff,362.97,0,COMMERCIAL SUPPLIER
03-01-2024,Children and Young People,Matrix Scm,Agency Staff,362.97,0,COMMERCIAL SUPPLIER
03-01-2024,Housing Revenue Account,Matrix Scm,Agency Staff,727.2,0,COMMERCIAL SUPPLIER
03-01-2024,Housing Revenue Account,Matrix Scm,Agency Staff,2063.31,0,COMMERCIAL SUPPLIER
03-01-2024,Housing Revenue Account,Matrix Scm,Agency Staff,2363.52,0,COMMERCIAL SUPPLIER
03-01-2024,Housing Revenue Account,Matrix Scm,Agency Staff,969.12,0,COMMERCIAL SUPPLIER
03-01-2024,Housing Revenue Account,Matrix Scm,Agency Staff,969.6,0,COMMERCIAL SUPPLIER
03-01-2024,oneSource,Matrix Scm,Agency Staff,831.23,0,COMMERCIAL SUPPLIER
03-01-2024,oneSource,Matrix Scm,Agency Staff,1437.48,0,COMMERCIAL SUPPLIER
03-01-2024,oneSource,Matrix Scm,Agency Staff,1216.8,0,COMMERCIAL SUPPLIER
03-01-2024,oneSource,Matrix Scm,Agency Staff,1617.53,0,COMMERCIAL SUPPLIER
03-01-2024,Housing Revenue Account,Matrix Scm,Agency Staff,1137.08,0,COMMERCIAL SUPPLIER
03-01-2024,Housing Revenue Account,Matrix Scm,Agency Staff,137.34,0,COMMERCIAL SUPPLIER
03-01-2024,Housing Revenue Account,Matrix Scm,Agency Staff,125.79,0,COMMERCIAL SUPPLIER
03-01-2024,Housing Revenue Account,Matrix Scm,Agency Staff,274.47,0,COMMERCIAL SUPPLIER
03-01-2024,Housing Revenue Account,Matrix Scm,Agency Staff,137.34,0,COMMERCIAL SUPPLIER
03-01-2024,Housing Revenue Account,Matrix Scm,Agency Staff,1097.88,0,COMMERCIAL SUPPLIER
03-01-2024,Housing Revenue Account,Matrix Scm,Agency Staff,281.6,0,COMMERCIAL SUPPLIER
03-01-2024,Housing Revenue Account,Matrix Scm,Agency Staff,383.73,0,COMMERCIAL SUPPLIER
03-01-2024,Housing Revenue Account,Matrix Scm,Agency Staff,284.27,0,COMMERCIAL SUPPLIER
03-01-2024,Housing Revenue Account,Matrix Scm,Agency Staff,284.5,0,COMMERCIAL SUPPLIER
03-01-2024,Housing Revenue Account,Matrix Scm,Agency Staff,706.34,0,COMMERCIAL SUPPLIER
03-01-2024,Housing Revenue Account,Matrix Scm,Agency Staff,556.46,0,COMMERCIAL SUPPLIER
03-01-2024,Housing Revenue Account,Matrix Scm,Agency Staff,303,0,COMMERCIAL SUPPLIER
03-01-2024,Transformation,Matrix Scm,Agency Staff,3408.4,0,COMMERCIAL SUPPLIER
03-01-2024,Transformation,Matrix Scm,Agency Staff,2840.55,0,COMMERCIAL SUPPLIER
03-01-2024,Inclusive Economy & Housing,Matrix Scm,Agency Staff,523.12,0,COMMERCIAL SUPPLIER
03-01-2024,Inclusive Economy & Housing,Matrix Scm,Agency Staff,1570.98,0,COMMERCIAL SUPPLIER
03-01-2024,Children and Young People,Matrix Scm,Agency Staff,251.78,0,COMMERCIAL SUPPLIER
03-01-2024,Environment and Sustainable Transport,Matrix Scm,Agency Staff,1363.53,0,COMMERCIAL SUPPLIER
03-01-2024,Environment and Sustainable Transport,Matrix Scm,Agency Staff,426.1,0,COMMERCIAL SUPPLIER
03-01-2024,Housing Revenue Account,Matrix Scm,Agency Staff,1113.43,0,COMMERCIAL SUPPLIER
03-01-2024,Housing Revenue Account,Matrix Scm,Agency Staff,306.68,0,COMMERCIAL SUPPLIER
03-01-2024,Housing Revenue Account,Matrix Scm,Agency Staff,1172.66,0,COMMERCIAL SUPPLIER
03-01-2024,Housing Revenue Account,Matrix Scm,Agency Staff,142.14,0,COMMERCIAL SUPPLIER
03-01-2024,Housing Revenue Account,Matrix Scm,Agency Staff,56.78,0,COMMERCIAL SUPPLIER
03-01-2024,Housing Revenue Account,Matrix Scm,Agency Staff,626.22,0,COMMERCIAL SUPPLIER
03-01-2024,Housing Revenue Account,Matrix Scm,Agency Staff,23.59,0,COMMERCIAL SUPPLIER
03-01-2024,Housing Revenue Account,Matrix Scm,Agency Staff,1539.85,0,COMMERCIAL SUPPLIER
03-01-2024,Housing Revenue Account,Matrix Scm,Agency Staff,306.68,0,COMMERCIAL SUPPLIER
03-01-2024,Housing Revenue Account,Matrix Scm,Agency Staff,1279.26,0,COMMERCIAL SUPPLIER
03-01-2024,Housing Revenue Account,Matrix Scm,Agency Staff,113.56,0,COMMERCIAL SUPPLIER
03-01-2024,Housing Revenue Account,Matrix Scm,Agency Staff,114,0,COMMERCIAL SUPPLIER
03-01-2024,Dedicated Schools Budget,Personal Information - Redacted,Schools - Transfer Payment,31296.9,0,LOCAL AUTHORITY SERVICES
03-01-2024,Inclusive Economy & Housing,Matrix Scm,Agency Staff,938.35,0,COMMERCIAL SUPPLIER
03-01-2024,Housing Revenue Account,Matrix Scm,Agency Staff,294.89,0,COMMERCIAL SUPPLIER
03-01-2024,Housing Revenue Account,Matrix Scm,Agency Staff,473.8,0,COMMERCIAL SUPPLIER
03-01-2024,Housing Revenue Account,Matrix Scm,Agency Staff,1853.28,0,COMMERCIAL SUPPLIER
03-01-2024,Housing Revenue Account,Matrix Scm,Agency Staff,923.91,0,COMMERCIAL SUPPLIER
03-01-2024,Housing Revenue Account,Matrix Scm,Agency Staff,330.26,0,COMMERCIAL SUPPLIER
03-01-2024,Housing Revenue Account,Matrix Scm,Agency Staff,1730.52,0,COMMERCIAL SUPPLIER
03-01-2024,Housing Revenue Account,Matrix Scm,Agency Staff,410.1,0,COMMERCIAL SUPPLIER
03-01-2024,Housing Revenue Account,Matrix Scm,Agency Staff,91.04,0,COMMERCIAL SUPPLIER
03-01-2024,Housing Revenue Account,Matrix Scm,Agency Staff,153.34,0,COMMERCIAL SUPPLIER
03-01-2024,Housing Revenue Account,Matrix Scm,Agency Staff,2557.3,0,COMMERCIAL SUPPLIER
03-01-2024,Housing Revenue Account,Matrix Scm,Agency Staff,330.26,0,COMMERCIAL SUPPLIER
03-01-2024,Housing Revenue Account,Matrix Scm,Agency Staff,549.75,0,COMMERCIAL SUPPLIER
03-01-2024,Housing Revenue Account,Matrix Scm,Agency Staff,550.75,0,COMMERCIAL SUPPLIER
03-01-2024,Housing Revenue Account,Matrix Scm,Agency Staff,330.26,0,COMMERCIAL SUPPLIER
03-01-2024,Environment and Sustainable Transport,Matrix Scm,Agency Staff,444.8,0,COMMERCIAL SUPPLIER
03-01-2024,Environment and Sustainable Transport,Matrix Scm,Agency Staff,357.24,0,COMMERCIAL SUPPLIER
03-01-2024,Environment and Sustainable Transport,Matrix Scm,Agency Staff,354.24,0,COMMERCIAL SUPPLIER
03-01-2024,Environment and Sustainable Transport,Matrix Scm,Agency Staff,664.12,0,COMMERCIAL SUPPLIER
03-01-2024,Environment and Sustainable Transport,Matrix Scm,Agency Staff,143.95,0,COMMERCIAL SUPPLIER
03-01-2024,Environment and Sustainable Transport,Matrix Scm,Agency Staff,804.05,0,COMMERCIAL SUPPLIER
03-01-2024,Environment and Sustainable Transport,Matrix Scm,Agency Staff,143.95,0,COMMERCIAL SUPPLIER
03-01-2024,Environment and Sustainable Transport,Matrix Scm,Agency Staff,342.18,0,COMMERCIAL SUPPLIER
03-01-2024,Environment and Sustainable Transport,Matrix Scm,Agency Staff,798.5,0,COMMERCIAL SUPPLIER
03-01-2024,Environment and Sustainable Transport,Matrix Scm,Agency Staff,429.6,0,COMMERCIAL SUPPLIER
03-01-2024,Environment and Sustainable Transport,Matrix Scm,Agency Staff,86.37,0,COMMERCIAL SUPPLIER
03-01-2024,Environment and Sustainable Transport,Matrix Scm,Agency Staff,766.43,0,COMMERCIAL SUPPLIER
03-01-2024,Environment and Sustainable Transport,Matrix Scm,Agency Staff,476.32,0,COMMERCIAL SUPPLIER
03-01-2024,Environment and Sustainable Transport,Matrix Scm,Agency Staff,393.6,0,COMMERCIAL SUPPLIER
03-01-2024,Environment and Sustainable Transport,Matrix Scm,Agency Staff,155.26,0,COMMERCIAL SUPPLIER
03-01-2024,Environment and Sustainable Transport,Matrix Scm,Agency Staff,343.5,0,COMMERCIAL SUPPLIER
03-01-2024,Environment and Sustainable Transport,Matrix Scm,Agency Staff,386.64,0,COMMERCIAL SUPPLIER
03-01-2024,Environment and Sustainable Transport,Matrix Scm,Agency Staff,342.18,0,COMMERCIAL SUPPLIER
03-01-2024,Environment and Sustainable Transport,Matrix Scm,Agency Staff,643.24,0,COMMERCIAL SUPPLIER
03-01-2024,Environment and Sustainable Transport,Matrix Scm,Agency Staff,859.2,0,COMMERCIAL SUPPLIER
03-01-2024,Environment and Sustainable Transport,Matrix Scm,Agency Staff,439.05,0,COMMERCIAL SUPPLIER
03-01-2024,Environment and Sustainable Transport,Matrix Scm,Agency Staff,565.59,0,COMMERCIAL SUPPLIER
03-01-2024,Environment and Sustainable Transport,Matrix Scm,Agency Staff,400.32,0,COMMERCIAL SUPPLIER
03-01-2024,Environment and Sustainable Transport,Matrix Scm,Agency Staff,357.24,0,COMMERCIAL SUPPLIER
03-01-2024,Environment and Sustainable Transport,Matrix Scm,Agency Staff,354.24,0,COMMERCIAL SUPPLIER
03-01-2024,Environment and Sustainable Transport,Matrix Scm,Agency Staff,658.38,0,COMMERCIAL SUPPLIER
03-01-2024,Environment and Sustainable Transport,Matrix Scm,Agency Staff,643.24,0,COMMERCIAL SUPPLIER
03-01-2024,Environment and Sustainable Transport,Matrix Scm,Agency Staff,345.48,0,COMMERCIAL SUPPLIER
03-01-2024,Environment and Sustainable Transport,Matrix Scm,Agency Staff,621.04,0,COMMERCIAL SUPPLIER
03-01-2024,Environment and Sustainable Transport,Matrix Scm,Agency Staff,115.16,0,COMMERCIAL SUPPLIER
03-01-2024,Environment and Sustainable Transport,Matrix Scm,Agency Staff,798.5,0,COMMERCIAL SUPPLIER
03-01-2024,Environment and Sustainable Transport,Matrix Scm,Agency Staff,444.8,0,COMMERCIAL SUPPLIER
03-01-2024,Environment and Sustainable Transport,Matrix Scm,Agency Staff,238.16,0,COMMERCIAL SUPPLIER
03-01-2024,Environment and Sustainable Transport,Matrix Scm,Agency Staff,393.6,0,COMMERCIAL SUPPLIER
03-01-2024,Environment and Sustainable Transport,Matrix Scm,Agency Staff,498.09,0,COMMERCIAL SUPPLIER
03-01-2024,Environment and Sustainable Transport,Matrix Scm,Agency Staff,89.31,0,COMMERCIAL SUPPLIER
03-01-2024,Environment and Sustainable Transport,Matrix Scm,Agency Staff,395.03,0,COMMERCIAL SUPPLIER
03-01-2024,Environment and Sustainable Transport,Matrix Scm,Agency Staff,548.24,0,COMMERCIAL SUPPLIER
03-01-2024,Adults & Health,Matrix Scm,Agency Staff,512.1,0,COMMERCIAL SUPPLIER
03-01-2024,Environment and Sustainable Transport,Matrix Scm,Agency Staff,184.73,0,COMMERCIAL SUPPLIER
03-01-2024,Environment and Sustainable Transport,Matrix Scm,Agency Staff,272.08,0,COMMERCIAL SUPPLIER
03-01-2024,Environment and Sustainable Transport,Matrix Scm,Agency Staff,184.73,0,COMMERCIAL SUPPLIER
03-01-2024,Environment and Sustainable Transport,Matrix Scm,Agency Staff,191.33,0,COMMERCIAL SUPPLIER
03-01-2024,Environment and Sustainable Transport,Matrix Scm,Agency Staff,254.26,0,COMMERCIAL SUPPLIER
